Ref No,Fund Type,Dept,Cost Centre Description    ,Description    ,Creditor Name    ,GL Code Net Amount,Payment date        
2,Revenue,CCHD,Bed Purchasing - Frenchay Hospital,Residential Homes,.,2193.2, 06-Aug-2013
3,Revenue,CCHD,Bed Purchasing - Under 65s PWLD - South,Residential Homes,.,2194, 06-Aug-2013
4,Revenue,CCHD,Bed Purchasing - Frenchay Hospital,Nursing Homes,.,2515.17, 06-Aug-2013
5,Revenue,CCHD,Supporting People Programme,Grants to Voluntary Bodies,1625 Independent People,17380, 01-Aug-2013
6,Revenue,CCHD,Supporting People Programme,Grants to Voluntary Bodies,1625 Independent People,17380, 30-Aug-2013
7,Revenue,CCHD,Home Care - Elderly - South,Other Small Contracts,3 Trees Community Support Ltd,95.52, 06-Aug-2013
8,Revenue,CCHD,Home Care - Elderly - North,Other Small Contracts,3 Trees Community Support Ltd,2340.24, 06-Aug-2013
9,Revenue,CCHD,Day Care - North,Private & Voluntary Day Care,3 Trees Community Support Ltd,47.76, 06-Aug-2013
10,Revenue,CCHD,Home Care - Elderly - South,Other Small Contracts,3 Trees Community Support Ltd,95.52, 23-Aug-2013
11,Revenue,CCHD,Home Care - Elderly - North,Other Small Contracts,3 Trees Community Support Ltd,2340.24, 23-Aug-2013
12,Revenue,CCHD,Day Care - North,Private & Voluntary Day Care,3 Trees Community Support Ltd,47.76, 23-Aug-2013
13,Revenue,CCHD,Home Care - Elderly - South,Other Small Contracts,3 Trees Community Support Ltd,95.52, 23-Aug-2013
14,Revenue,CCHD,Home Care - Elderly - North,Other Small Contracts,3 Trees Community Support Ltd,2849.68, 23-Aug-2013
15,Revenue,CCHD,Day Care - North,Private & Voluntary Day Care,3 Trees Community Support Ltd,47.76, 23-Aug-2013
16,Revenue,CCHD,Home Care - Elderly - South,Other Small Contracts,3 Trees Community Support Ltd,95.52, 28-Aug-2013
17,Revenue,CCHD,Home Care - Elderly - North,Other Small Contracts,3 Trees Community Support Ltd,2905.4, 28-Aug-2013
18,Revenue,CCHD,Day Care - North,Private & Voluntary Day Care,3 Trees Community Support Ltd,47.76, 28-Aug-2013
19,Revenue,CCHD,Home Care - Elderly - North,Other Small Contracts,3 Trees Community Support Ltd,742.95, 06-Aug-2013
20,Revenue,CCHD,Supported Living - South,Private & Voluntary Home Care,3 Trees Community Support Ltd,608.9, 28-Aug-2013
21,Revenue,CCHD,Supported Living - South,Private & Voluntary Home Care,3 Trees Community Support Ltd,1709.42, 23-Aug-2013
22,Revenue,CCHD,Purchase of Non-Res Care - North,Private & Voluntary Day Care,3 Trees Community Support Ltd,4375, 23-Aug-2013
23,Revenue,CCHD,Supported Living - South,Private & Voluntary Home Care,3 Trees Community Support Ltd,2022, 30-Aug-2013
24,Revenue,CCHD,Purchase of Non-Res Care - North,Private & Voluntary Day Care,3 Trees Community Support Ltd,1718.4, 28-Aug-2013
25,Revenue,CCHD,Purchase of Non-Res Care - North,Private & Voluntary Day Care,3 Trees Community Support Ltd,1706.36, 23-Aug-2013
26,Revenue,CCHD,Purchase of Non-Res Care - North,Private & Voluntary Day Care,3 Trees Community Support Ltd,1342.2, 23-Aug-2013
27,Revenue,CCHD,Purchase of Non-Res Care - North,Private & Voluntary Day Care,3 Trees Community Support Ltd,6107.24, 16-Aug-2013
28,Revenue,CCHD,Supported Living - North,Private & Voluntary Home Care,3 Trees Community Support Ltd,7632.8, 16-Aug-2013
29,Revenue,CCHD,Supported Living - North,Private & Voluntary Home Care,3 Trees Community Support Ltd,7984.22, 16-Aug-2013
30,Revenue,CCHD,Bed Purchasing - Under 65s PWLD - South,Residential Homes,5Th Floor Harlech Court,31656.72, 06-Aug-2013
31,Revenue,CCHD,Bed purchasing - Under 65s PWLD - North,Residential Homes,5Th Floor Harlech Court,27516.96, 06-Aug-2013
32,Revenue,CCHD,Bed purchasing - Under 65s PWLD - North,Residential Homes,5Th Floor Harlech Court,32705.36, 06-Aug-2013
33,Revenue,CCHD,Woodleaze,Premises Maintenance by Contractor,A E Horder (Contracting) Limited,434.03, 23-Aug-2013
34,Revenue,CCHD,Alexandra Way,Prop.Serv. General Repairs,A E Horder (Contracting) Limited,885.95, 30-Aug-2013
35,Revenue,CCHD,Direct Payments - Phys Dis - North,Grants to Voluntary Bodies,A4E Management Limited,22857.93, 09-Aug-2013
36,Revenue,CCHD,Direct Payments - Phys Dis - North,Grants to Voluntary Bodies,A4E Management Limited,23434.92, 23-Aug-2013
37,Revenue,CCHD,Direct Payments - Phys Dis - North,Grants to Voluntary Bodies,A4E Management Limited,1584.76, 23-Aug-2013
38,Revenue,CCHD,Bed Purchasing - Frenchay Hospital,Nursing Homes,Aabletone Nursing Home,834.76, 06-Aug-2013
39,Revenue,CCHD,Home Care - Elderly - South,Other Small Contracts,Abacus Care (Western) Ltd,735.14, 06-Aug-2013
40,Revenue,CCHD,Home Care - Elderly - North,Other Small Contracts,Abacus Care (Western) Ltd,995.25, 06-Aug-2013
41,Revenue,CCHD,Home Care - Elderly - South,Other Small Contracts,Abacus Care (Western) Ltd,871.43, 06-Aug-2013
42,Revenue,CCHD,Home Care - Elderly - North,Other Small Contracts,Abacus Care (Western) Ltd,995.25, 06-Aug-2013
43,Revenue,CCHD,Home Care - Elderly - South,Other Small Contracts,Abacus Care (Western) Ltd,759.92, 06-Aug-2013
44,Revenue,CCHD,Home Care - Elderly - North,Other Small Contracts,Abacus Care (Western) Ltd,995.25, 06-Aug-2013
45,Revenue,CCHD,Home Care - Elderly - South,Other Small Contracts,Abacus Care (Western) Ltd,631.89, 13-Aug-2013
46,Revenue,CCHD,Home Care - Elderly - North,Other Small Contracts,Abacus Care (Western) Ltd,995.25, 13-Aug-2013
47,Revenue,CCHD,MH Purchasing - Younger,Residential Homes,Abbey Grange,6128.49, 06-Aug-2013
48,Revenue,CCHD,Bed Purchasing - Winter resillience,Administrative & Support Staff Pay,Able 2 Occupational Therapy Services Ltd,9048, 22-Aug-2013
49,Revenue,CCHD,Day Care - North,Private & Voluntary Day Care,About Me Care and Support Limited,1213.04, 16-Aug-2013
50,Revenue,CCHD,Day Care - South,Private & Voluntary Day Care,About Me Care and Support Limited,1268.26, 15-Aug-2013
51,Revenue,CCHD,Day Care - North,Private & Voluntary Day Care,About Me Care and Support Limited,582.4, 15-Aug-2013
52,Revenue,CCHD,Day Care - South,Private & Voluntary Day Care,About Me Care and Support Limited,780.16, 15-Aug-2013
53,Revenue,CCHD,Bed purchasing - Under 65s PWLD - North,Residential Homes,Acorn Care Providers,5744.4, 06-Aug-2013
54,Revenue,CCHD,Day Care - North,Private & Voluntary Day Care,Action on Hearing Loss,616.23, 15-Aug-2013
55,Revenue,CCHD,Day Care - North,Private & Voluntary Day Care,Action on Hearing Loss,508.48, 06-Aug-2013
56,Revenue,CCHD,Day Care - North,Private & Voluntary Day Care,Action on Hearing Loss,710.39, 28-Aug-2013
57,Revenue,CCHD,Section 117 Placements MH Younger,Private & Voluntary Day Care,Adolphus Care Ltd,4087.02, 13-Aug-2013
58,Revenue,CCHD,Section 117 Placements MH Younger,Private & Voluntary Day Care,Adolphus Care Ltd,4087.02, 29-Aug-2013
59,Revenue,CCHD,Home Care - Elderly - South,Other Small Contracts,Agincare Chippenham,1638.29, 21-Aug-2013
60,Revenue,CCHD,Home Care - Elderly - South,Other Small Contracts,Agincare Chippenham,1618.74, 01-Aug-2013
61,Revenue,CCHD,Home Care - Elderly - South,Other Small Contracts,Agincare Chippenham,1610.92, 21-Aug-2013
62,Revenue,CCHD,Home Care - Elderly - South,Other Small Contracts,Agincare Chippenham,1513.17, 21-Aug-2013
63,Revenue,CCHD,Home Care - Elderly - South,Other Small Contracts,Agincare Chippenham,1591.37, 21-Aug-2013
64,Revenue,CCHD,Home Care - Elderly - South,Other Small Contracts,Agincare Chippenham,1587.46, 21-Aug-2013
65,Revenue,CCHD,Home Care - Elderly - South,Other Small Contracts,Agincare Chippenham,1642.2, 21-Aug-2013
66,Revenue,CCHD,Home Care - Elderly - South,Other Small Contracts,Agincare UK Limited,711.62, 21-Aug-2013
67,Revenue,CCHD,Home Care - Elderly - North,Other Small Contracts,Agincare UK Limited,89.93, 21-Aug-2013
68,Revenue,CCHD,Day Care - South,Private & Voluntary Day Care,Agincare UK Limited,101.66, 21-Aug-2013
69,Revenue,CCHD,Elderly MH Day Care North,Private & Voluntary Day Care,Agincare UK Limited,117.3, 21-Aug-2013
70,Revenue,CCHD,Home Care - Elderly - South,Other Small Contracts,Agincare UK Limited,922.76, 01-Aug-2013
71,Revenue,CCHD,Home Care - Elderly - North,Other Small Contracts,Agincare UK Limited,82.11, 01-Aug-2013
72,Revenue,CCHD,Day Care - South,Private & Voluntary Day Care,Agincare UK Limited,101.66, 01-Aug-2013
73,Revenue,CCHD,Elderly MH Day Care North,Private & Voluntary Day Care,Agincare UK Limited,117.3, 01-Aug-2013
74,Revenue,CCHD,Home Care - Elderly - South,Other Small Contracts,Agincare UK Limited,914.94, 01-Aug-2013
75,Revenue,CCHD,Home Care - Elderly - North,Other Small Contracts,Agincare UK Limited,86.02, 01-Aug-2013
76,Revenue,CCHD,Day Care - South,Private & Voluntary Day Care,Agincare UK Limited,93.84, 01-Aug-2013
77,Revenue,CCHD,Elderly MH Day Care North,Private & Voluntary Day Care,Agincare UK Limited,117.3, 01-Aug-2013
78,Revenue,CCHD,Home Care - Elderly - South,Other Small Contracts,Agincare UK Limited,817.19, 01-Aug-2013
79,Revenue,CCHD,Home Care - Elderly - North,Other Small Contracts,Agincare UK Limited,82.11, 01-Aug-2013
80,Revenue,CCHD,Day Care - South,Private & Voluntary Day Care,Agincare UK Limited,101.66, 01-Aug-2013
81,Revenue,CCHD,Elderly MH Day Care North,Private & Voluntary Day Care,Agincare UK Limited,117.3, 01-Aug-2013
82,Revenue,CCHD,Home Care - Elderly - South,Other Small Contracts,Agincare UK Limited,738.99, 02-Aug-2013
83,Revenue,CCHD,Home Care - Elderly - North,Other Small Contracts,Agincare UK Limited,82.11, 02-Aug-2013
84,Revenue,CCHD,Day Care - South,Private & Voluntary Day Care,Agincare UK Limited,101.66, 02-Aug-2013
85,Revenue,CCHD,Elderly MH Day Care North,Private & Voluntary Day Care,Agincare UK Limited,113.39, 02-Aug-2013
86,Revenue,CCHD,Home Care - Elderly - South,Other Small Contracts,Agincare UK Limited,637.33, 21-Aug-2013
87,Revenue,CCHD,Home Care - Elderly - North,Other Small Contracts,Agincare UK Limited,86.02, 21-Aug-2013
88,Revenue,CCHD,Day Care - South,Private & Voluntary Day Care,Agincare UK Limited,97.75, 21-Aug-2013
89,Revenue,CCHD,Elderly MH Day Care North,Private & Voluntary Day Care,Agincare UK Limited,117.3, 21-Aug-2013
90,Revenue,CCHD,Home Care - Elderly - South,Other Small Contracts,Agincare UK Limited,719.44, 21-Aug-2013
91,Revenue,CCHD,Home Care - Elderly - North,Other Small Contracts,Agincare UK Limited,82.11, 21-Aug-2013
92,Revenue,CCHD,Day Care - South,Private & Voluntary Day Care,Agincare UK Limited,101.66, 21-Aug-2013
93,Revenue,CCHD,Elderly MH Day Care North,Private & Voluntary Day Care,Agincare UK Limited,113.39, 21-Aug-2013
94,Revenue,CCHD,Home Care - Elderly - South,Other Small Contracts,Agincare UK Limited,844.56, 21-Aug-2013
95,Revenue,CCHD,Home Care - Elderly - North,Other Small Contracts,Agincare UK Limited,82.11, 21-Aug-2013
96,Revenue,CCHD,Day Care - South,Private & Voluntary Day Care,Agincare UK Limited,101.66, 21-Aug-2013
97,Revenue,CCHD,Elderly MH Day Care North,Private & Voluntary Day Care,Agincare UK Limited,121.21, 21-Aug-2013
98,Revenue,CCHD,S117 Placements PCT,Residential Homes,Alexandra House,6875.64, 06-Aug-2013
99,Revenue,CCHD,Section 117 Placements MH Younger,Residential Homes,Alexandra House,6400.88, 06-Aug-2013
100,Revenue,CCHD,Tenancy Start Up Scheme,Other Supplies & Services,Allen & Harris,1175, 28-Aug-2013
101,Revenue,CCHD,Home Care - Elderly - South,Other Small Contracts,Allied Healthcare Group,483.87, 07-Aug-2013
102,Revenue,CCHD,Home Care - Elderly - North,Other Small Contracts,Allied Healthcare Group,464.82, 07-Aug-2013
103,Revenue,CCHD,Day Care - North,Private & Voluntary Day Care,Allied Healthcare Group,45.72, 07-Aug-2013
104,Revenue,CCHD,Home Care - Elderly - South,Other Small Contracts,Allied Healthcare Group,453.39, 02-Aug-2013
105,Revenue,CCHD,Home Care - Elderly - North,Other Small Contracts,Allied Healthcare Group,426.72, 02-Aug-2013
106,Revenue,CCHD,Day Care - North,Private & Voluntary Day Care,Allied Healthcare Group,45.72, 02-Aug-2013
107,Revenue,CCHD,Home Care - Elderly - South,Other Small Contracts,Allied Healthcare Group,495.3, 07-Aug-2013
108,Revenue,CCHD,Home Care - Elderly - North,Other Small Contracts,Allied Healthcare Group,426.72, 07-Aug-2013
109,Revenue,CCHD,Day Care - North,Private & Voluntary Day Care,Allied Healthcare Group,45.72, 07-Aug-2013
110,Revenue,CCHD,Home Care - Elderly - South,Other Small Contracts,Allied Healthcare Group,480.06, 02-Aug-2013
111,Revenue,CCHD,Home Care - Elderly - North,Other Small Contracts,Allied Healthcare Group,308.61, 02-Aug-2013
112,Revenue,CCHD,Day Care - North,Private & Voluntary Day Care,Allied Healthcare Group,45.72, 02-Aug-2013
113,Revenue,CCHD,Home Care - Elderly - South,Other Small Contracts,Allied Healthcare Group,483.87, 02-Aug-2013
114,Revenue,CCHD,Home Care - Elderly - North,Other Small Contracts,Allied Healthcare Group,304.8, 02-Aug-2013
115,Revenue,CCHD,Day Care - North,Private & Voluntary Day Care,Allied Healthcare Group,45.72, 02-Aug-2013
116,Revenue,CCHD,Home Care - Elderly - South,Other Small Contracts,Allied Healthcare Group,354.2, 07-Aug-2013
117,Revenue,CCHD,Home Care - Elderly - North,Other Small Contracts,Allied Healthcare Group,315.7, 07-Aug-2013
118,Revenue,CCHD,Day Care - North,Private & Voluntary Day Care,Allied Healthcare Group,53.9, 07-Aug-2013
119,Revenue,CCHD,Home Care - Elderly - South,Other Small Contracts,Allied Healthcare Group,342.65, 02-Aug-2013
120,Revenue,CCHD,Home Care - Elderly - North,Other Small Contracts,Allied Healthcare Group,338.8, 02-Aug-2013
121,Revenue,CCHD,Day Care - North,Private & Voluntary Day Care,Allied Healthcare Group,46.2, 02-Aug-2013
122,Revenue,CCHD,Home Care - Elderly - South,Other Small Contracts,Allied Healthcare Group,342.65, 07-Aug-2013
123,Revenue,CCHD,Home Care - Elderly - North,Other Small Contracts,Allied Healthcare Group,327.25, 07-Aug-2013
124,Revenue,CCHD,Day Care - North,Private & Voluntary Day Care,Allied Healthcare Group,46.2, 07-Aug-2013
125,Revenue,CCHD,Home Care - Elderly - South,Other Small Contracts,Allied Healthcare Group,373.45, 07-Aug-2013
126,Revenue,CCHD,Home Care - Elderly - North,Other Small Contracts,Allied Healthcare Group,331.1, 07-Aug-2013
127,Revenue,CCHD,Day Care - North,Private & Voluntary Day Care,Allied Healthcare Group,46.2, 07-Aug-2013
128,Revenue,CCHD,Home Care - Elderly - South,Other Small Contracts,Allied Healthcare Group,361.9, 14-Aug-2013
129,Revenue,CCHD,Home Care - Elderly - North,Other Small Contracts,Allied Healthcare Group,327.25, 14-Aug-2013
130,Revenue,CCHD,Day Care - North,Private & Voluntary Day Care,Allied Healthcare Group,46.2, 14-Aug-2013
131,Revenue,CCHD,Home Care - Elderly - South,Other Small Contracts,Allied Healthcare Group,346.5, 02-Aug-2013
132,Revenue,CCHD,Home Care - Elderly - North,Other Small Contracts,Allied Healthcare Group,331.1, 02-Aug-2013
133,Revenue,CCHD,Day Care - North,Private & Voluntary Day Care,Allied Healthcare Group,46.2, 02-Aug-2013
134,Revenue,CCHD,Home Care - Elderly - South,Other Small Contracts,Allied Healthcare Group,323.4, 02-Aug-2013
135,Revenue,CCHD,Home Care - Elderly - North,Other Small Contracts,Allied Healthcare Group,515.9, 02-Aug-2013
136,Revenue,CCHD,Day Care - North,Private & Voluntary Day Care,Allied Healthcare Group,46.2, 02-Aug-2013
137,Revenue,CCHD,Home Care - Elderly - South,Other Small Contracts,Allied Healthcare Group,323.4, 02-Aug-2013
138,Revenue,CCHD,Home Care - Elderly - North,Other Small Contracts,Allied Healthcare Group,515.9, 02-Aug-2013
139,Revenue,CCHD,Day Care - North,Private & Voluntary Day Care,Allied Healthcare Group,46.2, 02-Aug-2013
140,Revenue,CCHD,Home Care - Elderly - South,Other Small Contracts,Allied Healthcare Group,315.7, 14-Aug-2013
141,Revenue,CCHD,Home Care - Elderly - North,Other Small Contracts,Allied Healthcare Group,515.9, 14-Aug-2013
142,Revenue,CCHD,Day Care - North,Private & Voluntary Day Care,Allied Healthcare Group,46.2, 14-Aug-2013
143,Revenue,CCHD,Home Care - Elderly - South,Other Small Contracts,Allied Healthcare Group,315.7, 02-Aug-2013
144,Revenue,CCHD,Home Care - Elderly - North,Other Small Contracts,Allied Healthcare Group,535.15, 02-Aug-2013
145,Revenue,CCHD,Day Care - North,Private & Voluntary Day Care,Allied Healthcare Group,46.2, 02-Aug-2013
146,Revenue,CCHD,Home Care - Elderly - South,Other Small Contracts,Allied Healthcare Group,311.85, 02-Aug-2013
147,Revenue,CCHD,Home Care - Elderly - North,Other Small Contracts,Allied Healthcare Group,496.65, 02-Aug-2013
148,Revenue,CCHD,Day Care - North,Private & Voluntary Day Care,Allied Healthcare Group,46.2, 02-Aug-2013
149,Revenue,CCHD,Home Care - Elderly - South,Other Small Contracts,Allied Healthcare Group,311.85, 02-Aug-2013
150,Revenue,CCHD,Home Care - Elderly - North,Other Small Contracts,Allied Healthcare Group,523.6, 02-Aug-2013
151,Revenue,CCHD,Day Care - North,Private & Voluntary Day Care,Allied Healthcare Group,46.2, 02-Aug-2013
152,Revenue,CCHD,Home Care - Elderly - South,Other Small Contracts,Allied Healthcare Group,331.1, 14-Aug-2013
153,Revenue,CCHD,Home Care - Elderly - North,Other Small Contracts,Allied Healthcare Group,523.6, 14-Aug-2013
154,Revenue,CCHD,Day Care - North,Private & Voluntary Day Care,Allied Healthcare Group,46.2, 14-Aug-2013
155,Revenue,CCHD,Home Care - Elderly - South,Other Small Contracts,Allied Healthcare Group,254.1, 14-Aug-2013
156,Revenue,CCHD,Home Care - Elderly - North,Other Small Contracts,Allied Healthcare Group,481.25, 14-Aug-2013
157,Revenue,CCHD,Day Care - North,Private & Voluntary Day Care,Allied Healthcare Group,46.2, 14-Aug-2013
158,Revenue,CCHD,Home Care - Elderly - South,Other Small Contracts,Allied Healthcare Group,196.35, 14-Aug-2013
159,Revenue,CCHD,Home Care - Elderly - North,Other Small Contracts,Allied Healthcare Group,485.1, 14-Aug-2013
160,Revenue,CCHD,Day Care - North,Private & Voluntary Day Care,Allied Healthcare Group,46.2, 14-Aug-2013
161,Revenue,CCHD,Elderly MH Day Care North,Private & Voluntary Day Care,Alzheimers Society,649.89, 23-Aug-2013
162,Revenue,CCHD,Elderly MH Day Care North,Private & Voluntary Day Care,Alzheimers Society,1010.94, 23-Aug-2013
163,Revenue,CCHD,Day Care - South,Private & Voluntary Day Care,Alzheimers Society,649.89, 28-Aug-2013
164,Revenue,CCHD,Bed Purchasing - Elderly S117- North,Private & Voluntary Day Care,Alzheimers Society,649.89, 23-Aug-2013
165,Revenue,CCHD,Elderly MH Day Care South,Private & Voluntary Day Care,Alzheimers Society,722.1, 23-Aug-2013
166,Revenue,CCHD,Bed Purchasing - Southmead Hospital,Nursing Homes,Ambleside Nusing Ho!,1425.36, 06-Aug-2013
167,Revenue,CCHD,Bed Purchasing - Frenchay Hospital,Residential Homes,Anbridge Care Home,822.44, 06-Aug-2013
168,Revenue,CCHD,Bed Purchasing - Elderly - North,Nursing Homes,Annabel House,1401.52, 06-Aug-2013
169,Revenue,CCHD,Bed purchasing - Under 65s PWLD - North,Residential Homes,Ark Care Homes Ltd,10163.76, 06-Aug-2013
170,Revenue,CCHD,Bed Purchasing - Elderly - South,Residential Homes,Ashbourne House Care Home Limited,1107.96, 06-Aug-2013
171,Revenue,CCHD,Home Care - Elderly - South,Other Small Contracts,Ashley Commercial Finance Ltd,750.6, 16-Aug-2013
172,Revenue,CCHD,Home Care - Elderly - North,Other Small Contracts,Ashley Commercial Finance Ltd,2714.67, 16-Aug-2013
173,Revenue,CCHD,Home Care - Elderly - South,Other Small Contracts,Ashley Commercial Finance Ltd,454.53, 23-Aug-2013
174,Revenue,CCHD,Home Care - Elderly - North,Other Small Contracts,Ashley Commercial Finance Ltd,2764.71, 23-Aug-2013
175,Revenue,CCHD,Home Care - Elderly - South,Other Small Contracts,Ashley Commercial Finance Ltd,654.69, 23-Aug-2013
176,Revenue,CCHD,Home Care - Elderly - North,Other Small Contracts,Ashley Commercial Finance Ltd,3302.64, 23-Aug-2013
177,Revenue,CCHD,Bed and Breakfast,Bed & Breakfast,Ashley Guest Houses Limited,788, 02-Aug-2013
178,Revenue,CCHD,Bed and Breakfast,Bed & Breakfast,Ashley Guest Houses Limited,548, 07-Aug-2013
179,Revenue,CCHD,Bed and Breakfast,Bed & Breakfast,Ashley Guest Houses Limited,728, 02-Aug-2013
180,Revenue,CCHD,Bed purchasing - Under 65s PWLD - North,Residential Homes,Aspects 2 Limited,6265.24, 06-Aug-2013
181,Revenue,CCHD,Supporting People Programme,Grants to Voluntary Bodies,Aspects and Milestones Trust,3172.58, 01-Aug-2013
182,Revenue,CCHD,Supporting People Programme,Grants to Voluntary Bodies,Aspects and Milestones Trust,1590.58, 01-Aug-2013
183,Revenue,CCHD,Supporting People Programme,Grants to Voluntary Bodies,Aspects and Milestones Trust,1937.33, 01-Aug-2013
184,Revenue,CCHD,Supporting People Programme,Grants to Voluntary Bodies,Aspects and Milestones Trust,2414.33, 01-Aug-2013
185,Revenue,CCHD,Supporting People Programme,Grants to Voluntary Bodies,Aspects and Milestones Trust,3172.58, 30-Aug-2013
186,Revenue,CCHD,Supporting People Programme,Grants to Voluntary Bodies,Aspects and Milestones Trust,1590.58, 30-Aug-2013
187,Revenue,CCHD,Supporting People Programme,Grants to Voluntary Bodies,Aspects and Milestones Trust,2414.33, 30-Aug-2013
188,Revenue,CCHD,Supported Living - South,Private & Voluntary Home Care,Aspirations Support Bristol Limited,564.2, 15-Aug-2013
189,Revenue,CCHD,Supported Living - South,Private & Voluntary Home Care,Aspirations Support Bristol Limited,4036.86, 15-Aug-2013
190,Revenue,CCHD,Supported Living - South,Private & Voluntary Home Care,Aspirations Support Bristol Limited,3950.5, 15-Aug-2013
191,Revenue,CCHD,Supported Living - South,Private & Voluntary Home Care,Aspirations Support Bristol Limited,4133.89, 15-Aug-2013
192,Revenue,CCHD,Supported Living - South,Private & Voluntary Home Care,Aspirations Support Bristol Limited,3787.41, 15-Aug-2013
193,Revenue,CCHD,Supported Living - South,Private & Voluntary Home Care,Aspirations Support Bristol Limited,4595.11, 15-Aug-2013
194,Revenue,CCHD,Supported Living - South,Private & Voluntary Home Care,Aspirations Support Bristol Limited,5818.78, 15-Aug-2013
195,Revenue,CCHD,Purchase of Non-Res Care - South,Private & Voluntary Day Care,Aspirations Support Bristol Limited,2499.48, 06-Aug-2013
196,Revenue,CCHD,Supported Living - North,Private & Voluntary Home Care,Aspirations Support Bristol Limited,8043.16, 15-Aug-2013
197,Revenue,CCHD,Supported Living - South,Private & Voluntary Home Care,Aspirations Support Bristol Limited,596.44, 15-Aug-2013
198,Revenue,CCHD,Bed Purchasing - Under 65s PWLD - South,Residential Homes,Autism Specialised Care Homes,5584.12, 06-Aug-2013
199,Revenue,CCHD,Purchase of Non-Res Care - North,Private & Voluntary Day Care,Avon Autistic Foundation Limited,2877, 29-Aug-2013
200,Revenue,CCHD,Purchase of Non-Res Care - North,Private & Voluntary Day Care,Avon Autistic Foundation Limited,4222.55, 29-Aug-2013
201,Revenue,CCHD,Purchase of RAC places,Other L.A.'s - General,Bath & North East Somerset Dist Council,16385.65, 15-Aug-2013
202,Revenue,CCHD,Purchase of RAC places,Other L.A.'s - General,Bath & North East Somerset Dist Council,3695.99, 15-Aug-2013
203,Revenue,CCHD,Bed Purchasing - Frenchay Hospital,Nursing Homes,Bayview Nursing & Residential Home,1463.36, 06-Aug-2013
204,Revenue,CCHD,Bed Purchasing - Elderly - North,Residential Homes,Beaufort House,1801.76, 06-Aug-2013
205,Revenue,CCHD,Bed purchasing - Elderly MH - North,Residential Homes,Beaufort House,1514.84, 06-Aug-2013
206,Revenue,CCHD,Bed Purchasing - Elderly S117- North,Residential Homes,Beaufort House,2322.08, 06-Aug-2013
207,Revenue,CCHD,Bed purchasing - Elderly MH - North,Residential Homes,Beaufort House,1383.68, 06-Aug-2013
208,Revenue,CCHD,Bed Purchasing - Elderly - North,Residential Homes,Beaufort House,1836.08, 06-Aug-2013
209,Revenue,CCHD,Bed Purchasing - Frenchay Hospital,Residential Homes,Beaufort House,1285.32, 06-Aug-2013
210,Revenue,CCHD,Bed Purchasing - Elderly - North,Residential Homes,Beaufort House,2759.01, 06-Aug-2013
211,Revenue,CCHD,Bed Purchasing - Elderly - North,Residential Homes,Beaufort House,1246, 06-Aug-2013
212,Revenue,CCHD,Bed Purchasing - Elderly - North,Residential Homes,Beaufort House,1726.68, 06-Aug-2013
213,Revenue,CCHD,Bed purchasing - Elderly MH - North,Residential Homes,Beaufort House,1018.44, 06-Aug-2013
214,Revenue,CCHD,Bed purchasing - Elderly MH - North,Residential Homes,Beaufort House,1684.12, 06-Aug-2013
215,Revenue,CCHD,Bed Purchasing - Elderly - North,Residential Homes,Beaufort House,1519.32, 06-Aug-2013
216,Revenue,CCHD,Bed purchasing - Elderly PWLD - South,Residential Homes,Bedrock Lodge,2909.4, 06-Aug-2013
217,Revenue,CCHD,Section 117 Placements MH Younger,Residential Homes,Bedrock Lodge,1837.68, 06-Aug-2013
218,Revenue,CCHD,Bed Purchasing - Frenchay Hospital,Nursing Homes,Beech House,1700.88, 06-Aug-2013
219,Revenue,CCHD,Bed Purchasing - Elderly - North,Nursing Homes,Beech House,2095.68, 06-Aug-2013
220,Revenue,CCHD,South Glos Users in South Glos Homes,Nursing Homes,Beech House,1756.64, 06-Aug-2013
221,Revenue,CCHD,South Glos Users in South Glos Homes,Nursing Homes,Beech House,1366.51, 06-Aug-2013
222,Revenue,CCHD,Bed Purchasing - Elderly - North,Nursing Homes,Beech House,725.16, 06-Aug-2013
223,Revenue,CCHD,Bed Purchasing - Southmead Hospital,Nursing Homes,Beech House,2305.76, 06-Aug-2013
224,Revenue,CCHD,Bed Purchasing - Elderly - North,Nursing Homes,Beech House,2220.52, 06-Aug-2013
225,Revenue,CCHD,Bed Purchasing - Frenchay Hospital,Residential Homes,Belmont View,1352.08, 06-Aug-2013
226,Revenue,CCHD,Bed purchasing - Elderly MH - North,Nursing Homes,Blossom Field,1042.16, 06-Aug-2013
227,Revenue,CCHD,Bed Purchasing - Elderly - North,Nursing Homes,Blossom Field,2350.16, 06-Aug-2013
228,Revenue,CCHD,South Glos Users in South Glos Homes,Nursing Homes,Blossom Field,1144.95, 06-Aug-2013
229,Revenue,CCHD,South Glos Users in South Glos Homes,Nursing Homes,Blossom Field,1756.64, 06-Aug-2013
230,Revenue,CCHD,South Glos Users in South Glos Homes,Nursing Homes,Blossom Field,854.07, 06-Aug-2013
231,Revenue,CCHD,South Glos Users in South Glos Homes,Nursing Homes,Blossom Field,752.85, 06-Aug-2013
232,Revenue,CCHD,Bed Purchasing - Elderly - North,Nursing Homes,Blossom Field,1096.6, 06-Aug-2013
233,Revenue,CCHD,South Glos Users in South Glos Homes,Nursing Homes,Blossom Field,1599.8, 06-Aug-2013
234,Revenue,CCHD,Bed purchasing - Elderly MH - North,Nursing Homes,Blossom Field,1400.04, 06-Aug-2013
235,Revenue,CCHD,Bed Purchasing - Elderly - South,Nursing Homes,Blossom Field,1884.56, 06-Aug-2013
236,Revenue,CCHD,South Glos Users in South Glos Homes,Nursing Homes,Blossom Fields,725.85, 12-Aug-2013
237,Revenue,CCHD,Training - Adult Services,Training Expenses,Bob Dawson,750, 20-Aug-2013
238,Revenue,CCHD,Bed purchasing - Under 65s PWLD - North,Residential Homes,Bradbury House,8632.8, 06-Aug-2013
239,Revenue,CCHD,Home Care - Elderly - North,Other Small Contracts,Bradley House Home Care Services,682.02, 02-Aug-2013
240,Revenue,CCHD,Day Care - North,Private & Voluntary Day Care,Bradley House Home Care Services,101.04, 02-Aug-2013
241,Revenue,CCHD,Home Care - Elderly - South,Other Small Contracts,Bradley House Home Care Services,71.57, 02-Aug-2013
242,Revenue,CCHD,Home Care - Elderly - North,Other Small Contracts,Bradley House Home Care Services,955.67, 02-Aug-2013
243,Revenue,CCHD,Day Care - North,Private & Voluntary Day Care,Bradley House Home Care Services,101.04, 02-Aug-2013
244,Revenue,CCHD,Home Care - Elderly - South,Other Small Contracts,Bradley House Home Care Services,122.09, 19-Aug-2013
245,Revenue,CCHD,Home Care - Elderly - North,Other Small Contracts,Bradley House Home Care Services,917.78, 19-Aug-2013
246,Revenue,CCHD,Day Care - North,Private & Voluntary Day Care,Bradley House Home Care Services,101.04, 19-Aug-2013
247,Revenue,CCHD,Home Care - Elderly - South,Other Small Contracts,Bradley House Home Care Services,113.67, 19-Aug-2013
248,Revenue,CCHD,Home Care - Elderly - North,Other Small Contracts,Bradley House Home Care Services,980.93, 19-Aug-2013
249,Revenue,CCHD,Day Care - North,Private & Voluntary Day Care,Bradley House Home Care Services,101.04, 19-Aug-2013
250,Revenue,CCHD,Home Care - Elderly - South,Other Small Contracts,Bradley House Home Care Services,21.05, 29-Aug-2013
251,Revenue,CCHD,Home Care - Elderly - North,Other Small Contracts,Bradley House Home Care Services,1035.66, 29-Aug-2013
252,Revenue,CCHD,Day Care - North,Private & Voluntary Day Care,Bradley House Home Care Services,101.04, 29-Aug-2013
253,Revenue,CCHD,Alexandra Way,"Provisions (Food, etc)",Brake Bros,504.05, 07-Aug-2013
254,Revenue,CCHD,Woodleaze,"Provisions (Food, etc)",Brake Bros,558.29, 05-Aug-2013
255,Revenue,CCHD,Alexandra Way,"Provisions (Food, etc)",Brake Bros,749.49, 29-Aug-2013
256,Revenue,CCHD,Alexandra Way,"Provisions (Food, etc)",Brake Bros,504.53, 29-Aug-2013
257,Revenue,CCHD,Woodleaze,"Provisions (Food, etc)",Brake Bros,855.96, 29-Aug-2013
258,Revenue,CCHD,Woodleaze,"Provisions (Food, etc)",Brake Bros,1105.37, 30-Aug-2013
259,Revenue,CCHD,Alexandra Way,"Provisions (Food, etc)",Brake Bros,505.49, 29-Aug-2013
260,Revenue,CCHD,Bed Purchasing - Elderly - North,Residential Homes,Bridge House Care Home,1246, 06-Aug-2013
261,Revenue,CCHD,Bed Purchasing - Elderly - North,Residential Homes,Bridge House Care Home,1485.04, 06-Aug-2013
262,Revenue,CCHD,Bed Purchasing - Elderly - North,Residential Homes,Bridge House Care Home,1150.56, 06-Aug-2013
263,Revenue,CCHD,Bed Purchasing - Elderly - North,Residential Homes,Bridge House Care Home,1444.96, 06-Aug-2013
264,Revenue,CCHD,Bed Purchasing - Elderly MH - South,Residential Homes,Brightbow,4134.56, 06-Aug-2013
265,Revenue,CCHD,MH Purchasing - Younger,Residential Homes,Brightbow,1841.6, 06-Aug-2013
266,Revenue,CCHD,Supported Living - North,Private & Voluntary Home Care,Bristol Houses UK Limited,1267.92, 14-Aug-2013
267,Revenue,CCHD,Supported Living - North,Private & Voluntary Home Care,Bristol Houses UK Limited,1056.6, 14-Aug-2013
268,Revenue,CCHD,Day Care - North,Private & Voluntary Day Care,Bristol Houses UK Limited,1567.21, 14-Aug-2013
269,Revenue,CCHD,Supported Living - North,Private & Voluntary Home Care,Bristol Houses UK Limited,1056.6, 14-Aug-2013
270,Revenue,CCHD,Supported Living - North,Private & Voluntary Home Care,Bristol Houses UK Limited,953.82, 14-Aug-2013
271,Revenue,CCHD,Younger MH non-res purchasing,Private & Voluntary Day Care,Bristol Houses UK Limited,726.72, 16-Aug-2013
272,Revenue,CCHD,Supporting People Programme,Grants to Voluntary Bodies,Bromford Housing Group,14050.25, 01-Aug-2013
273,Revenue,CCHD,Supporting People Programme,Grants to Voluntary Bodies,Bromford Housing Group,14050.25, 30-Aug-2013
274,Revenue,CCHD,Bed Purchasing - Elderly - North,Residential Homes,Brook Lane Residential Home,910.08, 06-Aug-2013
275,Revenue,CCHD,Home Care - Elderly - North,Private & Voluntary Home Care,Brunelcare,15809.01, 05-Aug-2013
276,Revenue,CCHD,Home Care - Elderly - North,Private & Voluntary Home Care,Brunelcare,15809.01, 12-Aug-2013
277,Revenue,CCHD,Home Care - Elderly - North,Private & Voluntary Home Care,Brunelcare,15809.01, 19-Aug-2013
278,Revenue,CCHD,Home Care - Elderly - North,Private & Voluntary Home Care,Brunelcare,15809.01, 23-Aug-2013
279,Revenue,CCHD,Home Care - Elderly - North,Private & Voluntary Home Care,Brunelcare,15809.01, 30-Aug-2013
280,Revenue,CCHD,Home Care - Elderly - South,Other Small Contracts,Brunelcare,2737.68, 06-Aug-2013
281,Revenue,CCHD,Home Care - Elderly - North,Other Small Contracts,Brunelcare,4906.94, 06-Aug-2013
282,Revenue,CCHD,Day Care - South,Private & Voluntary Day Care,Brunelcare,73.44, 06-Aug-2013
283,Revenue,CCHD,Day Care - North,Private & Voluntary Day Care,Brunelcare,77.52, 06-Aug-2013
284,Revenue,CCHD,Home care - Elderly MH - North,Other Small Contracts,Brunelcare,138.72, 06-Aug-2013
285,Revenue,CCHD,Home Care - Elderly - South,Other Small Contracts,Brunelcare,2399.04, 06-Aug-2013
286,Revenue,CCHD,Home Care - Elderly - North,Other Small Contracts,Brunelcare,4929.71, 06-Aug-2013
287,Revenue,CCHD,Day Care - South,Private & Voluntary Day Care,Brunelcare,77.52, 06-Aug-2013
288,Revenue,CCHD,Day Care - North,Private & Voluntary Day Care,Brunelcare,77.52, 06-Aug-2013
289,Revenue,CCHD,Home care - Elderly MH - North,Other Small Contracts,Brunelcare,142.8, 06-Aug-2013
290,Revenue,CCHD,Home Care - Elderly - South,Other Small Contracts,Brunelcare,2647.92, 06-Aug-2013
291,Revenue,CCHD,Home Care - Elderly - North,Other Small Contracts,Brunelcare,5012.86, 06-Aug-2013
292,Revenue,CCHD,Day Care - South,Private & Voluntary Day Care,Brunelcare,73.44, 06-Aug-2013
293,Revenue,CCHD,Day Care - North,Private & Voluntary Day Care,Brunelcare,81.6, 06-Aug-2013
294,Revenue,CCHD,Home Care - Elderly - South,Other Small Contracts,Brunelcare,2700.96, 19-Aug-2013
295,Revenue,CCHD,Home Care - Elderly - North,Other Small Contracts,Brunelcare,4796.12, 19-Aug-2013
296,Revenue,CCHD,Day Care - South,Private & Voluntary Day Care,Brunelcare,77.52, 19-Aug-2013
297,Revenue,CCHD,Day Care - North,Private & Voluntary Day Care,Brunelcare,85.68, 19-Aug-2013
298,Revenue,CCHD,Home Care - Elderly - South,Other Small Contracts,Brunelcare,2627.52, 19-Aug-2013
299,Revenue,CCHD,Home Care - Elderly - North,Other Small Contracts,Brunelcare,4812.2, 19-Aug-2013
300,Revenue,CCHD,Day Care - South,Private & Voluntary Day Care,Brunelcare,73.44, 19-Aug-2013
301,Revenue,CCHD,Day Care - North,Private & Voluntary Day Care,Brunelcare,77.52, 19-Aug-2013
302,Revenue,CCHD,Tenancy Start Up Scheme,Other Supplies & Services,Brunt & Fussell,1487.5, 29-Aug-2013
303,Revenue,CCHD,Bed Purchasing - Frenchay Hospital,Nursing Homes,BUPA Care Service,2604, 02-Aug-2013
304,Revenue,CCHD,Bed Purchasing - Frenchay Hospital,Nursing Homes,BUPA Care Service,1302, 30-Aug-2013
305,Revenue,CCHD,Bed purchasing - Phys Dis - North,Nursing Homes,Bupa Care Services  Bridge House,5851.68, 06-Aug-2013
306,Revenue,CCHD,South Glos Users in all other LA Homes,Nursing Homes,Bupa Care Services  Bridge House,604.4, 06-Aug-2013
307,Revenue,CCHD,Bed purchasing - Elderly MH - North,Residential Homes,Bupa Care Services  Bridge House,1900, 06-Aug-2013
308,Revenue,CCHD,Bed Purchasing - Frenchay Hospital,Nursing Homes,Bupa Care Services  Bridge House,1302, 06-Aug-2013
309,Revenue,CCHD,Newton House,Premises Maintenance by Contractor,BWS Security Systems Limited,2064.14, 30-Aug-2013
310,Revenue,CCHD,Supported Living - North,Private & Voluntary Home Care,Camphill Communities Thornbury Limited,2132.92, 07-Aug-2013
311,Revenue,CCHD,Supported Living - North,Private & Voluntary Home Care,Camphill Communities Thornbury Limited,2450.96, 07-Aug-2013
312,Revenue,CCHD,Supported Living - North,Private & Voluntary Home Care,Camphill Communities Thornbury Limited,2016.48, 08-Aug-2013
313,Revenue,CCHD,Supported Living - North,Private & Voluntary Home Care,Camphill Communities Thornbury Limited,2237.32, 08-Aug-2013
314,Revenue,CCHD,Supported Living - North,Private & Voluntary Home Care,Camphill Communities Thornbury Limited,1792.96, 08-Aug-2013
315,Revenue,CCHD,Supported Living - North,Private & Voluntary Home Care,Camphill Communities Thornbury Limited,2303.08, 08-Aug-2013
316,Revenue,CCHD,Supported Living - North,Private & Voluntary Home Care,Camphill Communities Thornbury Limited,2203.08, 08-Aug-2013
317,Revenue,CCHD,Supported Living - North,Private & Voluntary Home Care,Camphill Communities Thornbury Limited,2793.8, 15-Aug-2013
318,Revenue,CCHD,Supported Living - South,Private & Voluntary Home Care,Camphill Communities Thornbury Limited,1753.08, 21-Aug-2013
319,Revenue,CCHD,Supported Living - North,Private & Voluntary Home Care,Camphill Communities Thornbury Limited,2498.76, 21-Aug-2013
320,Revenue,CCHD,Supported Living - North,Private & Voluntary Home Care,Camphill Communities Thornbury Limited,2597.48, 21-Aug-2013
321,Revenue,CCHD,Supported Living - North,Private & Voluntary Day Care,Camphill Communities Thornbury Limited,1822.24, 23-Aug-2013
322,Revenue,CCHD,Supported Living - North,Private & Voluntary Home Care,Camphill Communities Thornbury Limited,2290.92, 23-Aug-2013
323,Revenue,CCHD,Supported Living - North,Private & Voluntary Home Care,Camphill Communities Thornbury Limited,2049.76, 23-Aug-2013
324,Revenue,CCHD,Supported Living - North,Private & Voluntary Home Care,Camphill Communities Thornbury Limited,2016.48, 23-Aug-2013
325,Revenue,CCHD,Bed Purchasing - Elderly S117- North,Residential Homes,Canjayor,2300, 06-Aug-2013
326,Revenue,CCHD,Home Care - Elderly - South,Other Small Contracts,Care 1st Homecare,3668.38, 23-Aug-2013
327,Revenue,CCHD,Home Care - Elderly - North,Other Small Contracts,Care 1st Homecare,5638.68, 23-Aug-2013
328,Revenue,CCHD,Day Care - North,Private & Voluntary Day Care,Care 1st Homecare,143.15, 23-Aug-2013
329,Revenue,CCHD,Home care - Elderly MH - North,Other Small Contracts,Care 1st Homecare,53.17, 23-Aug-2013
330,Revenue,CCHD,Home Care - Elderly - South,Other Small Contracts,Care 1st Homecare,4647.41, 23-Aug-2013
331,Revenue,CCHD,Home Care - Elderly - North,Other Small Contracts,Care 1st Homecare,6004.46, 23-Aug-2013
332,Revenue,CCHD,Day Care - North,Private & Voluntary Day Care,Care 1st Homecare,151.33, 23-Aug-2013
333,Revenue,CCHD,Home care - Elderly MH - North,Other Small Contracts,Care 1st Homecare,40.9, 23-Aug-2013
334,Revenue,CCHD,Home Care - Elderly - South,Other Small Contracts,Care 1st Homecare,4833.23, 28-Aug-2013
335,Revenue,CCHD,Home Care - Elderly - North,Other Small Contracts,Care 1st Homecare,6198.43, 28-Aug-2013
336,Revenue,CCHD,Day Care - North,Private & Voluntary Day Care,Care 1st Homecare,159.51, 28-Aug-2013
337,Revenue,CCHD,Home care - Elderly MH - North,Other Small Contracts,Care 1st Homecare,40.9, 28-Aug-2013
338,Revenue,CCHD,Home Care - Elderly - South,Other Small Contracts,Care 1st Homecare,4902.86, 28-Aug-2013
339,Revenue,CCHD,Home Care - Elderly - North,Other Small Contracts,Care 1st Homecare,5813.97, 28-Aug-2013
340,Revenue,CCHD,Day Care - North,Private & Voluntary Day Care,Care 1st Homecare,151.33, 28-Aug-2013
341,Revenue,CCHD,Home care - Elderly MH - North,Other Small Contracts,Care 1st Homecare,53.17, 28-Aug-2013
342,Revenue,CCHD,Home Care - Elderly - South,Other Small Contracts,Care 1st Homecare,4995.57, 29-Aug-2013
343,Revenue,CCHD,Home Care - Elderly - North,Other Small Contracts,Care 1st Homecare,6482.97, 29-Aug-2013
344,Revenue,CCHD,Day Care - North,Private & Voluntary Day Care,Care 1st Homecare,57.26, 29-Aug-2013
345,Revenue,CCHD,Home care - Elderly MH - North,Other Small Contracts,Care 1st Homecare,65.44, 29-Aug-2013
346,Revenue,CCHD,Home Care - Elderly - South,Other Small Contracts,Care 1st Homecare,4948.19, 21-Aug-2013
347,Revenue,CCHD,Home Care - Elderly - North,Other Small Contracts,Care 1st Homecare,5831.16, 21-Aug-2013
348,Revenue,CCHD,Day Care - North,Private & Voluntary Day Care,Care 1st Homecare,53.17, 21-Aug-2013
349,Revenue,CCHD,Home care - Elderly MH - North,Other Small Contracts,Care 1st Homecare,49.08, 21-Aug-2013
350,Revenue,CCHD,Home Care - Elderly - South,Other Small Contracts,Care 1st Homecare,3325.17, 19-Aug-2013
351,Revenue,CCHD,Home Care - Elderly - North,Other Small Contracts,Care 1st Homecare,5494.95, 19-Aug-2013
352,Revenue,CCHD,Day Care - North,Private & Voluntary Day Care,Care 1st Homecare,49.08, 19-Aug-2013
353,Revenue,CCHD,Home care - Elderly MH - North,Other Small Contracts,Care 1st Homecare,65.44, 19-Aug-2013
354,Revenue,CCHD,Home Care - Elderly - South,Other Small Contracts,Care 1st Homecare,2693.25, 21-Aug-2013
355,Revenue,CCHD,Home Care - Elderly - North,Other Small Contracts,Care 1st Homecare,3393.9, 21-Aug-2013
356,Revenue,CCHD,Day Care - South,Private & Voluntary Day Care,Care 1st Homecare,194.4, 21-Aug-2013
357,Revenue,CCHD,Day Care - North,Private & Voluntary Day Care,Care 1st Homecare,271.35, 21-Aug-2013
358,Revenue,CCHD,Home care - Elderly MH - North,Other Small Contracts,Care 1st Homecare,226.8, 21-Aug-2013
359,Revenue,CCHD,Home Care - LD Under 65 - South,Private & Voluntary Home Care,Care 1st Homecare,129.6, 21-Aug-2013
360,Revenue,CCHD,PWLD Home Care - Under 65 - KH,Private & Voluntary Home Care,Care 1st Homecare,137.7, 21-Aug-2013
361,Revenue,CCHD,Home Care - Elderly - South,Other Small Contracts,Care 1st Homecare,3296.54, 14-Aug-2013
362,Revenue,CCHD,Home Care - Elderly - North,Other Small Contracts,Care 1st Homecare,5605.38, 14-Aug-2013
363,Revenue,CCHD,Day Care - North,Private & Voluntary Day Care,Care 1st Homecare,57.26, 14-Aug-2013
364,Revenue,CCHD,Home Care - Elderly - South,Other Small Contracts,Care 1st Homecare,3370.16, 19-Aug-2013
365,Revenue,CCHD,Home Care - Elderly - North,Other Small Contracts,Care 1st Homecare,5756.71, 19-Aug-2013
366,Revenue,CCHD,Day Care - North,Private & Voluntary Day Care,Care 1st Homecare,49.08, 19-Aug-2013
367,Revenue,CCHD,Home care - Elderly MH - North,Other Small Contracts,Care 1st Homecare,65.44, 19-Aug-2013
368,Revenue,CCHD,Home Care - Elderly - South,Other Small Contracts,Care 1st Homecare,3218.83, 21-Aug-2013
369,Revenue,CCHD,Home Care - Elderly - North,Other Small Contracts,Care 1st Homecare,5908.04, 21-Aug-2013
370,Revenue,CCHD,Day Care - North,Private & Voluntary Day Care,Care 1st Homecare,114.52, 21-Aug-2013
371,Revenue,CCHD,Home care - Elderly MH - North,Other Small Contracts,Care 1st Homecare,65.44, 21-Aug-2013
372,Revenue,CCHD,Bed Purchasing - PWLD S 117 Placements,Residential Homes,Care Community Ltd,7536.4, 06-Aug-2013
373,Revenue,CCHD,Home Care - Elderly - North,Other Small Contracts,Care Horizons Limited,2969.5, 23-Aug-2013
374,Revenue,CCHD,Day Care - South,Private & Voluntary Day Care,Care Horizons Limited,359.17, 23-Aug-2013
375,Revenue,CCHD,Supported Living - North,Private & Voluntary Home Care,Care Horizons Limited,5820.46, 19-Aug-2013
376,Revenue,CCHD,Purchase of Non-Res Care - North,Private & Voluntary Day Care,Care Horizons Limited,1064.2, 23-Aug-2013
377,Revenue,CCHD,Purchase of Non-Res Care - North,Private & Voluntary Day Care,Care Horizons Limited,1417.5, 23-Aug-2013
378,Revenue,CCHD,Purchase of Non-Res Care - North,Private & Voluntary Day Care,Care Horizons Limited,1476.53, 23-Aug-2013
379,Revenue,CCHD,Purchase of Non-Res Care - North,Private & Voluntary Day Care,Care Horizons Limited,1803.46, 23-Aug-2013
380,Revenue,CCHD,Supported Living - South,Private & Voluntary Home Care,Care Horizons Limited,1957.14, 23-Aug-2013
381,Revenue,CCHD,Supported Living - North,Private & Voluntary Home Care,Care Horizons Limited,5373.79, 29-Aug-2013
382,Revenue,CCHD,Electronic Home Care Monitoring,Other Supplies & Services,Care Monitoring 2000 Limited,7327.31, 23-Aug-2013
383,Revenue,CCHD,Electronic Home Care Monitoring,Other Supplies & Services,Care Monitoring 2000 Limited,1340, 30-Aug-2013
384,Revenue,CCHD,Home Care - Elderly - South,Other Small Contracts,Care UK,5712.8, 01-Aug-2013
385,Revenue,CCHD,Home Care - Elderly - North,Other Small Contracts,Care UK,2258.36, 01-Aug-2013
386,Revenue,CCHD,Day Care - South,Private & Voluntary Day Care,Care UK,270.2, 01-Aug-2013
387,Revenue,CCHD,Day Care - North,Private & Voluntary Day Care,Care UK,521.36, 01-Aug-2013
388,Revenue,CCHD,Home care - Elderly MH - North,Other Small Contracts,Care UK,594.44, 01-Aug-2013
389,Revenue,CCHD,Elderly MH Day Care North,Private & Voluntary Day Care,Care UK,138.96, 01-Aug-2013
390,Revenue,CCHD,Home Care - Elderly - South,Other Small Contracts,Care UK,5265.04, 01-Aug-2013
391,Revenue,CCHD,Home Care - Elderly - North,Other Small Contracts,Care UK,2347.93, 01-Aug-2013
392,Revenue,CCHD,Day Care - South,Private & Voluntary Day Care,Care UK,270.2, 01-Aug-2013
393,Revenue,CCHD,Day Care - North,Private & Voluntary Day Care,Care UK,463.2, 01-Aug-2013
394,Revenue,CCHD,Home care - Elderly MH - North,Other Small Contracts,Care UK,586.72, 01-Aug-2013
395,Revenue,CCHD,Elderly MH Day Care North,Private & Voluntary Day Care,Care UK,138.96, 01-Aug-2013
396,Revenue,CCHD,Home Care - Elderly - South,Other Small Contracts,Care UK,5523.66, 29-Aug-2013
397,Revenue,CCHD,Home Care - Elderly - North,Other Small Contracts,Care UK,2313.72, 29-Aug-2013
398,Revenue,CCHD,Day Care - South,Private & Voluntary Day Care,Care UK,270.2, 29-Aug-2013
399,Revenue,CCHD,Day Care - North,Private & Voluntary Day Care,Care UK,404.76, 29-Aug-2013
400,Revenue,CCHD,Home care - Elderly MH - North,Other Small Contracts,Care UK,579, 29-Aug-2013
401,Revenue,CCHD,Elderly MH Day Care North,Private & Voluntary Day Care,Care UK,138.96, 29-Aug-2013
402,Revenue,CCHD,Home Care - Elderly - South,Other Small Contracts,Care UK,5535.24, 29-Aug-2013
403,Revenue,CCHD,Home Care - Elderly - North,Other Small Contracts,Care UK,2227.22, 29-Aug-2013
404,Revenue,CCHD,Day Care - South,Private & Voluntary Day Care,Care UK,270.2, 29-Aug-2013
405,Revenue,CCHD,Day Care - North,Private & Voluntary Day Care,Care UK,459.07, 29-Aug-2013
406,Revenue,CCHD,Home care - Elderly MH - North,Other Small Contracts,Care UK,579, 29-Aug-2013
407,Revenue,CCHD,Elderly MH Day Care North,Private & Voluntary Day Care,Care UK,138.96, 29-Aug-2013
408,Revenue,CCHD,Home Care - Elderly - South,Other Small Contracts,Care UK,5899.17, 29-Aug-2013
409,Revenue,CCHD,Home Care - Elderly - North,Other Small Contracts,Care UK,2322.38, 29-Aug-2013
410,Revenue,CCHD,Day Care - South,Private & Voluntary Day Care,Care UK,270.2, 29-Aug-2013
411,Revenue,CCHD,Day Care - North,Private & Voluntary Day Care,Care UK,216.16, 29-Aug-2013
412,Revenue,CCHD,Home care - Elderly MH - North,Other Small Contracts,Care UK,582.86, 29-Aug-2013
413,Revenue,CCHD,Elderly MH Day Care North,Private & Voluntary Day Care,Care UK,135.1, 29-Aug-2013
414,Revenue,CCHD,Home Care - Elderly - North,Other Small Contracts,Carers R Us (Bristol) Limited,575.14, 15-Aug-2013
415,Revenue,CCHD,Home Care - Elderly - North,Other Small Contracts,Carers R Us (Bristol) Limited,582.86, 15-Aug-2013
416,Revenue,CCHD,Home Care - Elderly - South,Other Small Contracts,Carewatch (Bristol),947.75, 01-Aug-2013
417,Revenue,CCHD,Home Care - Elderly - North,Other Small Contracts,Carewatch (Bristol),1215.5, 01-Aug-2013
418,Revenue,CCHD,Home Care - Elderly - South,Other Small Contracts,Carewatch (Bristol),964.75, 01-Aug-2013
419,Revenue,CCHD,Home Care - Elderly - North,Other Small Contracts,Carewatch (Bristol),1219.75, 01-Aug-2013
420,Revenue,CCHD,Home Care - Elderly - South,Other Small Contracts,Carewatch (Bristol),1003, 15-Aug-2013
421,Revenue,CCHD,Home Care - Elderly - North,Other Small Contracts,Carewatch (Bristol),1164.5, 15-Aug-2013
422,Revenue,CCHD,Home Care - Elderly - South,Other Small Contracts,Carewatch (Bristol),1185.75, 15-Aug-2013
423,Revenue,CCHD,Home Care - Elderly - North,Other Small Contracts,Carewatch (Bristol),1160.25, 15-Aug-2013
424,Revenue,CCHD,Elderly MH Day Care South,Private & Voluntary Day Care,Caring Home Healthcare Group Limited,600, 06-Aug-2013
425,Revenue,CCHD,Home Care - Elderly - South,Other Small Contracts,Cash Friday at Lloyds TSB,101.4, 14-Aug-2013
426,Revenue,CCHD,Home Care - Elderly - North,Other Small Contracts,Cash Friday at Lloyds TSB,908.7, 14-Aug-2013
427,Revenue,CCHD,Bed Purchasing - Frenchay Hospital,Residential Homes,Centenary Care Homes Ltd,1246, 06-Aug-2013
428,Revenue,CCHD,Bed Purchasing - Elderly - South,Residential Homes,Cepen Lodge Care Home,2176.28, 06-Aug-2013
429,Revenue,CCHD,Bed Purchasing - Southmead Hospital,Residential Homes,Charlton House Residential Home,1385.36, 06-Aug-2013
430,Revenue,CCHD,Home Care - Elderly - South,Other Small Contracts,Cherish Able Care Limited,4713.28, 02-Aug-2013
431,Revenue,CCHD,Home Care - Elderly - South,Other Small Contracts,Cherish Able Care Limited,4650.88, 09-Aug-2013
432,Revenue,CCHD,Home Care - Elderly - South,Other Small Contracts,Cherish Able Care Limited,4580.16, 16-Aug-2013
433,Revenue,CCHD,Home Care - Elderly - South,Other Small Contracts,Cherish Able Care Limited,4401.28, 23-Aug-2013
434,Revenue,CCHD,Bed purchasing -S28A  Under 65 - North,Residential Homes,Chescombe Lodge,8569.72, 06-Aug-2013
435,Revenue,CCHD,Bed Purchasing - Under 65s PWLD - South,Residential Homes,Chosen Court,6910.16, 06-Aug-2013
436,Revenue,CCHD,Bed Purchasing - PWLD S 117 Placements,Residential Homes,Chosen Court,8801.84, 06-Aug-2013
437,Revenue,CCHD,Bed Purchasing - Under 65s PWLD - South,Residential Homes,Chosen Court,5375.48, 06-Aug-2013
438,Revenue,CCHD,Training - Adult Services,Training Expenses,Chris Garnier,850, 09-Aug-2013
439,Revenue,CCHD,Bed purchasing - Under 65s PWLD - North,Residential Homes,Church House,10354.44, 06-Aug-2013
440,Revenue,CCHD,Bed purchasing - Under 65s PWLD - North,Residential Homes,Church House,5816.84, 06-Aug-2013
441,Revenue,CCHD,Supported Living - South,Private & Voluntary Home Care,Cintre Community,545.6, 08-Aug-2013
442,Revenue,CCHD,Day Care - South,Private & Voluntary Day Care,Cintre Community,1759.5, 22-Aug-2013
443,Revenue,CCHD,Purchase of Non-Res Care - South,Private & Voluntary Day Care,Cintre Community,609, 29-Aug-2013
444,Revenue,CCHD,Bed Purchasing - Elderly - South,Residential Homes,Cleeve Lodge,1603.16, 06-Aug-2013
445,Revenue,CCHD,Bed Purchasing - Southmead Hospital,Residential Homes,Cleeve Lodge,1435.24, 06-Aug-2013
446,Revenue,CCHD,Bed Purchasing - Elderly - North,Residential Homes,Cleeve Lodge,552.96, 06-Aug-2013
447,Revenue,CCHD,Bed Purchasing - Elderly - North,Residential Homes,Cleeve Lodge,600, 06-Aug-2013
448,Revenue,CCHD,Bed Purchasing - Elderly - South,Residential Homes,Cleeve Lodge,1775.52, 06-Aug-2013
449,Revenue,CCHD,Bed Purchasing - Elderly - South,Residential Homes,Cleeve Lodge,1764.48, 06-Aug-2013
450,Revenue,CCHD,Bed Purchasing - Elderly - South,Residential Homes,Cleeve Lodge,2258.44, 06-Aug-2013
451,Revenue,CCHD,Bed Purchasing - Elderly - North,Residential Homes,Cleeve Lodge,1383.2, 06-Aug-2013
452,Revenue,CCHD,Bed Purchasing - Elderly - South,Residential Homes,Cleeve Lodge,1779.92, 06-Aug-2013
453,Revenue,CCHD,Bed Purchasing - Elderly - South,Residential Homes,Collingwood Residential Home,1298.48, 06-Aug-2013
454,Revenue,CCHD,Bed Purchasing - Elderly - South,Residential Homes,Collingwood Residential Home,1403.68, 06-Aug-2013
455,Revenue,CCHD,Bed Purchasing - Elderly - South,Residential Homes,Collingwood Residential Home,1421, 06-Aug-2013
456,Revenue,CCHD,Bed Purchasing - Elderly - South,Residential Homes,Collingwood Residential Home,1089.96, 06-Aug-2013
457,Revenue,CCHD,Bed Purchasing - Elderly - South,Residential Homes,Collingwood Residential Home,1334.28, 06-Aug-2013
458,Revenue,CCHD,Bed Purchasing - Elderly MH - South,Residential Homes,Collingwood Residential Home,1306.28, 06-Aug-2013
459,Revenue,CCHD,Bed Purchasing - Elderly - South,Residential Homes,Collingwood Residential Home,1156.52, 06-Aug-2013
460,Revenue,CCHD,Bed Purchasing - Elderly - South,Residential Homes,Collingwood Residential Home,1268.04, 06-Aug-2013
461,Revenue,CCHD,Bed Purchasing - Elderly - South,Residential Homes,Collingwood Residential Home,1405.32, 06-Aug-2013
462,Revenue,CCHD,Bed and Breakfast,Bed & Breakfast,Connolly & Callaghan Limited,441, 23-Aug-2013
463,Revenue,CCHD,Bed and Breakfast,Bed & Breakfast,Connolly & Callaghan Limited,476, 23-Aug-2013
464,Revenue,CCHD,Bed and Breakfast,Bed & Breakfast,Connolly & Callaghan Limited,441, 23-Aug-2013
465,Revenue,CCHD,Bed and Breakfast,Bed & Breakfast,Connolly & Callaghan Limited,476, 23-Aug-2013
466,Revenue,CCHD,Bed and Breakfast,Bed & Breakfast,Connolly & Callaghan Limited,616, 23-Aug-2013
467,Revenue,CCHD,Bed and Breakfast,Bed & Breakfast,Connolly & Callaghan Limited,441, 23-Aug-2013
468,Revenue,CCHD,Bed and Breakfast,Bed & Breakfast,Connolly & Callaghan Limited,511, 23-Aug-2013
469,Revenue,CCHD,Bed and Breakfast,Bed & Breakfast,Connolly & Callaghan Limited,616, 06-Aug-2013
470,Revenue,CCHD,Bed and Breakfast,Bed & Breakfast,Connolly & Callaghan Limited,441, 23-Aug-2013
471,Revenue,CCHD,Bed and Breakfast,Bed & Breakfast,Connolly & Callaghan Limited,511, 23-Aug-2013
472,Revenue,CCHD,Bed and Breakfast,Bed & Breakfast,Connolly & Callaghan Limited,441, 23-Aug-2013
473,Revenue,CCHD,Bed and Breakfast,Bed & Breakfast,Connolly & Callaghan Limited,441, 23-Aug-2013
474,Revenue,CCHD,Bed and Breakfast,Bed & Breakfast,Connolly & Callaghan Limited,476, 23-Aug-2013
475,Revenue,CCHD,Bed and Breakfast,Bed & Breakfast,Connolly & Callaghan Limited,476, 23-Aug-2013
476,Revenue,CCHD,Bed and Breakfast,Bed & Breakfast,Connolly & Callaghan Limited,546, 23-Aug-2013
477,Revenue,CCHD,Bed and Breakfast,Bed & Breakfast,Connolly & Callaghan Limited,511, 23-Aug-2013
478,Revenue,CCHD,Bed and Breakfast,Bed & Breakfast,Connolly & Callaghan Limited,441, 21-Aug-2013
479,Revenue,CCHD,Bed and Breakfast,Bed & Breakfast,Connolly & Callaghan Limited,441, 23-Aug-2013
480,Revenue,CCHD,Bed and Breakfast,Bed & Breakfast,Connolly & Callaghan Limited,651, 23-Aug-2013
481,Revenue,CCHD,Bed and Breakfast,Bed & Breakfast,Connolly & Callaghan Limited,616, 23-Aug-2013
482,Revenue,CCHD,Bed and Breakfast,Bed & Breakfast,Connolly & Callaghan Limited,441, 23-Aug-2013
483,Revenue,CCHD,Bed and Breakfast,Bed & Breakfast,Connolly & Callaghan Limited,441, 23-Aug-2013
484,Revenue,CCHD,Bed and Breakfast,Bed & Breakfast,Connolly & Callaghan Limited,511, 23-Aug-2013
485,Revenue,CCHD,Bed and Breakfast,Bed & Breakfast,Connolly & Callaghan Limited,511, 23-Aug-2013
486,Revenue,CCHD,Bed and Breakfast,Bed & Breakfast,Connolly & Callaghan Limited,441, 23-Aug-2013
487,Revenue,CCHD,Bed and Breakfast,Bed & Breakfast,Connolly & Callaghan Limited,476, 23-Aug-2013
488,Revenue,CCHD,Bed and Breakfast,Bed & Breakfast,Connolly & Callaghan Limited,441, 23-Aug-2013
489,Revenue,CCHD,Bed and Breakfast,Bed & Breakfast,Connolly & Callaghan Limited,476, 20-Aug-2013
490,Revenue,CCHD,Bed and Breakfast,Bed & Breakfast,Connolly & Callaghan Limited,441, 23-Aug-2013
491,Revenue,CCHD,Bed and Breakfast,Bed & Breakfast,Connolly & Callaghan Limited,546, 23-Aug-2013
492,Revenue,CCHD,Bed and Breakfast,Bed & Breakfast,Connolly & Callaghan Limited,511, 23-Aug-2013
493,Revenue,CCHD,Bed and Breakfast,Bed & Breakfast,Connolly & Callaghan Limited,441, 20-Aug-2013
494,Revenue,CCHD,Bed and Breakfast,Bed & Breakfast,Connolly & Callaghan Limited,651, 23-Aug-2013
495,Revenue,CCHD,Bed and Breakfast,Bed & Breakfast,Connolly & Callaghan Limited,616, 23-Aug-2013
496,Revenue,CCHD,Bed and Breakfast,Bed & Breakfast,Connolly & Callaghan Limited,441, 23-Aug-2013
497,Revenue,CCHD,Bed and Breakfast,Bed & Breakfast,Connolly & Callaghan Limited,441, 23-Aug-2013
498,Revenue,CCHD,Bed and Breakfast,Bed & Breakfast,Connolly & Callaghan Limited,441, 23-Aug-2013
499,Revenue,CCHD,Bed and Breakfast,Bed & Breakfast,Connolly & Callaghan Limited,511, 28-Aug-2013
500,Revenue,CCHD,Bed and Breakfast,Bed & Breakfast,Connolly & Callaghan Limited,441, 23-Aug-2013
501,Revenue,CCHD,Bed and Breakfast,Bed & Breakfast,Connolly & Callaghan Limited,476, 23-Aug-2013
502,Revenue,CCHD,Bed and Breakfast,Bed & Breakfast,Connolly & Callaghan Limited,618, 28-Aug-2013
503,Revenue,CCHD,Bed and Breakfast,Bed & Breakfast,Connolly & Callaghan Limited,476, 23-Aug-2013
504,Revenue,CCHD,Bed and Breakfast,Bed & Breakfast,Connolly & Callaghan Limited,441, 23-Aug-2013
505,Revenue,CCHD,Bed and Breakfast,Bed & Breakfast,Connolly & Callaghan Limited,546, 23-Aug-2013
506,Revenue,CCHD,Bed and Breakfast,Bed & Breakfast,Connolly & Callaghan Limited,511, 23-Aug-2013
507,Revenue,CCHD,Bed and Breakfast,Bed & Breakfast,Connolly & Callaghan Limited,511, 23-Aug-2013
508,Revenue,CCHD,Bed and Breakfast,Bed & Breakfast,Connolly & Callaghan Limited,441, 23-Aug-2013
509,Revenue,CCHD,Bed and Breakfast,Bed & Breakfast,Connolly & Callaghan Limited,651, 23-Aug-2013
510,Revenue,CCHD,Bed and Breakfast,Bed & Breakfast,Connolly & Callaghan Limited,616, 23-Aug-2013
511,Revenue,CCHD,Bed and Breakfast,Bed & Breakfast,Connolly & Callaghan Limited,441, 23-Aug-2013
512,Revenue,CCHD,Bed and Breakfast,Bed & Breakfast,Connolly & Callaghan Limited,441, 23-Aug-2013
513,Revenue,CCHD,Bed and Breakfast,Bed & Breakfast,Connolly & Callaghan Limited,441, 23-Aug-2013
514,Revenue,CCHD,Bed and Breakfast,Bed & Breakfast,Connolly & Callaghan Limited,511, 28-Aug-2013
515,Revenue,CCHD,Bed and Breakfast,Bed & Breakfast,Connolly & Callaghan Limited,441, 23-Aug-2013
516,Revenue,CCHD,Bed and Breakfast,Bed & Breakfast,Connolly & Callaghan Limited,476, 23-Aug-2013
517,Revenue,CCHD,Bed and Breakfast,Bed & Breakfast,Connolly & Callaghan Limited,721, 28-Aug-2013
518,Revenue,CCHD,Bed and Breakfast,Bed & Breakfast,Connolly & Callaghan Limited,476, 23-Aug-2013
519,Revenue,CCHD,Bed and Breakfast,Bed & Breakfast,Connolly & Callaghan Limited,441, 23-Aug-2013
520,Revenue,CCHD,Bed and Breakfast,Bed & Breakfast,Connolly & Callaghan Limited,511, 23-Aug-2013
521,Revenue,CCHD,Bed and Breakfast,Bed & Breakfast,Connolly & Callaghan Limited,441, 23-Aug-2013
522,Revenue,CCHD,Bed and Breakfast,Bed & Breakfast,Connolly & Callaghan Limited,511, 28-Aug-2013
523,Revenue,CCHD,Bed and Breakfast,Bed & Breakfast,Connolly & Callaghan Limited,651, 23-Aug-2013
524,Revenue,CCHD,Bed and Breakfast,Bed & Breakfast,Connolly & Callaghan Limited,616, 23-Aug-2013
525,Revenue,CCHD,Bed and Breakfast,Bed & Breakfast,Connolly & Callaghan Limited,441, 28-Aug-2013
526,Revenue,CCHD,Bed and Breakfast,Bed & Breakfast,Connolly & Callaghan Limited,441, 28-Aug-2013
527,Revenue,CCHD,Bed and Breakfast,Bed & Breakfast,Connolly & Callaghan Limited,441, 28-Aug-2013
528,Revenue,CCHD,Bed and Breakfast,Bed & Breakfast,Connolly & Callaghan Limited,511, 28-Aug-2013
529,Revenue,CCHD,Bed and Breakfast,Bed & Breakfast,Connolly & Callaghan Limited,441, 30-Aug-2013
530,Revenue,CCHD,Bed and Breakfast,Bed & Breakfast,Connolly & Callaghan Limited,476, 30-Aug-2013
531,Revenue,CCHD,Bed and Breakfast,Bed & Breakfast,Connolly & Callaghan Limited,721, 28-Aug-2013
532,Revenue,CCHD,Bed and Breakfast,Bed & Breakfast,Connolly & Callaghan Limited,476, 28-Aug-2013
533,Revenue,CCHD,Bed and Breakfast,Bed & Breakfast,Connolly & Callaghan Limited,441, 28-Aug-2013
534,Revenue,CCHD,Bed and Breakfast,Bed & Breakfast,Connolly & Callaghan Limited,511, 28-Aug-2013
535,Revenue,CCHD,Bed and Breakfast,Bed & Breakfast,Connolly & Callaghan Limited,441, 29-Aug-2013
536,Revenue,CCHD,Bed and Breakfast,Bed & Breakfast,Connolly & Callaghan Limited,616, 28-Aug-2013
537,Revenue,CCHD,Bed and Breakfast,Bed & Breakfast,Connolly & Callaghan Limited,511, 28-Aug-2013
538,Revenue,CCHD,Bed and Breakfast,Bed & Breakfast,Connolly & Callaghan Limited,651, 28-Aug-2013
539,Revenue,CCHD,Bed and Breakfast,Bed & Breakfast,Connolly & Callaghan Limited,616, 28-Aug-2013
540,Revenue,CCHD,Bed Purchasing - Frenchay Hospital,Residential Homes,Coombs Wood House,962.96, 06-Aug-2013
541,Revenue,CCHD,Bed purchasing -S28A  Under 65 - North,Residential Homes,Cream Ii Ltd  Longrun House,7924.8, 06-Aug-2013
542,Revenue,CCHD,Bed Purchasing - Under 65s PWLD - South,Residential Homes,Cream Ii Ltd  Longrun House,5546.44, 06-Aug-2013
543,Revenue,CCHD,Bed purchasing -S28A  Under 65 - North,Residential Homes,Creedy Court,9157.32, 06-Aug-2013
544,Revenue,CCHD,Bed Purchasing - S28A - Over 65- North,Residential Homes,Creedy Court,7616.76, 06-Aug-2013
545,Revenue,CCHD,Brokerage and Information Service,Grants to Voluntary Bodies,D H I,9210.08, 23-Aug-2013
546,Revenue,CCHD,Bed Purchasing - Under 65s PWLD - South,Residential Homes,Daneswood,10848.44, 06-Aug-2013
547,Revenue,CCHD,Bed purchasing - Under 65s PWLD - North,Residential Homes,Daneswood,8986.84, 06-Aug-2013
548,Revenue,CCHD,Learning Difficulties PSL,Other Supplies & Services,Individual,2016.44, 22-Aug-2013
549,Revenue,CCHD,Bed Purchasing - Under 65s PWLD - South,Residential Homes,Devon & Cornwall Autistic Community Trus,8668.84, 06-Aug-2013
550,Revenue,CCHD,Day Care - South,Private & Voluntary Day Care,Dhek Bhal,835.6, 05-Aug-2013
551,Revenue,CCHD,Day Care - South,Private & Voluntary Day Care,Dhek Bhal,668.48, 05-Aug-2013
552,Revenue,CCHD,Day Care - South,Private & Voluntary Day Care,Dhek Bhal,668.48, 01-Aug-2013
553,Revenue,CCHD,Day Care - South,Private & Voluntary Day Care,Dhek Bhal,835.6, 01-Aug-2013
554,Revenue,CCHD,Bed Purchasing - Under 65s PWLD - South,Residential Homes,Dimensions (Uk),4808.36, 06-Aug-2013
555,Revenue,CCHD,Supported Living - South,Private & Voluntary Home Care,Dimensions (UK) Ltd,7748.4, 28-Aug-2013
556,Revenue,CCHD,Supported Living - South,Private & Voluntary Home Care,Dimensions (UK) Ltd,8006.68, 28-Aug-2013
557,Revenue,CCHD,Home Care - Elderly - South,Other Small Contracts,DoCare Ltd,4315.08, 06-Aug-2013
558,Revenue,CCHD,Home Care - Elderly - North,Other Small Contracts,DoCare Ltd,7177.79, 06-Aug-2013
559,Revenue,CCHD,Day Care - North,Private & Voluntary Day Care,DoCare Ltd,163.45, 06-Aug-2013
560,Revenue,CCHD,Home Care - Elderly - South,Other Small Contracts,DoCare Ltd,4371.12, 06-Aug-2013
561,Revenue,CCHD,Home Care - Elderly - North,Other Small Contracts,DoCare Ltd,7504.69, 06-Aug-2013
562,Revenue,CCHD,Day Care - North,Private & Voluntary Day Care,DoCare Ltd,168.12, 06-Aug-2013
563,Revenue,CCHD,Home Care - Elderly - South,Other Small Contracts,DoCare Ltd,4301.07, 06-Aug-2013
564,Revenue,CCHD,Home Care - Elderly - North,Other Small Contracts,DoCare Ltd,7341.24, 06-Aug-2013
565,Revenue,CCHD,Day Care - North,Private & Voluntary Day Care,DoCare Ltd,168.12, 06-Aug-2013
566,Revenue,CCHD,Home Care - Elderly - South,Other Small Contracts,DoCare Ltd,4170.31, 06-Aug-2013
567,Revenue,CCHD,Home Care - Elderly - North,Other Small Contracts,DoCare Ltd,7425.3, 06-Aug-2013
568,Revenue,CCHD,Day Care - North,Private & Voluntary Day Care,DoCare Ltd,168.12, 06-Aug-2013
569,Revenue,CCHD,Home Care - Elderly - South,Other Small Contracts,DoCare Ltd,4609.29, 09-Aug-2013
570,Revenue,CCHD,Home Care - Elderly - North,Other Small Contracts,DoCare Ltd,7397.28, 09-Aug-2013
571,Revenue,CCHD,Day Care - North,Private & Voluntary Day Care,DoCare Ltd,168.12, 09-Aug-2013
572,Revenue,CCHD,Bed Purchasing - Under 65s PWLD - South,Residential Homes,Dudbridge House,6546.16, 06-Aug-2013
573,Revenue,CCHD,Bed Purchasing - Elderly - South,Nursing Homes,Dunkirk Memorial House,1158.8, 06-Aug-2013
574,Revenue,CCHD,MH Purchasing - Younger,Residential Homes,Dunraven House,1826.8, 06-Aug-2013
575,Revenue,CCHD,Bed and Breakfast,Bed & Breakfast,E J Bartlett,434, 29-Aug-2013
576,Revenue,CCHD,Bed and Breakfast,Bed & Breakfast,E J Bartlett,651, 02-Aug-2013
577,Revenue,CCHD,Bed and Breakfast,Bed & Breakfast,E J Bartlett,651, 29-Aug-2013
578,Revenue,CCHD,Bed and Breakfast,Bed & Breakfast,E J Bartlett,434, 02-Aug-2013
579,Revenue,CCHD,Bed purchasing - Under 65s PWLD - North,Residential Homes,East Court,2180.72, 06-Aug-2013
580,Revenue,CCHD,Bed Purchasing - Southmead Hospital,Residential Homes,Edgecumbe Lodge,1246, 06-Aug-2013
581,Revenue,CCHD,Bed Purchasing - Elderly - South,Residential Homes,Edgecumbe Lodge,1052.16, 06-Aug-2013
582,Revenue,CCHD,Bed Purchasing - Elderly - South,Residential Homes,Edgecumbe Lodge,1312.64, 06-Aug-2013
583,Revenue,CCHD,Bed Purchasing - Elderly - South,Residential Homes,Edgecumbe Lodge,1405.12, 06-Aug-2013
584,Revenue,CCHD,Bed Purchasing - Elderly - South,Residential Homes,Edgecumbe Lodge,991.96, 06-Aug-2013
585,Revenue,CCHD,Bed Purchasing - Elderly - South,Residential Homes,Edgecumbe Lodge,1276.24, 06-Aug-2013
586,Revenue,CCHD,Bed Purchasing - Elderly - North,Residential Homes,Edgecumbe Lodge,1428.57, 06-Aug-2013
587,Revenue,CCHD,Bed Purchasing - Elderly - South,Residential Homes,Edgecumbe Lodge,1223.16, 06-Aug-2013
588,Revenue,CCHD,Bed Purchasing - Elderly MH - South,Residential Homes,Edgecumbe Lodge,1151.68, 06-Aug-2013
589,Revenue,CCHD,Bed Purchasing - Southmead Hospital,Residential Homes,Edgemont House Ltd,1414, 06-Aug-2013
590,Revenue,CCHD,Bed Purchasing - Elderly - South,Residential Homes,Edgemont House Ltd,1246, 06-Aug-2013
591,Revenue,CCHD,Bed Purchasing - Elderly - South,Residential Homes,Edgemont House Ltd,1246, 06-Aug-2013
592,Revenue,CCHD,Bed Purchasing - Elderly - South,Residential Homes,Edgemont House Ltd,1412.04, 06-Aug-2013
593,Revenue,CCHD,Bed Purchasing - Elderly - South,Residential Homes,Edgemont House Ltd,1260.96, 06-Aug-2013
594,Revenue,CCHD,South Glos Users in South Glos Homes,Nursing Homes,Edgemont View Nursing Home,1144.95, 06-Aug-2013
595,Revenue,CCHD,Bed Purchasing - Elderly - South,Nursing Homes,Edgemont View Nursing Home,1427.52, 06-Aug-2013
596,Revenue,CCHD,Bed Purchasing - Frenchay Hospital,Nursing Homes,Edgemont View Nursing Home,797.4, 06-Aug-2013
597,Revenue,CCHD,Bed Purchasing - Elderly - South,Nursing Homes,Edgemont View Nursing Home,1302, 06-Aug-2013
598,Revenue,CCHD,South Glos Users in South Glos Homes,Nursing Homes,Edgemont View Nursing Home,1537.06, 06-Aug-2013
599,Revenue,CCHD,Bed Purchasing - Elderly - South,Nursing Homes,Edgemont View Nursing Home,1151.6, 06-Aug-2013
600,Revenue,CCHD,Bed Purchasing - Elderly - South,Nursing Homes,Edgemont View Nursing Home,1613.52, 06-Aug-2013
601,Revenue,CCHD,Bed Purchasing - Elderly - South,Nursing Homes,Edgemont View Nursing Home,1177.24, 06-Aug-2013
602,Revenue,CCHD,Supporting People Programme,Grants to Voluntary Bodies,Elim Housing Association Limited,4945.25, 01-Aug-2013
603,Revenue,CCHD,Supporting People Programme,Grants to Voluntary Bodies,Elim Housing Association Limited,4945.25, 30-Aug-2013
604,Revenue,CCHD,Home Care - Elderly - South,Other Small Contracts,Elite Home Care Ltd,4343.3, 20-Aug-2013
605,Revenue,CCHD,Home care - Elderly MH - North,Other Small Contracts,Elite Home Care Ltd,148.58, 20-Aug-2013
606,Revenue,CCHD,Home Care - Elderly - South,Other Small Contracts,Elite Home Care Ltd,4789.04, 20-Aug-2013
607,Revenue,CCHD,Home Care - Elderly - North,Other Small Contracts,Elite Home Care Ltd,192.28, 20-Aug-2013
608,Revenue,CCHD,Home care - Elderly MH - North,Other Small Contracts,Elite Home Care Ltd,148.58, 20-Aug-2013
609,Revenue,CCHD,Home Care - Elderly - South,Other Small Contracts,Elite Home Care Ltd,4644.83, 20-Aug-2013
610,Revenue,CCHD,Home Care - Elderly - North,Other Small Contracts,Elite Home Care Ltd,345.23, 20-Aug-2013
611,Revenue,CCHD,Home care - Elderly MH - North,Other Small Contracts,Elite Home Care Ltd,157.32, 20-Aug-2013
612,Revenue,CCHD,Bed Purchasing - Elderly - South,Residential Homes,Elmbridge Residential Home Ltd,1317.56, 06-Aug-2013
613,Revenue,CCHD,Bed Purchasing - Frenchay Hospital,Nursing Homes,Elmwood Nursing Home,2223.88, 06-Aug-2013
614,Revenue,CCHD,Training - Adult Services,Training Expenses,Emergence Plus CIC,1155, 02-Aug-2013
615,Revenue,CCHD,Younger MH non-res purchasing,Private & Voluntary Day Care,Enham,638.72, 07-Aug-2013
616,Revenue,CCHD,Bed Purchasing - Southmead Hospital,Nursing Homes,Epworth House,1335, 06-Aug-2013
617,Revenue,CCHD,Kingswood Centre - Maple Suite,Operational Equipment,Ergolet Ltd,2540, 28-Aug-2013
618,Revenue,CCHD,Home Care - Elderly - South,Other Small Contracts,Everycare (Bristol) Ltd,4748.8, 01-Aug-2013
619,Revenue,CCHD,Home Care - Elderly - North,Other Small Contracts,Everycare (Bristol) Ltd,3057.04, 01-Aug-2013
620,Revenue,CCHD,Day Care - South,Private & Voluntary Day Care,Everycare (Bristol) Ltd,97.52, 01-Aug-2013
621,Revenue,CCHD,Home Care - Elderly - South,Other Small Contracts,Everycare (Bristol) Ltd,4842.08, 29-Aug-2013
622,Revenue,CCHD,Home Care - Elderly - North,Other Small Contracts,Everycare (Bristol) Ltd,3201.2, 29-Aug-2013
623,Revenue,CCHD,Day Care - South,Private & Voluntary Day Care,Everycare (Bristol) Ltd,101.76, 29-Aug-2013
624,Revenue,CCHD,Under 65s -MH  Home Care Purch,Other Small Contracts,Everycare (Bristol) Ltd,84.8, 29-Aug-2013
625,Revenue,CCHD,Home Care - Elderly - South,Other Small Contracts,Everycare (Bristol) Ltd,4854.8, 28-Aug-2013
626,Revenue,CCHD,Home Care - Elderly - North,Other Small Contracts,Everycare (Bristol) Ltd,3171.52, 28-Aug-2013
627,Revenue,CCHD,Day Care - South,Private & Voluntary Day Care,Everycare (Bristol) Ltd,101.76, 28-Aug-2013
628,Revenue,CCHD,Under 65s -MH  Home Care Purch,Other Small Contracts,Everycare (Bristol) Ltd,33.92, 28-Aug-2013
629,Revenue,CCHD,Home Care - Elderly - South,Other Small Contracts,Everycare (Bristol) Ltd,4697.92, 29-Aug-2013
630,Revenue,CCHD,Home Care - Elderly - North,Other Small Contracts,Everycare (Bristol) Ltd,2666.96, 29-Aug-2013
631,Revenue,CCHD,Day Care - South,Private & Voluntary Day Care,Everycare (Bristol) Ltd,101.76, 29-Aug-2013
632,Revenue,CCHD,Under 65s -MH  Home Care Purch,Other Small Contracts,Everycare (Bristol) Ltd,84.8, 29-Aug-2013
633,Revenue,CCHD,Home Care - Elderly - South,Other Small Contracts,Everycare (Bristol) Ltd,5308.48, 28-Aug-2013
634,Revenue,CCHD,Home Care - Elderly - North,Other Small Contracts,Everycare (Bristol) Ltd,2569.44, 28-Aug-2013
635,Revenue,CCHD,Day Care - South,Private & Voluntary Day Care,Everycare (Bristol) Ltd,33.92, 28-Aug-2013
636,Revenue,CCHD,Under 65s -MH  Home Care Purch,Other Small Contracts,Everycare (Bristol) Ltd,84.8, 28-Aug-2013
637,Revenue,CCHD,Bed Purchasing - Elderly MH - South,Residential Homes,Exmouth House,1397.88, 06-Aug-2013
638,Revenue,CCHD,Bed Purchasing - Southmead Hospital,Residential Homes,Fairfield House Care Home,1454.28, 06-Aug-2013
639,Revenue,CCHD,Bed Purchasing - Elderly - South,Nursing Homes,Fairview Court,1180.4, 06-Aug-2013
640,Revenue,CCHD,Bed purchasing - Elderly MH - North,Nursing Homes,Fairview Court,1595.96, 06-Aug-2013
641,Revenue,CCHD,Bed Purchasing - Elderly MH - South,Nursing Homes,Fairview Court,1850.48, 06-Aug-2013
642,Revenue,CCHD,South Glos Users in South Glos Homes,Nursing Homes,Fairview Court,1756.64, 06-Aug-2013
643,Revenue,CCHD,South Glos Users in South Glos Homes,Nursing Homes,Fairview Court,1413.1, 06-Aug-2013
644,Revenue,CCHD,Bed Purchasing - Southmead Hospital,Nursing Homes,Fairview Court,1023.72, 06-Aug-2013
645,Revenue,CCHD,Bed Purchasing - Elderly - South,Nursing Homes,Fairview Court,1817.24, 06-Aug-2013
646,Revenue,CCHD,South Glos Users in South Glos Homes,Nursing Homes,Fairview Court,1756.64, 06-Aug-2013
647,Revenue,CCHD,Bed Purchasing - Elderly MH - South,Residential Homes,Fairview Court,1414, 06-Aug-2013
648,Revenue,CCHD,Bed Purchasing - Elderly - South,Residential Homes,Fairview Court,2648.56, 06-Aug-2013
649,Revenue,CCHD,Bed Purchasing - Elderly - South,Residential Homes,Fairview Court,2154.56, 06-Aug-2013
650,Revenue,CCHD,Bed Purchasing - Elderly - South,Nursing Homes,Fairview Court,1830.44, 06-Aug-2013
651,Revenue,CCHD,Bed Purchasing - Southmead Hospital,Nursing Homes,Fairview Court,2194, 06-Aug-2013
652,Revenue,CCHD,South Glos Users in South Glos Homes,Nursing Homes,Fairview Court,862.64, 06-Aug-2013
653,Revenue,CCHD,Bed Purchasing - Frenchay Hospital,Nursing Homes,Fairview Court,1836.08, 06-Aug-2013
654,Revenue,CCHD,Bed Purchasing - Elderly MH - South,Nursing Homes,Fairview Court,2002.88, 06-Aug-2013
655,Revenue,CCHD,Bed purchasing - Elderly MH - North,Nursing Homes,Fairview Court,1699.6, 06-Aug-2013
656,Revenue,CCHD,Bed Purchasing - Frenchay Hospital,Nursing Homes,Fairview Court Care Home,1531.89, 12-Aug-2013
657,Revenue,CCHD,South Glos Users in South Glos Homes,Nursing Homes,Fairview Court Care Home,2917.28, 12-Aug-2013
658,Revenue,CCHD,Bed purchasing - Phys Dis - North,Nursing Homes,Fairview Court Care Home,1991.62, 12-Aug-2013
659,Revenue,CCHD,Bed Purchasing - Elderly MH - South,Nursing Homes,Fairview Court Care Home,4679.08, 12-Aug-2013
660,Revenue,CCHD,Bed purchasing - Elderly S117 - South,Nursing Homes,Fairview Court Care Home,2574.51, 12-Aug-2013
661,Revenue,CCHD,Bed Purchasing - Elderly - South,Residential Homes,Fairview House,865.48, 06-Aug-2013
662,Revenue,CCHD,Bed Purchasing - Elderly - South,Residential Homes,Fairview House,1265.24, 06-Aug-2013
663,Revenue,CCHD,Bed Purchasing - Frenchay Hospital,Residential Homes,Fairview House,992.24, 06-Aug-2013
664,Revenue,CCHD,Bed Purchasing - Elderly - South,Residential Homes,Fairview House,928.12, 06-Aug-2013
665,Revenue,CCHD,Bed purchasing - Elderly S117 - South,Residential Homes,Fairview House,1888.88, 06-Aug-2013
666,Revenue,CCHD,Bed Purchasing - Southmead Hospital,Residential Homes,Fairview House,1019.48, 06-Aug-2013
667,Revenue,CCHD,Bed Purchasing - Elderly - South,Residential Homes,Fairview House,4456.35, 06-Aug-2013
668,Revenue,CCHD,Bed Purchasing - Elderly - South,Residential Homes,Fairview House,1188.36, 06-Aug-2013
669,Revenue,CCHD,Bed Purchasing - Southmead Hospital,Residential Homes,Fairview House,1116.24, 06-Aug-2013
670,Revenue,CCHD,Bed Purchasing - Elderly MH - South,Residential Homes,Fairview House,1109.84, 06-Aug-2013
671,Revenue,CCHD,Bed Purchasing - Frenchay Hospital,Residential Homes,Fairview House,1246, 06-Aug-2013
672,Revenue,CCHD,Bed Purchasing - Southmead Hospital,Residential Homes,Fairview House,1062.04, 06-Aug-2013
673,Revenue,CCHD,Bed Purchasing - Elderly MH - South,Residential Homes,Fairview House,1036.08, 06-Aug-2013
674,Revenue,CCHD,Bed Purchasing - Elderly MH - South,Residential Homes,Fairview House,1206.32, 06-Aug-2013
675,Revenue,CCHD,Bed Purchasing - Frenchay Hospital,Residential Homes,Faith House,1310.92, 06-Aug-2013
676,Revenue,CCHD,Bed purchasing - Under 65s PWLD - North,Residential Homes,Fernbank,7593.16, 06-Aug-2013
677,Revenue,CCHD,Bed Purchasing - Elderly - North,Nursing Homes,Field House Care Home,936.65, 06-Aug-2013
678,Revenue,CCHD,Home Care - Elderly - South,Other Small Contracts,Firstpoint Homecare Ltd,2019.84, 28-Aug-2013
679,Revenue,CCHD,Home Care - Elderly - North,Other Small Contracts,Firstpoint Homecare Ltd,1336.32, 28-Aug-2013
680,Revenue,CCHD,Day Care - South,Private & Voluntary Day Care,Firstpoint Homecare Ltd,322.56, 28-Aug-2013
681,Revenue,CCHD,Day Care - North,Private & Voluntary Day Care,Firstpoint Homecare Ltd,207.36, 28-Aug-2013
682,Revenue,CCHD,Under 65s -MH  Home Care Purch,Other Small Contracts,Firstpoint Homecare Ltd,46.08, 28-Aug-2013
683,Revenue,CCHD,Younger MH non-res purchasing,Private & Voluntary Day Care,Firstpoint Homecare Ltd,84.48, 28-Aug-2013
684,Revenue,CCHD,Home care - Elderly MH - North,Other Small Contracts,Firstpoint Homecare Ltd,157.44, 28-Aug-2013
685,Revenue,CCHD,Elderly MH Day Care North,Private & Voluntary Day Care,Firstpoint Homecare Ltd,92.16, 28-Aug-2013
686,Revenue,CCHD,Bed Purchasing - Elderly - South,Nursing Homes,Four Seasons Health Care,1177.16, 06-Aug-2013
687,Revenue,CCHD,Bed Purchasing - Elderly S117- North,Residential Homes,Four Seasons Health Care,2030.36, 06-Aug-2013
688,Revenue,CCHD,Bed Purchasing - Frenchay Hospital,Residential Homes,Four Seasons Health Care,1526.84, 06-Aug-2013
689,Revenue,CCHD,Tenancy Start Up Scheme,Other Supplies & Services,Franklin Cole Limited,1450, 30-Aug-2013
690,Revenue,CCHD,Home Care - Elderly - South,Other Small Contracts,Freedom Social Care Recruitment,1288.77, 23-Aug-2013
691,Revenue,CCHD,Home Care - Elderly - North,Other Small Contracts,Freedom Social Care Recruitment,2833.47, 23-Aug-2013
692,Revenue,CCHD,Day Care - North,Private & Voluntary Day Care,Freedom Social Care Recruitment,15.96, 23-Aug-2013
693,Revenue,CCHD,Home care - Elderly MH - North,Other Small Contracts,Freedom Social Care Recruitment,15.96, 23-Aug-2013
694,Revenue,CCHD,Purchase of Non-Res Care - North,Private & Voluntary Day Care,Freeways Trust Limited,631.32, 23-Aug-2013
695,Revenue,CCHD,Supported Living - South,Private & Voluntary Home Care,Freeways Trust Limited,1287.44, 23-Aug-2013
696,Revenue,CCHD,Supported Living - South,Private & Voluntary Home Care,Freeways Trust Limited,1397.43, 23-Aug-2013
697,Revenue,CCHD,Bed purchasing - Under 65s PWLD - North,Residential Homes,Freeways Trust Ltd,2817.88, 06-Aug-2013
698,Revenue,CCHD,Bed purchasing - S28A Under 65 - South,Residential Homes,Freeways Trust Ltd,2899.4, 06-Aug-2013
699,Revenue,CCHD,Bed purchasing - Under 65s PWLD - North,Residential Homes,Freeways Trust Ltd,2682.36, 06-Aug-2013
700,Revenue,CCHD,Bed purchasing - Under 65s PWLD - North,Residential Homes,Freeways Trust Ltd,2253.16, 06-Aug-2013
701,Revenue,CCHD,Bed purchasing - Under 65s PWLD - North,Residential Homes,Freeways Trust Ltd,2691.08, 06-Aug-2013
702,Revenue,CCHD,Bed Purchasing - Under 65s PWLD - South,Residential Homes,Freeways Trust Ltd,3289.6, 06-Aug-2013
703,Revenue,CCHD,Bed purchasing - Elderly PWLD - North,Residential Homes,Freeways Trust Ltd,2235.92, 06-Aug-2013
704,Revenue,CCHD,Bed Purchasing - Under 65s PWLD - South,Residential Homes,Freeways Trust Ltd,2382.36, 06-Aug-2013
705,Revenue,CCHD,Bed purchasing - Under 65s PWLD - North,Residential Homes,Freeways Trust Ltd,2691.08, 06-Aug-2013
706,Revenue,CCHD,Bed purchasing - Elderly PWLD - North,Residential Homes,Freeways Trust Ltd,2511.56, 06-Aug-2013
707,Revenue,CCHD,Section 117 Placements MH Younger,Residential Homes,Freeways Trust Ltd,3324, 06-Aug-2013
708,Revenue,CCHD,Bed Purchasing - Under 65s PWLD - South,Residential Homes,Freeways Trust Ltd,6117.96, 06-Aug-2013
709,Revenue,CCHD,Bed Purchasing - Frenchay Hospital,Nursing Homes,Frenchay Park Nursing Home,1254.56, 06-Aug-2013
710,Revenue,CCHD,Bed Purchasing - Frenchay Hospital,Nursing Homes,Frenchay Park Nursing Home,1004.36, 06-Aug-2013
711,Revenue,CCHD,Bed Purchasing - Elderly - South,Nursing Homes,Fshc  1St Floor,891.56, 06-Aug-2013
712,Revenue,CCHD,Bed Purchasing - Elderly - South,Nursing Homes,Fshc  1St Floor,1287.08, 06-Aug-2013
713,Revenue,CCHD,Bed Purchasing - Frenchay Hospital,Residential Homes,Fshc  1St Floor,893.96, 06-Aug-2013
714,Revenue,CCHD,South Glos Users in South Glos Homes,Nursing Homes,Fshc  1St Floor,1505.69, 06-Aug-2013
715,Revenue,CCHD,Bed Purchasing - Southmead Hospital,Nursing Homes,Fshc  1St Floor,1370, 06-Aug-2013
716,Revenue,CCHD,South Glos Users in South Glos Homes,Nursing Homes,Fshc  1St Floor,1097.9, 06-Aug-2013
717,Revenue,CCHD,Bed Purchasing - Southmead Hospital,Nursing Homes,Fshc  1St Floor,664.14, 06-Aug-2013
718,Revenue,CCHD,Bed Purchasing - Frenchay Hospital,Nursing Homes,Fshc  1St Floor,1370, 06-Aug-2013
719,Revenue,CCHD,Bed Purchasing - Southmead Hospital,Nursing Homes,Fshc  1St Floor,1370, 06-Aug-2013
720,Revenue,CCHD,Bed purchasing - Elderly MH - North,Residential Homes,Fshc  1St Floor,958.24, 06-Aug-2013
721,Revenue,CCHD,Bed Purchasing - Elderly - South,Nursing Homes,Fshc  1St Floor,1048.64, 06-Aug-2013
722,Revenue,CCHD,Bed Purchasing - Southmead Hospital,Nursing Homes,Fshc  1St Floor,1370, 06-Aug-2013
723,Revenue,CCHD,Bed Purchasing - Elderly - South,Nursing Homes,Fshc  1St Floor,1206.72, 06-Aug-2013
724,Revenue,CCHD,Bed Purchasing - Elderly - South,Residential Homes,Fshc  1St Floor,2043.44, 06-Aug-2013
725,Revenue,CCHD,Bed Purchasing - Elderly - South,Nursing Homes,Fshc  1St Floor,1370.36, 06-Aug-2013
726,Revenue,CCHD,Bed Purchasing - Elderly - South,Nursing Homes,Fshc  1St Floor,1301.36, 06-Aug-2013
727,Revenue,CCHD,Bed Purchasing - Frenchay Hospital,Nursing Homes,Fshc  1St Floor,1308.96, 06-Aug-2013
728,Revenue,CCHD,Bed Purchasing - Southmead Hospital,Nursing Homes,Fshc  1St Floor,1370, 06-Aug-2013
729,Revenue,CCHD,Bed Purchasing - Southmead Hospital,Residential Homes,Fshc  1St Floor,533.6, 06-Aug-2013
730,Revenue,CCHD,Bed Purchasing - Southmead Hospital,Nursing Homes,Fshc  1St Floor,1102.08, 06-Aug-2013
731,Revenue,CCHD,Bed Purchasing - Elderly - North,Nursing Homes,Fshc  1St Floor,1370, 06-Aug-2013
732,Revenue,CCHD,Bed Purchasing - Elderly - North,Nursing Homes,Fshc  1St Floor,1856, 06-Aug-2013
733,Revenue,CCHD,Bed Purchasing - Frenchay Hospital,Nursing Homes,Fshc  1St Floor,1180.6, 06-Aug-2013
734,Revenue,CCHD,Bed Purchasing - Elderly - South,Nursing Homes,Fshc  1St Floor,1370, 06-Aug-2013
735,Revenue,CCHD,Bed Purchasing - Elderly - South,Nursing Homes,Fshc  1St Floor,1316.36, 06-Aug-2013
736,Revenue,CCHD,Bed Purchasing - Elderly MH - South,Nursing Homes,Fshc  1St Floor,1370, 06-Aug-2013
737,Revenue,CCHD,Bed Purchasing - Elderly - South,Nursing Homes,Fshc  1St Floor,1082.04, 06-Aug-2013
738,Revenue,CCHD,Bed Purchasing - Elderly - South,Nursing Homes,Fshc  1St Floor,1371.6, 06-Aug-2013
739,Revenue,CCHD,Bed Purchasing - Frenchay Hospital,Nursing Homes,Fshc  1St Floor,1078.4, 06-Aug-2013
740,Revenue,CCHD,Bed Purchasing - Elderly MH - South,Residential Homes,Fshc  1St Floor,1090.48, 06-Aug-2013
741,Revenue,CCHD,Bed Purchasing - Elderly - South,Nursing Homes,Fshc  1St Floor,1370, 06-Aug-2013
742,Revenue,CCHD,Bed Purchasing - Elderly - South,Nursing Homes,Fshc  1St Floor,765.08, 06-Aug-2013
743,Revenue,CCHD,Bed Purchasing - Southmead Hospital,Nursing Homes,Fshc  1St Floor,940.4, 06-Aug-2013
744,Revenue,CCHD,Bed Purchasing - Elderly - South,Nursing Homes,Fshc  1St Floor,726.14, 06-Aug-2013
745,Revenue,CCHD,Bed Purchasing - Southmead Hospital,Nursing Homes,Fshc  1St Floor,1370, 06-Aug-2013
746,Revenue,CCHD,South Glos Users in South Glos Homes,Nursing Homes,Fshc  1St Floor,925.37, 06-Aug-2013
747,Revenue,CCHD,Bed Purchasing - Elderly MH - South,Nursing Homes,Fshc  1St Floor,1216.84, 06-Aug-2013
748,Revenue,CCHD,Bed Purchasing - Southmead Hospital,Nursing Homes,Fshc  1St Floor,1362.4, 06-Aug-2013
749,Revenue,CCHD,Bed purchasing - Elderly MH - North,Nursing Homes,Fshc  1St Floor,786.72, 06-Aug-2013
750,Revenue,CCHD,Bed Purchasing - Elderly - South,Nursing Homes,Fshc  1St Floor,992.4, 06-Aug-2013
751,Revenue,CCHD,Bed Purchasing - Southmead Hospital,Nursing Homes,Fshc  1St Floor,2601.05, 06-Aug-2013
752,Revenue,CCHD,Bed Purchasing - Southmead Hospital,Nursing Homes,Fshc  1St Floor,1549.56, 06-Aug-2013
753,Revenue,CCHD,South Glos Users in South Glos Homes,Nursing Homes,Fshc  1St Floor,737.16, 06-Aug-2013
754,Revenue,CCHD,Bed Purchasing - Elderly - North,Nursing Homes,Fshc  1St Floor,974.36, 06-Aug-2013
755,Revenue,CCHD,Bed Purchasing - Frenchay Hospital,Residential Homes,Fshc  1St Floor,735.36, 06-Aug-2013
756,Revenue,CCHD,Bed Purchasing - Elderly - North,Nursing Homes,Fshc  1St Floor,1284.08, 06-Aug-2013
757,Revenue,CCHD,Bed Purchasing - Elderly - North,Nursing Homes,Fshc  1St Floor,7329.71, 06-Aug-2013
758,Revenue,CCHD,Bed Purchasing - Elderly - North,Nursing Homes,Fshc  1St Floor,1339, 06-Aug-2013
759,Revenue,CCHD,Bed Purchasing - Southmead Hospital,Nursing Homes,Fshc  1St Floor,1215.4, 06-Aug-2013
760,Revenue,CCHD,Bed Purchasing - Elderly - North,Residential Homes,Fshc  1St Floor,1347.68, 06-Aug-2013
761,Revenue,CCHD,Bed Purchasing - Southmead Hospital,Nursing Homes,Fshc  1St Floor,1558, 06-Aug-2013
762,Revenue,CCHD,Bed Purchasing - Frenchay Hospital,Nursing Homes,Fshc  1St Floor,1097.72, 06-Aug-2013
763,Revenue,CCHD,Bed Purchasing - Frenchay Hospital,Nursing Homes,Fshc  1St Floor,1114.96, 06-Aug-2013
764,Revenue,CCHD,Bed Purchasing - Southmead Hospital,Nursing Homes,Fshc  1St Floor,1370, 06-Aug-2013
765,Revenue,CCHD,South Glos Users in South Glos Homes,Nursing Homes,Fshc  1St Floor,737.16, 06-Aug-2013
766,Revenue,CCHD,Bed Purchasing - Elderly - South,Residential Homes,Fshc  1St Floor,1117.84, 06-Aug-2013
767,Revenue,CCHD,Bed Purchasing - Frenchay Hospital,Nursing Homes,Fshc  1St Floor,1546, 06-Aug-2013
768,Revenue,CCHD,Bed Purchasing - Elderly - North,Nursing Homes,Fshc  1St Floor,1370, 06-Aug-2013
769,Revenue,CCHD,Bed Purchasing - Southmead Hospital,Nursing Homes,Fshc  1St Floor,1370, 06-Aug-2013
770,Revenue,CCHD,Bed Purchasing - Elderly - North,Nursing Homes,Fshc  1St Floor,1295.6, 06-Aug-2013
771,Revenue,CCHD,Bed purchasing - Elderly MH - North,Nursing Homes,Fshc  1St Floor,1468.6, 06-Aug-2013
772,Revenue,CCHD,Bed Purchasing - Elderly - North,Nursing Homes,Fshc  1St Floor,1269.68, 06-Aug-2013
773,Revenue,CCHD,Bed Purchasing - Southmead Hospital,Nursing Homes,Fshc  1St Floor,1364.32, 06-Aug-2013
774,Revenue,CCHD,Bed Purchasing - Frenchay Hospital,Residential Homes,Fshc  1St Floor,628.4, 06-Aug-2013
775,Revenue,CCHD,Bed Purchasing - Frenchay Hospital,Nursing Homes,Fshc  1St Floor,1286.96, 06-Aug-2013
776,Revenue,CCHD,Bed Purchasing - Frenchay Hospital,Nursing Homes,Fshc  1St Floor,1350.84, 06-Aug-2013
777,Revenue,CCHD,Bed Purchasing - Elderly - North,Nursing Homes,Fshc  1St Floor,1041.72, 06-Aug-2013
778,Revenue,CCHD,Bed Purchasing - Elderly - North,Nursing Homes,Fshc  1St Floor,790.76, 06-Aug-2013
779,Revenue,CCHD,Bed Purchasing - Elderly - North,Nursing Homes,Fshc  1St Floor,767.72, 06-Aug-2013
780,Revenue,CCHD,Bed Purchasing - Frenchay Hospital,Nursing Homes,Fshc  1St Floor,1534.44, 06-Aug-2013
781,Revenue,CCHD,Bed Purchasing - Elderly - North,Nursing Homes,Fshc  1St Floor,1510, 06-Aug-2013
782,Revenue,CCHD,Bed Purchasing - Elderly - North,Residential Homes,Fshc  1St Floor,1246, 06-Aug-2013
783,Revenue,CCHD,Bed Purchasing - Elderly - North,Nursing Homes,Fshc  1St Floor,1370, 06-Aug-2013
784,Revenue,CCHD,Bed Purchasing - Frenchay Hospital,Nursing Homes,Fshc  1St Floor,1195.8, 06-Aug-2013
785,Revenue,CCHD,Bed Purchasing - Southmead Hospital,Nursing Homes,Fshc  1St Floor,1450.56, 06-Aug-2013
786,Revenue,CCHD,Bed Purchasing - Southmead Hospital,Nursing Homes,Fshc  1St Floor,588.96, 06-Aug-2013
787,Revenue,CCHD,Bed Purchasing - Southmead Hospital,Nursing Homes,Fshc  1St Floor,1546, 06-Aug-2013
788,Revenue,CCHD,Bed Purchasing - Elderly MH - South,Nursing Homes,Fshc  1St Floor,1327.8, 06-Aug-2013
789,Revenue,CCHD,Bed Purchasing - Frenchay Hospital,Residential Homes,Fshc  1St Floor,670.05, 06-Aug-2013
790,Revenue,CCHD,Bed Purchasing - Elderly - North,Residential Homes,Fshc  1St Floor,505.4, 06-Aug-2013
791,Revenue,CCHD,Bed purchasing - Elderly MH - North,Residential Homes,Fshc  1St Floor,1246, 06-Aug-2013
792,Revenue,CCHD,Bed Purchasing - Elderly - North,Nursing Homes,Fshc  1St Floor,1530.84, 06-Aug-2013
793,Revenue,CCHD,Bed purchasing - Elderly S117 - South,Nursing Homes,Fshc  1St Floor,1856, 06-Aug-2013
794,Revenue,CCHD,South Glos Users in South Glos Homes,Nursing Homes,Fshc  1St Floor,972.43, 06-Aug-2013
795,Revenue,CCHD,Bed purchasing - Elderly MH - North,Residential Homes,Fshc  1St Floor,1255.2, 06-Aug-2013
796,Revenue,CCHD,Bed Purchasing - Southmead Hospital,Residential Homes,Fshc  1St Floor,1246, 06-Aug-2013
797,Revenue,CCHD,Bed Purchasing - Elderly - North,Residential Homes,Fshc  1St Floor,1246, 06-Aug-2013
798,Revenue,CCHD,Bed Purchasing - Elderly - North,Nursing Homes,Fshc  1St Floor,1522, 06-Aug-2013
799,Revenue,CCHD,Bed purchasing - Elderly MH - North,Residential Homes,Fshc  1St Floor,1378.88, 06-Aug-2013
800,Revenue,CCHD,Bed Purchasing - Elderly - North,Nursing Homes,Fshc  1St Floor,1349.52, 06-Aug-2013
801,Revenue,CCHD,Bed Purchasing - Southmead Hospital,Nursing Homes,Fshc  1St Floor,1213.24, 06-Aug-2013
802,Revenue,CCHD,Bed purchasing - Elderly MH - North,Nursing Homes,Fshc  1St Floor,1048.64, 06-Aug-2013
803,Revenue,CCHD,South Glos Users in South Glos Homes,Nursing Homes,Fshc  1St Floor,784.21, 06-Aug-2013
804,Revenue,CCHD,Bed Purchasing - Elderly - North,Nursing Homes,Fshc  1St Floor,5122.74, 06-Aug-2013
805,Revenue,CCHD,Bed Purchasing - Elderly - North,Nursing Homes,Fshc  1St Floor,1370, 06-Aug-2013
806,Revenue,CCHD,Bed Purchasing - Elderly - North,Residential Homes,Fshc  1St Floor,1254, 06-Aug-2013
807,Revenue,CCHD,Bed Purchasing - Elderly - North,Nursing Homes,Fshc  1St Floor,1145.72, 06-Aug-2013
808,Revenue,CCHD,Bed Purchasing - Frenchay Hospital,Residential Homes,Fshc  1St Floor,1246, 06-Aug-2013
809,Revenue,CCHD,South Glos Users in South Glos Homes,Nursing Homes,Fshc  1St Floor,1254.74, 06-Aug-2013
810,Revenue,CCHD,Bed Purchasing - Frenchay Hospital,Nursing Homes,Fshc  1St Floor,1307.44, 06-Aug-2013
811,Revenue,CCHD,South Glos Users in South Glos Homes,Nursing Homes,Fshc  1St Floor,1941.07, 06-Aug-2013
812,Revenue,CCHD,South Glos Users in South Glos Homes,Nursing Homes,Fshc  1St Floor,1756.64, 06-Aug-2013
813,Revenue,CCHD,Bed Purchasing - Elderly - North,Nursing Homes,Fshc  1St Floor,1013.16, 06-Aug-2013
814,Revenue,CCHD,Bed Purchasing - Southmead Hospital,Nursing Homes,Fshc  1St Floor,1856, 06-Aug-2013
815,Revenue,CCHD,South Glos Users in South Glos Homes,Nursing Homes,Fshc  1St Floor,1050.85, 06-Aug-2013
816,Revenue,CCHD,South Glos Users in South Glos Homes,Nursing Homes,Fshc  1St Floor,2484.57, 06-Aug-2013
817,Revenue,CCHD,South Glos Users in South Glos Homes,Nursing Homes,Fshc  1St Floor,1427.27, 06-Aug-2013
818,Revenue,CCHD,Bed Purchasing - Frenchay Hospital,Nursing Homes,Fshc  1St Floor,1370, 06-Aug-2013
819,Revenue,CCHD,Bed Purchasing - Southmead Hospital,Nursing Homes,Fshc  1St Floor,592.56, 06-Aug-2013
820,Revenue,CCHD,Bed Purchasing - Elderly - North,Nursing Homes,Fshc  1St Floor,1071.64, 06-Aug-2013
821,Revenue,CCHD,Bed Purchasing - Frenchay Hospital,Nursing Homes,Fshc  1St Floor,1370, 06-Aug-2013
822,Revenue,CCHD,Bed Purchasing - Southmead Hospital,Nursing Homes,Fshc  1St Floor,754.48, 06-Aug-2013
823,Revenue,CCHD,Bed Purchasing - Elderly - North,Nursing Homes,Fshc  1St Floor,1379.28, 06-Aug-2013
824,Revenue,CCHD,Bed Purchasing - Frenchay Hospital,Nursing Homes,Fshc  1St Floor,1378, 06-Aug-2013
825,Revenue,CCHD,Bed Purchasing - Elderly - South,Nursing Homes,Fshc  1St Floor,1041.56, 06-Aug-2013
826,Revenue,CCHD,Bed Purchasing - Southmead Hospital,Nursing Homes,Fshc  1St Floor,1292.6, 06-Aug-2013
827,Revenue,CCHD,Bed Purchasing - Elderly - North,Nursing Homes,Fshc  1St Floor,1249.04, 06-Aug-2013
828,Revenue,CCHD,Bed Purchasing - Southmead Hospital,Nursing Homes,Fshc  1St Floor,1370, 06-Aug-2013
829,Revenue,CCHD,Bed Purchasing - Elderly - South,Nursing Homes,Fshc  1St Floor,5212.5, 06-Aug-2013
830,Revenue,CCHD,Bed Purchasing - Elderly - South,Nursing Homes,Fshc  1St Floor,1771.26, 06-Aug-2013
831,Revenue,CCHD,Bed Purchasing - Elderly - South,Nursing Homes,Fshc  1St Floor,1390, 06-Aug-2013
832,Revenue,CCHD,Bed Purchasing - Southmead Hospital,Nursing Homes,Fshc  1St Floor,600.74, 06-Aug-2013
833,Revenue,CCHD,Bed Purchasing - Frenchay Hospital,Nursing Homes,Fshc  1St Floor,1336.6, 06-Aug-2013
834,Revenue,CCHD,Bed Purchasing - Southmead Hospital,Nursing Homes,Fshc  1St Floor,1344.2, 06-Aug-2013
835,Revenue,CCHD,Bed Purchasing - Elderly - North,Residential Homes,Fshc  1St Floor,10768.44, 06-Aug-2013
836,Revenue,CCHD,Bed purchasing - Phys Dis - North,Nursing Homes,Fshc  1St Floor,1248.32, 06-Aug-2013
837,Revenue,CCHD,Bed Purchasing - Frenchay Hospital,Nursing Homes,Fshc  1St Floor,1578.48, 06-Aug-2013
838,Revenue,CCHD,Bed purchasing - Phys Dis - North,Nursing Homes,Fshc  1St Floor,1376.28, 06-Aug-2013
839,Revenue,CCHD,Bed Purchasing - Elderly - South,Nursing Homes,Fshc  1St Floor,1224.64, 06-Aug-2013
840,Revenue,CCHD,South Glos Users in South Glos Homes,Nursing Homes,Fshc  1St Floor,1474.32, 06-Aug-2013
841,Revenue,CCHD,Bed Purchasing - Southmead Hospital,Nursing Homes,Fshc  1St Floor,1370, 06-Aug-2013
842,Revenue,CCHD,Bed Purchasing - Elderly - North,Residential Homes,Fshc  1St Floor,4478.57, 06-Aug-2013
843,Revenue,CCHD,Bed Purchasing - Elderly - North,Residential Homes,Fshc  1St Floor,1438, 06-Aug-2013
844,Revenue,CCHD,Bed Purchasing - Elderly - North,Residential Homes,Fshc  1St Floor,667.65, 06-Aug-2013
845,Revenue,CCHD,Bed Purchasing - Southmead Hospital,Nursing Homes,Fshc  1St Floor,1298.96, 06-Aug-2013
846,Revenue,CCHD,Bed Purchasing - Elderly MH - South,Residential Homes,Fshc  1St Floor,3831.2, 06-Aug-2013
847,Revenue,CCHD,Bed Purchasing - Elderly MH - South,Residential Homes,Fshc  1St Floor,1822.5, 06-Aug-2013
848,Revenue,CCHD,Bed Purchasing - Frenchay Hospital,Nursing Homes,Fshc  1St Floor,1359.08, 06-Aug-2013
849,Revenue,CCHD,South Glos Users in South Glos Homes,Nursing Homes,Fshc  1St Floor,1756.64, 06-Aug-2013
850,Revenue,CCHD,Bed Purchasing - Frenchay Hospital,Nursing Homes,Fshc  1St Floor,1293.56, 06-Aug-2013
851,Revenue,CCHD,Bed Purchasing - Southmead Hospital,Residential Homes,Fshc  1St Floor,1466, 06-Aug-2013
852,Revenue,CCHD,Bed Purchasing - Elderly - South,Residential Homes,Fshc  1St Floor,1399.72, 06-Aug-2013
853,Revenue,CCHD,Bed Purchasing - Elderly - North,Residential Homes,Fshc  1St Floor,1160.96, 06-Aug-2013
854,Revenue,CCHD,Bed Purchasing - Elderly - North,Nursing Homes,Fshc  1St Floor,1370, 06-Aug-2013
855,Revenue,CCHD,Bed Purchasing - Frenchay Hospital,Nursing Homes,Fshc  1St Floor,1230.52, 06-Aug-2013
856,Revenue,CCHD,South Glos Users in South Glos Homes,Nursing Homes,Fshc  1St Floor,1615.48, 06-Aug-2013
857,Revenue,CCHD,Bed purchasing - Elderly MH - North,Residential Homes,Fshc  1St Floor,1438, 06-Aug-2013
858,Revenue,CCHD,Bed Purchasing - Frenchay Hospital,Residential Homes,Fshc  1St Floor,1438, 06-Aug-2013
859,Revenue,CCHD,South Glos Users in South Glos Homes,Nursing Homes,Fshc  1St Floor,1458.64, 06-Aug-2013
860,Revenue,CCHD,Bed purchasing - Elderly PWLD - South,Residential Homes,Fshc  1St Floor,1246, 06-Aug-2013
861,Revenue,CCHD,Bed Purchasing - Frenchay Hospital,Nursing Homes,Fshc  1St Floor,1370, 06-Aug-2013
862,Revenue,CCHD,Bed Purchasing - Southmead Hospital,Nursing Homes,Fshc  1St Floor,1101.08, 06-Aug-2013
863,Revenue,CCHD,Bed Purchasing - Elderly - South,Nursing Homes,Fshc  1St Floor,1294.68, 06-Aug-2013
864,Revenue,CCHD,Bed Purchasing - Elderly - North,Residential Homes,Fshc  1St Floor,1179.92, 06-Aug-2013
865,Revenue,CCHD,Bed Purchasing - Frenchay Hospital,Nursing Homes,Fshc  1St Floor,1370, 06-Aug-2013
866,Revenue,CCHD,South Glos Users in South Glos Homes,Nursing Homes,Fshc  1St Floor,1286.11, 06-Aug-2013
867,Revenue,CCHD,South Glos Users in South Glos Homes,Nursing Homes,Fshc  1St Floor,1474.32, 06-Aug-2013
868,Revenue,CCHD,Bed Purchasing - Frenchay Hospital,Nursing Homes,Fshc  1St Floor,1370, 06-Aug-2013
869,Revenue,CCHD,Bed Purchasing - Southmead Hospital,Nursing Homes,Fshc  1St Floor,957.12, 06-Aug-2013
870,Revenue,CCHD,Bed Purchasing - Elderly - South,Residential Homes,Fshc  1St Floor,816.56, 06-Aug-2013
871,Revenue,CCHD,Bed Purchasing - Southmead Hospital,Residential Homes,Fshc  1St Floor,1397.16, 06-Aug-2013
872,Revenue,CCHD,Bed Purchasing - Southmead Hospital,Residential Homes,Fshc  1St Floor,1453.28, 06-Aug-2013
873,Revenue,CCHD,Bed Purchasing - Elderly - South,Nursing Homes,Fshc  1St Floor,941.76, 06-Aug-2013
874,Revenue,CCHD,Bed purchasing - Elderly S117 - South,Nursing Homes,Fshc  1St Floor,1856, 06-Aug-2013
875,Revenue,CCHD,Bed Purchasing - Frenchay Hospital,Residential Homes,Fshc  1St Floor,1107.56, 06-Aug-2013
876,Revenue,CCHD,Bed Purchasing - Southmead Hospital,Residential Homes,Fshc  1St Floor,1331.76, 06-Aug-2013
877,Revenue,CCHD,Bed Purchasing - Southmead Hospital,Nursing Homes,Fshc  1St Floor,1180.56, 06-Aug-2013
878,Revenue,CCHD,Bed Purchasing - Elderly - North,Residential Homes,Fshc  1St Floor,1199.92, 06-Aug-2013
879,Revenue,CCHD,Bed Purchasing - Southmead Hospital,Nursing Homes,Fshc  1St Floor,4403.58, 06-Aug-2013
880,Revenue,CCHD,Bed Purchasing - Southmead Hospital,Nursing Homes,Fshc  1St Floor,1370, 06-Aug-2013
881,Revenue,CCHD,Bed Purchasing - Frenchay Hospital,Nursing Homes,Fshc  1St Floor,1109.92, 06-Aug-2013
882,Revenue,CCHD,Bed Purchasing - Southmead Hospital,Nursing Homes,Fshc  1St Floor,3816.42, 06-Aug-2013
883,Revenue,CCHD,Bed Purchasing - Frenchay Hospital,Nursing Homes,Fshc  1St Floor,956.08, 06-Aug-2013
884,Revenue,CCHD,Bed Purchasing - Southmead Hospital,Nursing Homes,Fshc  1St Floor,15723.43, 06-Aug-2013
885,Revenue,CCHD,Bed Purchasing - Frenchay Hospital,Nursing Homes,Fshc  1St Floor,1117.88, 06-Aug-2013
886,Revenue,CCHD,Bed Purchasing - Frenchay Hospital,Nursing Homes,Fshc  1St Floor,1030.08, 06-Aug-2013
887,Revenue,CCHD,Bed Purchasing - Frenchay Hospital,Nursing Homes,Fshc  1St Floor,1060.28, 06-Aug-2013
888,Revenue,CCHD,Bed Purchasing - Southmead Hospital,Nursing Homes,Fshc  1St Floor,870.76, 06-Aug-2013
889,Revenue,CCHD,Bed Purchasing - Southmead Hospital,Nursing Homes,Fshc  1St Floor,739.04, 06-Aug-2013
890,Revenue,CCHD,Bed Purchasing - Southmead Hospital,Residential Homes,Fshc  1St Floor,1246, 06-Aug-2013
891,Revenue,CCHD,Bed Purchasing - Frenchay Hospital,Nursing Homes,Fshc  1St Floor,1410, 06-Aug-2013
892,Revenue,CCHD,Bed Purchasing - Elderly - North,Nursing Homes,Fshc  1St Floor,1276.2, 06-Aug-2013
893,Revenue,CCHD,Bed purchasing - Phys Dis - North,Nursing Homes,Fshc  1St Floor,840.44, 06-Aug-2013
894,Revenue,CCHD,Bed Purchasing - Frenchay Hospital,Nursing Homes,Fshc  1St Floor,1302, 06-Aug-2013
895,Revenue,CCHD,Bed purchasing - Elderly MH - North,Nursing Homes,Fshc  1St Floor,858.48, 06-Aug-2013
896,Revenue,CCHD,Bed purchasing - Elderly S117 - South,Nursing Homes,Fshc  1St Floor,1964, 06-Aug-2013
897,Revenue,CCHD,Bed Purchasing - Frenchay Hospital,Nursing Homes,Fshc  1St Floor,1080.28, 06-Aug-2013
898,Revenue,CCHD,Bed Purchasing - Frenchay Hospital,Nursing Homes,Fshc  1St Floor,951.24, 06-Aug-2013
899,Revenue,CCHD,Bed Purchasing - Elderly - North,Residential Homes,Fshc  1St Floor,1414, 06-Aug-2013
900,Revenue,CCHD,Bed Purchasing - Frenchay Hospital,Nursing Homes,Fshc  1St Floor,1097.04, 06-Aug-2013
901,Revenue,CCHD,Bed Purchasing - Elderly - South,Residential Homes,Fshc  1St Floor,6005.99, 06-Aug-2013
902,Revenue,CCHD,Alexandra Way,Prop.Serv. General Repairs,Geoff Lewis Flooring Limited,720, 02-Aug-2013
903,Revenue,CCHD,Alexandra Way,Prop.Serv. General Repairs,George Grimes,1250, 29-Aug-2013
904,Revenue,CCHD,Alexandra Way,Prop.Serv. General Repairs,George Grimes,937, 07-Aug-2013
905,Revenue,CCHD,Section 117 Placements MH Younger,Residential Homes,Gladstone House,2721.88, 06-Aug-2013
906,Revenue,CCHD,Bed Purchasing - Under 65s PWLD - South,Residential Homes,Glasallt Fawr,4547.84, 06-Aug-2013
907,Revenue,CCHD,Bed purchasing - Elderly PWLD - South,Residential Homes,Glebe House Nursing Home,3391.29, 06-Aug-2013
908,Revenue,CCHD,Bed purchasing - Elderly MH - North,Nursing Homes,Glebe House Nursing Home,655.56, 06-Aug-2013
909,Revenue,CCHD,Bed purchasing - Elderly MH - North,Residential Homes,Glebe House Nursing Home,2007.6, 06-Aug-2013
910,Revenue,CCHD,Bed Purchasing - Frenchay Hospital,Nursing Homes,Glebe House Nursing Home,1003.08, 06-Aug-2013
911,Revenue,CCHD,South Glos Users in South Glos Homes,Nursing Homes,Glebe House Nursing Home,831.27, 06-Aug-2013
912,Revenue,CCHD,South Glos Users in South Glos Homes,Nursing Homes,Glebe House Nursing Home,1756.64, 06-Aug-2013
913,Revenue,CCHD,Bed Purchasing - Elderly - South,Residential Homes,Glebe House Nursing Home,1977.76, 06-Aug-2013
914,Revenue,CCHD,Bed Purchasing - Elderly - North,Residential Homes,Glebe House Nursing Home,2551.92, 06-Aug-2013
915,Revenue,CCHD,Bed Purchasing - Under 65s PWLD - South,Residential Homes,Gordena Care Home,2082.36, 06-Aug-2013
916,Revenue,CCHD,Bed purchasing - Elderly PWLD - South,Residential Homes,Gordena Care Home,4732.4, 06-Aug-2013
917,Revenue,CCHD,Bed purchasing - Elderly PWLD - South,Residential Homes,Gordena Care Home,3116.24, 06-Aug-2013
918,Revenue,CCHD,Bed purchasing - Elderly PWLD - South,Residential Homes,Gordena Care Home,2927.44, 06-Aug-2013
919,Revenue,CCHD,Bed Purchasing - Under 65s PWLD - South,Residential Homes,Gordena Care Home,1907.6, 06-Aug-2013
920,Revenue,CCHD,Bed Purchasing - Under 65s PWLD - South,Residential Homes,Gordena Care Limited,4158.56, 06-Aug-2013
921,Revenue,CCHD,Bed purchasing - S28A Under 65 - South,Residential Homes,Gordena Care Limited,4055.8, 06-Aug-2013
922,Revenue,CCHD,Bed purchasing - Under 65s PWLD - North,Residential Homes,Gordena Care Limited,4160, 06-Aug-2013
923,Revenue,CCHD,Bed Purchasing - Elderly - North,Residential Homes,Greensleeves,1312.68, 06-Aug-2013
924,Revenue,CCHD,Bed Purchasing - Elderly - South,Residential Homes,Gwendoline House,1490.04, 06-Aug-2013
925,Revenue,CCHD,Bed Purchasing - Elderly - South,Residential Homes,Gwendoline House,1164.96, 06-Aug-2013
926,Revenue,CCHD,Bed Purchasing - Elderly - South,Residential Homes,Gwendoline House,2003.25, 06-Aug-2013
927,Revenue,CCHD,Bed Purchasing - Elderly - North,Residential Homes,Gwendoline House,3143.63, 06-Aug-2013
928,Revenue,CCHD,Bed Purchasing - Elderly MH - South,Residential Homes,Gwendoline House,1284.64, 06-Aug-2013
929,Revenue,CCHD,Bed Purchasing - Southmead Hospital,Residential Homes,Gwendoline House,1686.64, 06-Aug-2013
930,Revenue,CCHD,Bed Purchasing - Elderly - South,Residential Homes,Gwendoline House,1128.52, 06-Aug-2013
931,Revenue,CCHD,Supporting People Programme,Grants to Voluntary Bodies,Habinteg Housing Association,1338.75, 01-Aug-2013
932,Revenue,CCHD,Supporting People Programme,Grants to Voluntary Bodies,Habinteg Housing Association,1338.75, 30-Aug-2013
933,Revenue,CCHD,Bed Purchasing - Elderly - South,Residential Homes,Harefield Hall,1327.24, 06-Aug-2013
934,Revenue,CCHD,Bed Purchasing - Elderly - South,Residential Homes,Harefield Hall,1112.96, 06-Aug-2013
935,Revenue,CCHD,Bed Purchasing - Elderly - South,Residential Homes,Harefield Hall,1778.56, 06-Aug-2013
936,Revenue,CCHD,Bed Purchasing - Elderly MH - South,Residential Homes,Harefield Hall,1030.52, 06-Aug-2013
937,Revenue,CCHD,Alexandra Way,Premises Maintenance by Contractor,Harvey Servicing & Engineering Limited,810, 13-Aug-2013
938,Revenue,CCHD,Woodleaze,Equipment Maintenance,Harvey Servicing & Engineering Limited,495, 16-Aug-2013
939,Revenue,CCHD,Bed Purchasing - Southmead Hospital,Nursing Homes,Haven Lodge,1382.28, 06-Aug-2013
940,Revenue,CCHD,Bed Purchasing - Southmead Hospital,Nursing Homes,Hc-One Ltd,1613.52, 06-Aug-2013
941,Revenue,CCHD,Bed Purchasing - Elderly - North,Nursing Homes,Hc-One Ltd,1469.6, 06-Aug-2013
942,Revenue,CCHD,Bed Purchasing - Elderly - North,Nursing Homes,Hc-One Ltd,971.48, 06-Aug-2013
943,Revenue,CCHD,Bed Purchasing - Elderly - North,Nursing Homes,Hc-One Ltd,1499.04, 06-Aug-2013
944,Revenue,CCHD,Bed purchasing - Elderly PWLD - South,Nursing Homes,Hc-One Ltd,1929.96, 06-Aug-2013
945,Revenue,CCHD,Bed purchasing - Elderly MH - North,Nursing Homes,Hc-One Ltd,1478, 06-Aug-2013
946,Revenue,CCHD,Bed purchasing - Elderly MH - North,Nursing Homes,Hc-One Ltd,1229.12, 06-Aug-2013
947,Revenue,CCHD,Bed Purchasing - Frenchay Hospital,Nursing Homes,Hc-One Ltd,1471.16, 06-Aug-2013
948,Revenue,CCHD,Bed Purchasing - Elderly - South,Nursing Homes,Hc-One Ltd,1146.88, 06-Aug-2013
949,Revenue,CCHD,Bed purchasing - Elderly MH - North,Nursing Homes,Hc-One Ltd,5542.5, 06-Aug-2013
950,Revenue,CCHD,Bed purchasing - Elderly MH - North,Nursing Homes,Hc-One Ltd,1478, 06-Aug-2013
951,Revenue,CCHD,Bed Purchasing - Elderly S117- North,Nursing Homes,Hc-One Ltd,1947.72, 06-Aug-2013
952,Revenue,CCHD,Bed Purchasing - Frenchay Hospital,Residential Homes,Hc-One Ltd,1489.64, 06-Aug-2013
953,Revenue,CCHD,Bed Purchasing - Frenchay Hospital,Residential Homes,Hc-One Ltd,1109.7, 06-Aug-2013
954,Revenue,CCHD,Day Care - North,Private & Voluntary Day Care,Headway Bristol,1284.18, 13-Aug-2013
955,Revenue,CCHD,Tenancy Start Up Scheme,Other Supplies & Services,Heron Way Agencies Limited,1170, 08-Aug-2013
956,Revenue,CCHD,Bed Purchasing - Southmead Hospital,Residential Homes,High Border Lodge,1524.2, 06-Aug-2013
957,Revenue,CCHD,Bed Purchasing - Southmead Hospital,Residential Homes,Highgate Studios,2333.68, 06-Aug-2013
958,Revenue,CCHD,Bed purchasing - Under 65s PWLD - North,Residential Homes,Holmleigh Care Homes Ltd,4000.16, 06-Aug-2013
959,Revenue,CCHD,Bed Purchasing - Under 65s PWLD - South,Residential Homes,Holmleigh Care Homes Ltd,5027.72, 06-Aug-2013
960,Revenue,CCHD,South Glos Users in South Glos Homes,Nursing Homes,Holmwood House,1756.64, 06-Aug-2013
961,Revenue,CCHD,South Glos Users in South Glos Homes,Nursing Homes,Holmwood House,842.9, 06-Aug-2013
962,Revenue,CCHD,Bed Purchasing - Southmead Hospital,Nursing Homes,Holmwood House,836, 06-Aug-2013
963,Revenue,CCHD,Bed purchasing - Under 65s PWLD - North,Residential Homes,Home Farm Trust Ltd  5-6 Brook Office Pa,2810.04, 06-Aug-2013
964,Revenue,CCHD,Bed purchasing - Elderly PWLD - South,Residential Homes,Home Farm Trust Ltd  5-6 Brook Office Pa,5050.32, 06-Aug-2013
965,Revenue,CCHD,Bed purchasing - Under 65s PWLD - North,Residential Homes,Home Farm Trust Ltd  5-6 Brook Office Pa,3396, 06-Aug-2013
966,Revenue,CCHD,Bed Purchasing - Under 65s PWLD - South,Residential Homes,Home Farm Trust Ltd  5-6 Brook Office Pa,4505.04, 06-Aug-2013
967,Revenue,CCHD,Bed purchasing - Under 65s PWLD - North,Residential Homes,Home From Home Care Ltd,8857.52, 06-Aug-2013
968,Revenue,CCHD,Bed purchasing - Under 65s PWLD - North,Residential Homes,Homes Caring For Autism Ltd  Churchill H,9755.64, 06-Aug-2013
969,Revenue,CCHD,Bed Purchasing - Under 65s PWLD - South,Residential Homes,Homes Caring For Autism Ltd  Churchill H,12715.92, 06-Aug-2013
970,Revenue,CCHD,Bed purchasing - Under 65s PWLD - North,Residential Homes,Homes Caring For Autism Ltd  Churchill H,12410, 06-Aug-2013
971,Revenue,CCHD,Bed Purchasing - Elderly - South,Nursing Homes,Horfield Care Limited,4068.35, 19-Aug-2013
972,Revenue,CCHD,Bed Purchasing - Elderly - North,Nursing Homes,Horfield Care Limited,3283.65, 19-Aug-2013
973,Revenue,CCHD,Bed Purchasing - Frenchay Hospital,Nursing Homes,Horfield Care Limited,1483.39, 19-Aug-2013
974,Revenue,CCHD,Bed Purchasing - Southmead Hospital,Nursing Homes,Horfield Care Limited,10546.19, 19-Aug-2013
975,Revenue,CCHD,Bed Purchasing - Elderly - South,Nursing Homes,Horfield Care Limited,3937.11, 19-Aug-2013
976,Revenue,CCHD,Bed Purchasing - Elderly - North,Nursing Homes,Horfield Care Limited,3177.73, 19-Aug-2013
977,Revenue,CCHD,Bed Purchasing - Frenchay Hospital,Nursing Homes,Horfield Care Limited,1435.54, 19-Aug-2013
978,Revenue,CCHD,Bed Purchasing - Southmead Hospital,Nursing Homes,Horfield Care Limited,8891.07, 19-Aug-2013
979,Revenue,CCHD,Supporting People Programme,Grants to Voluntary Bodies,Housing 21,607.38, 01-Aug-2013
980,Revenue,CCHD,Supporting People Programme,Grants to Voluntary Bodies,Housing 21,921.33, 01-Aug-2013
981,Revenue,CCHD,Supporting People Programme,Grants to Voluntary Bodies,Housing 21,607.38, 30-Aug-2013
982,Revenue,CCHD,Supporting People Programme,Grants to Voluntary Bodies,Housing 21,921.33, 30-Aug-2013
983,Revenue,CCHD,Home Care - Elderly - North,Private & Voluntary Home Care,Housing 21,37028.34, 09-Aug-2013
984,Revenue,CCHD,Home Care - Elderly - South,Private & Voluntary Home Care,Housing 21,23516.42, 01-Aug-2013
985,Revenue,CCHD,Home Care - Elderly - South,Private & Voluntary Home Care,Housing 21,23516.42, 30-Aug-2013
986,Revenue,CCHD,Care Management Team - South,Agency Staff (Operational)/PCT Pay,IPE,3002.31, 15-Aug-2013
987,Revenue,CCHD,Social Lettings Agency,Fees - General,Individual,11.6, 09-Aug-2013
988,Revenue,CCHD,Social Lettings Agency,Other Supplies & Services,Individual,655.41, 09-Aug-2013
989,Revenue,CCHD,Bed Purchasing - Southmead Hospital,Nursing Homes,Jasmine Court,1227.24, 06-Aug-2013
990,Revenue,CCHD,Tenancy Start Up Scheme,Other Supplies & Services,Individual,1250, 06-Aug-2013
991,Revenue,CCHD,Homeless - Private Sector Leasing,Other Supplies & Services,Jill Collins,594, 15-Aug-2013
992,Revenue,CCHD,Bed Purchasing - Under 65s PWLD - South,Residential Homes,Julia Simone- Supp. Ind.,3562.32, 06-Aug-2013
993,Revenue,CCHD,Bed purchasing -S28A  Under 65 - North,Residential Homes,Julia Simone- Supp. Ind.,3443.08, 06-Aug-2013
994,Revenue,CCHD,Bed Purchasing - Under 65s PWLD - South,Nursing Homes,K3 The Park Centre,4962.92, 06-Aug-2013
995,Revenue,CCHD,Bed Purchasing - S28A - Over 65- North,Residential Homes,K3 The Park Centre,3054.48, 06-Aug-2013
996,Revenue,CCHD,Bed Purchasing - Under 65s PWLD - South,Residential Homes,K3 The Park Centre,10194.14, 06-Aug-2013
997,Revenue,CCHD,Bed Purchasing - Under 65s PWLD - South,Residential Homes,K3 The Park Centre,3976.8, 06-Aug-2013
998,Revenue,CCHD,Bed purchasing - Elderly PWLD - South,Residential Homes,K3 The Park Centre,3412.04, 06-Aug-2013
999,Revenue,CCHD,Bed Purchasing - LD S28A- Over 65- South,Nursing Homes,K3 The Park Centre,4967.57, 06-Aug-2013
1000,Revenue,CCHD,Bed Purchasing - LD S28A- Over 65- South,Nursing Homes,K3 The Park Centre,4486.84, 06-Aug-2013
1001,Revenue,CCHD,Bed purchasing - Elderly PWLD - South,Nursing Homes,K3 The Park Centre,1088.33, 06-Aug-2013
1002,Revenue,CCHD,Bed Purchasing - Under 65s PWLD - South,Nursing Homes,K3 The Park Centre,4962.92, 06-Aug-2013
1003,Revenue,CCHD,Bed purchasing - S28A Under 65 - South,Nursing Homes,K3 The Park Centre,5280.52, 06-Aug-2013
1004,Revenue,CCHD,Bed purchasing - S28A Under 65 - South,Residential Homes,K3 The Park Centre,4832.6, 06-Aug-2013
1005,Revenue,CCHD,Bed purchasing - S28A Under 65 - South,Nursing Homes,K3 The Park Centre,5280.52, 06-Aug-2013
1006,Revenue,CCHD,Bed Purchasing - LD S28A- Over 65- South,Nursing Homes,K3 The Park Centre,5109.72, 06-Aug-2013
1007,Revenue,CCHD,Bed Purchasing - LD S28A- Over 65- South,Nursing Homes,K3 The Park Centre,4777.8, 06-Aug-2013
1008,Revenue,CCHD,Bed Purchasing - Under 65s PWLD - South,Residential Homes,K3 The Park Centre,3225.28, 06-Aug-2013
1009,Revenue,CCHD,Bed Purchasing - S28A - Over 65- North,Nursing Homes,K3 The Park Centre,4742.68, 06-Aug-2013
1010,Revenue,CCHD,Bed purchasing - S28A Under 65 - South,Residential Homes,K3 The Park Centre,5126.44, 06-Aug-2013
1011,Revenue,CCHD,Bed purchasing - S28A Under 65 - South,Residential Homes,K3 The Park Centre,5181.28, 06-Aug-2013
1012,Revenue,CCHD,Bed Purchasing - S28A - Over 65- North,Residential Homes,K3 The Park Centre,10838.48, 06-Aug-2013
1013,Revenue,CCHD,Bed purchasing - S28A Under 65 - South,Nursing Homes,K3 The Park Centre,5280.52, 06-Aug-2013
1014,Revenue,CCHD,Bed purchasing - S28A Under 65 - South,Nursing Homes,K3 The Park Centre,5280.52, 06-Aug-2013
1015,Revenue,CCHD,Bed purchasing -S28A  Under 65 - North,Nursing Homes,K3 The Park Centre,4712.96, 06-Aug-2013
1016,Revenue,CCHD,Bed purchasing - S28A Under 65 - South,Residential Homes,K3 The Park Centre,5181.28, 06-Aug-2013
1017,Revenue,CCHD,Bed Purchasing - LD S28A- Over 65- South,Residential Homes,K3 The Park Centre,4681.52, 06-Aug-2013
1018,Revenue,CCHD,Bed Purchasing - Under 65s PWLD - South,Residential Homes,K3 The Park Centre,15222.85, 06-Aug-2013
1019,Revenue,CCHD,Bed Purchasing - Elderly - South,Residential Homes,Karenza Ltd,1732, 06-Aug-2013
1020,Revenue,CCHD,Bed Purchasing - Elderly - South,Residential Homes,Kenver House Residential Home,1545.64, 06-Aug-2013
1021,Revenue,CCHD,Bed purchasing - Elderly S117 - South,Residential Homes,Kenver House Residential Home,1897.08, 06-Aug-2013
1022,Revenue,CCHD,Bed Purchasing - Frenchay Hospital,Residential Homes,Kenver House Residential Home,2135.28, 06-Aug-2013
1023,Revenue,CCHD,Bed Purchasing - Frenchay Hospital,Residential Homes,Kenver House Residential Home,1647.2, 06-Aug-2013
1024,Revenue,CCHD,Bed Purchasing - Elderly - South,Residential Homes,Kenver House Residential Home,2135.28, 06-Aug-2013
1025,Revenue,CCHD,Bed Purchasing - Elderly - South,Residential Homes,Kenver House Residential Home,1120.88, 06-Aug-2013
1026,Revenue,CCHD,Section 117 Placements MH Younger,Residential Homes,Kenver House Residential Home,1900, 06-Aug-2013
1027,Revenue,CCHD,Bed Purchasing - Elderly MH - South,Residential Homes,Kenver House Residential Home,1285.96, 06-Aug-2013
1028,Revenue,CCHD,Bed Purchasing - Elderly S117- North,Residential Homes,Kenver House Residential Home,1900, 06-Aug-2013
1029,Revenue,CCHD,Bed Purchasing - Elderly - South,Residential Homes,Kenver House Residential Home,1649.28, 06-Aug-2013
1030,Revenue,CCHD,Bed Purchasing - Frenchay Hospital,Residential Homes,Kenver House Residential Home,1527.1, 06-Aug-2013
1031,Revenue,CCHD,Bed Purchasing - Elderly - South,Residential Homes,Kenver House Residential Home,1576.4, 06-Aug-2013
1032,Revenue,CCHD,Bed Purchasing - Frenchay Hospital,Residential Homes,Kenver House Residential Home,2059, 06-Aug-2013
1033,Revenue,CCHD,Bed Purchasing - Southmead Hospital,Residential Homes,Kenver House Residential Home,1649.2, 06-Aug-2013
1034,Revenue,CCHD,Bed Purchasing - Elderly MH - South,Residential Homes,Kenver House Residential Home,1182.52, 06-Aug-2013
1035,Revenue,CCHD,Bed Purchasing - Elderly MH - South,Residential Homes,Kenver House Residential Home,1167.92, 06-Aug-2013
1036,Revenue,CCHD,Bed Purchasing - Elderly - South,Residential Homes,Kenver House Residential Home,1497.08, 06-Aug-2013
1037,Revenue,CCHD,Bed Purchasing - Frenchay Hospital,Residential Homes,Kenver House Residential Home,1574.12, 06-Aug-2013
1038,Revenue,CCHD,Bed Purchasing - Frenchay Hospital,Residential Homes,Kenver House Residential Home,1539.76, 06-Aug-2013
1039,Revenue,CCHD,Supporting People Programme,Grants to Voluntary Bodies,Keyring Living Support Networks,2874.42, 01-Aug-2013
1040,Revenue,CCHD,Supporting People Programme,Grants to Voluntary Bodies,Keyring Living Support Networks,2874.42, 30-Aug-2013
1041,Revenue,CCHD,Public Health - Admin,Other Supplies & Services,Kingswood Health Centre,600, 06-Aug-2013
1042,Revenue,CCHD,Public Health - Admin,Other Supplies & Services,Kingswood Health Centre,600, 06-Aug-2013
1043,Revenue,CCHD,Public Health - Admin,Other Supplies & Services,Kingswood Health Centre,750, 06-Aug-2013
1044,Revenue,CCHD,Supporting People Programme,Grants to Voluntary Bodies,Kingswood Young Homeless Project,17289.42, 01-Aug-2013
1045,Revenue,CCHD,Supporting People Programme,Grants to Voluntary Bodies,Kingswood Young Homeless Project,17289.42, 30-Aug-2013
1046,Revenue,CCHD,Bed purchasing - Under 65s PWLD - North,Residential Homes,Kisimul Group,11223.12, 06-Aug-2013
1047,Revenue,CCHD,Supporting People Programme,Grants to Voluntary Bodies,Knightstone Housing Association Limited,13316.58, 01-Aug-2013
1048,Revenue,CCHD,Supporting People Programme,Grants to Voluntary Bodies,Knightstone Housing Association Limited,8413.33, 01-Aug-2013
1049,Revenue,CCHD,Supporting People Programme,Grants to Voluntary Bodies,Knightstone Housing Association Limited,7491.58, 01-Aug-2013
1050,Revenue,CCHD,Supporting People Programme,Grants to Voluntary Bodies,Knightstone Housing Association Limited,1883.92, 01-Aug-2013
1051,Revenue,CCHD,Supporting People Programme,Grants to Voluntary Bodies,Knightstone Housing Association Limited,2446.5, 01-Aug-2013
1052,Revenue,CCHD,Supporting People Programme,Grants to Voluntary Bodies,Knightstone Housing Association Limited,2447.08, 01-Aug-2013
1053,Revenue,CCHD,Supporting People Programme,Grants to Voluntary Bodies,Knightstone Housing Association Limited,1189.08, 01-Aug-2013
1054,Revenue,CCHD,Supporting People Programme,Grants to Voluntary Bodies,Knightstone Housing Association Limited,2194.67, 01-Aug-2013
1055,Revenue,CCHD,Supporting People Programme,Grants to Voluntary Bodies,Knightstone Housing Association Limited,13316.58, 30-Aug-2013
1056,Revenue,CCHD,Supporting People Programme,Grants to Voluntary Bodies,Knightstone Housing Association Limited,8413.33, 30-Aug-2013
1057,Revenue,CCHD,Supporting People Programme,Grants to Voluntary Bodies,Knightstone Housing Association Limited,7491.58, 30-Aug-2013
1058,Revenue,CCHD,Supporting People Programme,Grants to Voluntary Bodies,Knightstone Housing Association Limited,1883.92, 30-Aug-2013
1059,Revenue,CCHD,Supporting People Programme,Grants to Voluntary Bodies,Knightstone Housing Association Limited,2446.5, 30-Aug-2013
1060,Revenue,CCHD,Supporting People Programme,Grants to Voluntary Bodies,Knightstone Housing Association Limited,2447.08, 30-Aug-2013
1061,Revenue,CCHD,Supporting People Programme,Grants to Voluntary Bodies,Knightstone Housing Association Limited,1189.08, 30-Aug-2013
1062,Revenue,CCHD,Supporting People Programme,Grants to Voluntary Bodies,Knightstone Housing Association Limited,2194.67, 30-Aug-2013
1063,Revenue,CCHD,Home Care - Elderly - South,Other Small Contracts,Kumari Care Limited,4153.36, 02-Aug-2013
1064,Revenue,CCHD,Home Care - Elderly - North,Other Small Contracts,Kumari Care Limited,833.86, 02-Aug-2013
1065,Revenue,CCHD,Day Care - South,Private & Voluntary Day Care,Kumari Care Limited,165.98, 02-Aug-2013
1066,Revenue,CCHD,Under 65s -MH  Home Care Purch,Other Small Contracts,Kumari Care Limited,254.76, 02-Aug-2013
1067,Revenue,CCHD,Home Care - Elderly - South,Other Small Contracts,Kumari Care Limited,3570.5, 23-Aug-2013
1068,Revenue,CCHD,Home Care - Elderly - North,Other Small Contracts,Kumari Care Limited,834.41, 23-Aug-2013
1069,Revenue,CCHD,Day Care - South,Private & Voluntary Day Care,Kumari Care Limited,169.84, 23-Aug-2013
1070,Revenue,CCHD,Under 65s -MH  Home Care Purch,Other Small Contracts,Kumari Care Limited,254.76, 23-Aug-2013
1071,Revenue,CCHD,Management & Support costs,Other Supplies & Services,Laing & Buisson (Publications) Limited,460, 13-Aug-2013
1072,Revenue,CCHD,Social Lettings Agency,Fees - General,Individual,10, 07-Aug-2013
1073,Revenue,CCHD,Social Lettings Agency,Other Supplies & Services,Individual,565, 07-Aug-2013
1074,Revenue,CCHD,Social Lettings Agency,Fees - General,Individual,10, 16-Aug-2013
1075,Revenue,CCHD,Social Lettings Agency,Other Supplies & Services,Individual,565, 16-Aug-2013
1076,Revenue,CCHD,Bed purchasing - Phys Dis - North,Nursing Homes,Leonard Cheshire  National Account Centr,4963.04, 06-Aug-2013
1077,Revenue,CCHD,Bed purchasing - Phys Dis - North,Residential Homes,Leonard Cheshire  National Account Centr,2868.88, 06-Aug-2013
1078,Revenue,CCHD,Bed Purchasing - Under 65s PWLD - South,Residential Homes,Leonard Cheshire  National Account Centr,2959.44, 06-Aug-2013
1079,Revenue,CCHD,Bed Purchasing - Elderly - North,Nursing Homes,Leonard Cheshire  National Account Centr,3468.8, 06-Aug-2013
1080,Revenue,CCHD,Bed purchasing - Phys Dis - North,Nursing Homes,Leonard Cheshire  National Account Centr,2779.04, 06-Aug-2013
1081,Revenue,CCHD,Bed Purchasing - Elderly - North,Residential Homes,Leonard Cheshire  National Account Centr,3150.32, 06-Aug-2013
1082,Revenue,CCHD,Bed purchasing - Under 65s PWLD - North,Residential Homes,Leonard Cheshire  National Account Centr,5872.12, 06-Aug-2013
1083,Revenue,CCHD,Bed purchasing - Under 65s PWLD - North,Residential Homes,Leonard Cheshire  National Account Centr,5870.56, 06-Aug-2013
1084,Revenue,CCHD,Bed Purchasing - Elderly - South,Residential Homes,Leonard Cheshire  National Account Centr,4433.04, 06-Aug-2013
1085,Revenue,CCHD,Bed purchasing - Phys Dis - North,Nursing Homes,Leonard Cheshire  National Account Centr,2838.64, 06-Aug-2013
1086,Revenue,CCHD,Bed purchasing - Phys Dis - North,Nursing Homes,Leonard Cheshire  National Account Centr,3812.44, 06-Aug-2013
1087,Revenue,CCHD,Bed purchasing - Phys Dis - North,Residential Homes,Leonard Cheshire  National Account Centr,2889.4, 06-Aug-2013
1088,Revenue,CCHD,Bed purchasing - Phys Dis - North,Nursing Homes,Leonard Cheshire  National Account Centr,4473.76, 06-Aug-2013
1089,Revenue,CCHD,Bed purchasing - Phys Dis - North,Nursing Homes,Leonard Cheshire  National Account Centr,3223.8, 06-Aug-2013
1090,Revenue,CCHD,Bed purchasing - Phys Dis - South,Nursing Homes,Leonard Cheshire  National Account Centr,6114.8, 06-Aug-2013
1091,Revenue,CCHD,Bed purchasing - Phys Dis - North,Nursing Homes,Leonard Cheshire  National Account Centr,5521.36, 06-Aug-2013
1092,Revenue,CCHD,Bed Purchasing - Elderly - South,Nursing Homes,Leonard Cheshire  National Account Centr,2869.2, 06-Aug-2013
1093,Revenue,CCHD,Bed Purchasing - Southmead Hospital,Nursing Homes,Leonard Cheshire  National Account Centr,3002, 06-Aug-2013
1094,Revenue,CCHD,South Glos Users in all other LA Homes,Nursing Homes,Leonard Cheshire  National Account Centr,604.4, 06-Aug-2013
1095,Revenue,CCHD,Bed purchasing - Phys Dis - North,Nursing Homes,Leonard Cheshire  National Account Centr,3309.2, 06-Aug-2013
1096,Revenue,CCHD,Bed Purchasing - Frenchay Hospital,Residential Homes,Leonard Cheshire  National Account Centr,3773.4, 06-Aug-2013
1097,Revenue,CCHD,Bed Purchasing - Elderly - South,Nursing Homes,Leonard Cheshire  National Account Centr,4369.6, 06-Aug-2013
1098,Revenue,CCHD,Bed Purchasing - Elderly - South,Nursing Homes,Leonard Elms Care Home,1539.28, 06-Aug-2013
1099,Revenue,CCHD,Miscellaneous,Other Supplies & Services,Lifeskills,1000, 23-Aug-2013
1100,Revenue,CCHD,Tenancy Start Up Scheme,Other Supplies & Services,Lifestyle Lettings (Deposit),675, 01-Aug-2013
1101,Revenue,CCHD,Tenancy Start Up Scheme,Other Supplies & Services,Lifestyle Lettings (Deposit),750, 01-Aug-2013
1102,Revenue,CCHD,Tenancy Start Up Scheme,Other Supplies & Services,Lifestyle Lettings (Rent),575, 01-Aug-2013
1103,Revenue,CCHD,Tenancy Start Up Scheme,Other Supplies & Services,Lifestyle Lettings (Rent),650, 01-Aug-2013
1104,Revenue,CCHD,Supported Living - North,Private & Voluntary Home Care,Lifeways Community Care (Gloucester) Ltd,10990, 20-Aug-2013
1105,Revenue,CCHD,Bed Purchasing - Elderly - South,Residential Homes,Little Croft,10920.12, 06-Aug-2013
1106,Revenue,CCHD,Bed Purchasing - Elderly - South,Residential Homes,Little Croft,1714, 06-Aug-2013
1107,Revenue,CCHD,Bed Purchasing - Southmead Hospital,Residential Homes,Little Croft,3378.57, 06-Aug-2013
1108,Revenue,CCHD,Bed Purchasing - Southmead Hospital,Residential Homes,Little Croft,1766.04, 06-Aug-2013
1109,Revenue,CCHD,Bed Purchasing - Southmead Hospital,Residential Homes,Little Croft,2412.43, 06-Aug-2013
1110,Revenue,CCHD,Bed Purchasing - Southmead Hospital,Residential Homes,Little Croft,1244.76, 06-Aug-2013
1111,Revenue,CCHD,Bed Purchasing - Elderly - South,Residential Homes,Little Croft,1856, 06-Aug-2013
1112,Revenue,CCHD,Bed Purchasing - Elderly - South,Residential Homes,Little Croft,1522.8, 06-Aug-2013
1113,Revenue,CCHD,Bed Purchasing - Frenchay Hospital,Residential Homes,Little Croft,1187.44, 06-Aug-2013
1114,Revenue,CCHD,Bed Purchasing - Southmead Hospital,Residential Homes,Little Croft,2127.14, 06-Aug-2013
1115,Revenue,CCHD,Bed Purchasing - Southmead Hospital,Residential Homes,Little Croft,1246, 06-Aug-2013
1116,Revenue,CCHD,Bed Purchasing - Elderly MH - South,Residential Homes,Little Croft,1173.28, 06-Aug-2013
1117,Revenue,CCHD,Bed Purchasing - Southmead Hospital,Residential Homes,Little Croft,1246, 06-Aug-2013
1118,Revenue,CCHD,Bed purchasing - Under 65s PWLD - North,Residential Homes,Littlecroft Residential Homes  Longcroft,6386.28, 06-Aug-2013
1119,Revenue,CCHD,Supported Living - South,Private & Voluntary Home Care,Lloyds TSB Commercial Finance Limited,3774.12, 15-Aug-2013
1120,Revenue,CCHD,Supported Living - South,Private & Voluntary Home Care,Lloyds TSB Commercial Finance Limited,6205.85, 15-Aug-2013
1121,Revenue,CCHD,Supported Living - South,Private & Voluntary Home Care,Lloyds TSB Commercial Finance Limited,3931.77, 15-Aug-2013
1122,Revenue,CCHD,Supported Living - South,Private & Voluntary Home Care,Lloyds TSB Commercial Finance Limited,7641.33, 28-Aug-2013
1123,Revenue,CCHD,Supported Living - South,Private & Voluntary Home Care,Lloyds TSB Commercial Finance Limited,4127.15, 28-Aug-2013
1124,Revenue,CCHD,Supported Living - North,Private & Voluntary Home Care,Lloyds TSB Commercial Finance Limited,9258.77, 15-Aug-2013
1125,Revenue,CCHD,Supported Living - South,Private & Voluntary Home Care,Lloyds TSB Commercial Finance Limited,3748.41, 15-Aug-2013
1126,Revenue,CCHD,Supported Living - South,Private & Voluntary Home Care,Lloyds TSB Commercial Finance Limited,3746.53, 15-Aug-2013
1127,Revenue,CCHD,Supported Living - South,Private & Voluntary Home Care,Lloyds TSB Commercial Finance Limited,3623.94, 15-Aug-2013
1128,Revenue,CCHD,Supported Living - South,Private & Voluntary Home Care,Lloyds TSB Commercial Finance Limited,3551.19, 15-Aug-2013
1129,Revenue,CCHD,Supported Living - South,Private & Voluntary Home Care,Lloyds TSB Commercial Finance Limited,3571.2, 15-Aug-2013
1130,Revenue,CCHD,Supported Living - South,Private & Voluntary Home Care,Loga Care Ltd (T/A Logacare),3795.33, 23-Aug-2013
1131,Revenue,CCHD,Bed Purchasing - Under 65s PWLD - South,Residential Homes,Longton Court,9502.4, 06-Aug-2013
1132,Revenue,CCHD,Social Lettings Agency,Fees - General,Individual,10, 01-Aug-2013
1133,Revenue,CCHD,Social Lettings Agency,Other Supplies & Services,Individual,565, 01-Aug-2013
1134,Revenue,CCHD,Social Lettings Agency,Fees - General,Individual,10, 30-Aug-2013
1135,Revenue,CCHD,Social Lettings Agency,Other Supplies & Services,Individual,565, 30-Aug-2013
1136,Revenue,CCHD,Bed Purchasing - Southmead Hospital,Nursing Homes,Majestic 3 Limited,998, 06-Aug-2013
1137,Revenue,CCHD,Bed Purchasing - Elderly - North,Residential Homes,Manor Cottage,1232.24, 06-Aug-2013
1138,Revenue,CCHD,Bed Purchasing - Southmead Hospital,Residential Homes,Manor Cottage,1246, 06-Aug-2013
1139,Revenue,CCHD,Bed Purchasing - Elderly - South,Residential Homes,Manor Cottage,1449.64, 06-Aug-2013
1140,Revenue,CCHD,Bed Purchasing - Southmead Hospital,Residential Homes,Manor Cottage,1246, 06-Aug-2013
1141,Revenue,CCHD,Bed Purchasing - Elderly - South,Residential Homes,Manor Cottage,1448.6, 06-Aug-2013
1142,Revenue,CCHD,Bed Purchasing - Elderly - North,Residential Homes,Manton Hall Residential Home,1496.44, 06-Aug-2013
1143,Revenue,CCHD,Section 117 Placements MH Younger,Private & Voluntary Day Care,Maples Community Care Limited,798, 02-Aug-2013
1144,Revenue,CCHD,Section 117 Placements MH Younger,Private & Voluntary Day Care,Maples Community Care Limited,798, 23-Aug-2013
1145,Revenue,CCHD,Supporting People Programme,Grants to Voluntary Bodies,Maples Community Housing Limited,2677.58, 01-Aug-2013
1146,Revenue,CCHD,Supporting People Programme,Grants to Voluntary Bodies,Maples Community Housing Limited,2677.58, 30-Aug-2013
1147,Revenue,CCHD,Social Lettings Agency,Fees - General,Individual,11.6, 20-Aug-2013
1148,Revenue,CCHD,Social Lettings Agency,Other Supplies & Services,Individual,655.41, 20-Aug-2013
1149,Revenue,CCHD,Bed Purchasing - Under 65s PWLD - South,Residential Homes,Marsden Healthcare Limited,911.04, 02-Aug-2013
1150,Revenue,CCHD,Bed Purchasing - Under 65s PWLD - South,Residential Homes,Marsden Healthcare Limited,911.04, 30-Aug-2013
1151,Revenue,CCHD,Bed purchasing - Elderly PWLD - South,Residential Homes,Marsden Healthcare Limited,3203, 02-Aug-2013
1152,Revenue,CCHD,Bed purchasing - Elderly PWLD - South,Residential Homes,Marsden Healthcare Limited,3203, 30-Aug-2013
1153,Revenue,CCHD,Bed purchasing - Elderly PWLD - South,Residential Homes,Marsden Healthcare Limited,1505.96, 02-Aug-2013
1154,Revenue,CCHD,Bed purchasing - Elderly PWLD - South,Residential Homes,Marsden Healthcare Limited,1505.96, 30-Aug-2013
1155,Revenue,CCHD,Bed Purchasing - Elderly MH - South,Nursing Homes,Meadow Care Home,1476.76, 06-Aug-2013
1156,Revenue,CCHD,Bed Purchasing - Elderly - South,Nursing Homes,Meadow Care Home,1673.16, 06-Aug-2013
1157,Revenue,CCHD,Home Care - Elderly - South,Other Small Contracts,Mears Care,543.9, 02-Aug-2013
1158,Revenue,CCHD,Home Care - Elderly - North,Other Small Contracts,Mears Care,6175.3, 02-Aug-2013
1159,Revenue,CCHD,Day Care - South,Private & Voluntary Day Care,Mears Care,88.8, 02-Aug-2013
1160,Revenue,CCHD,Day Care - North,Private & Voluntary Day Care,Mears Care,259, 02-Aug-2013
1161,Revenue,CCHD,Under 65s -MH  Home Care Purch,Other Small Contracts,Mears Care,111, 02-Aug-2013
1162,Revenue,CCHD,Home Care - Elderly LD - KH,Private & Voluntary Home Care,Mears Care,51.8, 02-Aug-2013
1163,Revenue,CCHD,Home Care - Elderly - South,Other Small Contracts,Mears Care,555, 02-Aug-2013
1164,Revenue,CCHD,Home Care - Elderly - North,Other Small Contracts,Mears Care,6090.2, 02-Aug-2013
1165,Revenue,CCHD,Day Care - South,Private & Voluntary Day Care,Mears Care,88.8, 02-Aug-2013
1166,Revenue,CCHD,Day Care - North,Private & Voluntary Day Care,Mears Care,255.3, 02-Aug-2013
1167,Revenue,CCHD,Under 65s -MH  Home Care Purch,Other Small Contracts,Mears Care,111, 02-Aug-2013
1168,Revenue,CCHD,Home Care - Elderly LD - KH,Private & Voluntary Home Care,Mears Care,51.8, 02-Aug-2013
1169,Revenue,CCHD,Home Care - Elderly - South,Other Small Contracts,Mears Care,547.6, 02-Aug-2013
1170,Revenue,CCHD,Home Care - Elderly - North,Other Small Contracts,Mears Care,6238.2, 02-Aug-2013
1171,Revenue,CCHD,Day Care - South,Private & Voluntary Day Care,Mears Care,88.8, 02-Aug-2013
1172,Revenue,CCHD,Day Care - North,Private & Voluntary Day Care,Mears Care,251.6, 02-Aug-2013
1173,Revenue,CCHD,Under 65s -MH  Home Care Purch,Other Small Contracts,Mears Care,111, 02-Aug-2013
1174,Revenue,CCHD,Home Care - Elderly LD - KH,Private & Voluntary Home Care,Mears Care,51.8, 02-Aug-2013
1175,Revenue,CCHD,Home Care - Elderly - South,Private & Voluntary Home Care,Mears Care,48154.25, 23-Aug-2013
1176,Revenue,CCHD,Home Care - Elderly - North,Other Small Contracts,Medacs Home Care,608.8, 01-Aug-2013
1177,Revenue,CCHD,Home Care - Elderly - North,Other Small Contracts,Medacs Home Care,630, 01-Aug-2013
1178,Revenue,CCHD,Home care - Elderly MH - North,Other Small Contracts,Medacs Home Care,87.5, 01-Aug-2013
1179,Revenue,CCHD,Home Care - Elderly - North,Other Small Contracts,Medacs Home Care,658, 07-Aug-2013
1180,Revenue,CCHD,Home care - Elderly MH - North,Other Small Contracts,Medacs Home Care,98, 07-Aug-2013
1181,Revenue,CCHD,Home Care - Elderly - North,Other Small Contracts,Medacs Home Care,556.5, 01-Aug-2013
1182,Revenue,CCHD,Home care - Elderly MH - North,Other Small Contracts,Medacs Home Care,94.5, 01-Aug-2013
1183,Revenue,CCHD,Home Care - Elderly - North,Other Small Contracts,Medacs Home Care,518, 19-Aug-2013
1184,Revenue,CCHD,Home care - Elderly MH - North,Other Small Contracts,Medacs Home Care,84, 19-Aug-2013
1185,Revenue,CCHD,NRS Contract,Daily Living Equipment,Medequip Assistive Technology Ltd,35405.2, 28-Aug-2013
1186,Revenue,CCHD,NRS Contract,Daily Living Equipment,Medequip Assistive Technology Ltd,86289.45, 28-Aug-2013
1187,Revenue,CCHD,Bed Purchasing - Under 65s PWLD - South,Residential Homes,Mencap,2219.16, 06-Aug-2013
1188,Revenue,CCHD,Supported Living (S28a) South,Private & Voluntary Home Care,Mencap - PS Central & Cymru,3786.86, 15-Aug-2013
1189,Revenue,CCHD,Supported Living (S28a) South,Private & Voluntary Home Care,Mencap - PS Central & Cymru,3786.86, 28-Aug-2013
1190,Revenue,CCHD,Supported Living (S28a) South,Private & Voluntary Home Care,Mencap - PS Central & Cymru,3786.86, 30-Aug-2013
1191,Revenue,CCHD,Supporting People Programme,Grants to Voluntary Bodies,Merlin Housing Society,15398.42, 01-Aug-2013
1192,Revenue,CCHD,Supporting People Programme,Grants to Voluntary Bodies,Merlin Housing Society,2423, 01-Aug-2013
1193,Revenue,CCHD,Supporting People Programme,Grants to Voluntary Bodies,Merlin Housing Society,51328.08, 01-Aug-2013
1194,Revenue,CCHD,Supporting People Programme,Grants to Voluntary Bodies,Merlin Housing Society,1026.58, 01-Aug-2013
1195,Revenue,CCHD,Supporting People Programme,Grants to Voluntary Bodies,Merlin Housing Society,15398.42, 30-Aug-2013
1196,Revenue,CCHD,Supporting People Programme,Grants to Voluntary Bodies,Merlin Housing Society,2423, 30-Aug-2013
1197,Revenue,CCHD,Supporting People Programme,Grants to Voluntary Bodies,Merlin Housing Society,51328.08, 30-Aug-2013
1198,Revenue,CCHD,Supporting People Programme,Grants to Voluntary Bodies,Merlin Housing Society,1026.58, 30-Aug-2013
1199,Revenue,CCHD,Bed Purchasing - Frenchay Hospital,Residential Homes,Milburn Finance,1040.12, 06-Aug-2013
1200,Revenue,CCHD,Home Care - Elderly - South,Other Small Contracts,Milestones Outreach Dementia Services,1652.08, 14-Aug-2013
1201,Revenue,CCHD,Home Care - Elderly - North,Other Small Contracts,Milestones Outreach Dementia Services,976.58, 14-Aug-2013
1202,Revenue,CCHD,Day Care - South,Private & Voluntary Day Care,Milestones Outreach Dementia Services,57.9, 14-Aug-2013
1203,Revenue,CCHD,Home care - Elderly MH - North,Other Small Contracts,Milestones Outreach Dementia Services,84.92, 14-Aug-2013
1204,Revenue,CCHD,Elderly MH Day Care North,Private & Voluntary Day Care,Milestones Outreach Dementia Services,15.44, 14-Aug-2013
1205,Revenue,CCHD,Supported Living (S28a) North,Private & Voluntary Home Care,Milestones Trust,5116.72, 15-Aug-2013
1206,Revenue,CCHD,Supported Living - North,Private & Voluntary Home Care,Milestones Trust,5341.59, 01-Aug-2013
1207,Revenue,CCHD,Supported Living - North,Private & Voluntary Home Care,Milestones Trust,509.48, 01-Aug-2013
1208,Revenue,CCHD,Supported Living (S28a) South,Private & Voluntary Home Care,Milestones Trust,648.54, 15-Aug-2013
1209,Revenue,CCHD,Supported Living (S28a) North,Private & Voluntary Home Care,Milestones Trust,9062.67, 15-Aug-2013
1210,Revenue,CCHD,Supported Living (S28a) South,Private & Voluntary Home Care,Milestones Trust,506.42, 15-Aug-2013
1211,Revenue,CCHD,Supported Living (S28a) South,Private & Voluntary Home Care,Milestones Trust,3189.6, 15-Aug-2013
1212,Revenue,CCHD,Supported Living (S28a) South,Private & Voluntary Home Care,Milestones Trust,2766.55, 15-Aug-2013
1213,Revenue,CCHD,Supported Living (S28a) South,Private & Voluntary Home Care,Milestones Trust,3095.55, 15-Aug-2013
1214,Revenue,CCHD,Supported Living (S28a) South,Private & Voluntary Home Care,Milestones Trust,1509.32, 15-Aug-2013
1215,Revenue,CCHD,Supported Living - South,Private & Voluntary Home Care,Milestones Trust,17322.68, 15-Aug-2013
1216,Revenue,CCHD,Supported Living - South,Private & Voluntary Home Care,Milestones Trust,14259.16, 15-Aug-2013
1217,Revenue,CCHD,Supported Living - South,Private & Voluntary Home Care,Milestones Trust,1145.2, 23-Aug-2013
1218,Revenue,CCHD,Purchase of Non-Res Care - North,Private & Voluntary Day Care,Milestones Trust,645.81, 16-Aug-2013
1219,Revenue,CCHD,Purchase of Non-Res Care - South,Private & Voluntary Day Care,Milestones Trust,1897.79, 23-Aug-2013
1220,Revenue,CCHD,Purchase of Non-Res Care - South,Private & Voluntary Day Care,Milestones Trust,664.21, 23-Aug-2013
1221,Revenue,CCHD,Purchase of Non-Res Care - South,Private & Voluntary Day Care,Milestones Trust,1463.48, 23-Aug-2013
1222,Revenue,CCHD,Purchase of Non-Res Care - South,Private & Voluntary Day Care,Milestones Trust,1375.05, 23-Aug-2013
1223,Revenue,CCHD,Purchase of Non-Res Care - South,Private & Voluntary Day Care,Milestones Trust,2064.46, 23-Aug-2013
1224,Revenue,CCHD,Supported Living - South,Private & Voluntary Home Care,Milestones Trust,664.21, 23-Aug-2013
1225,Revenue,CCHD,Purchase of Non-Res Care - South,Private & Voluntary Day Care,Milestones Trust,1783.64, 23-Aug-2013
1226,Revenue,CCHD,Purchase of Non-Res Care - South,Private & Voluntary Day Care,Milestones Trust,2164.89, 23-Aug-2013
1227,Revenue,CCHD,Purchase of Non-Res Care - South,Private & Voluntary Day Care,Milestones Trust,3421.88, 23-Aug-2013
1228,Revenue,CCHD,Purchase of Non-Res Care - South,Private & Voluntary Day Care,Milestones Trust,563.88, 23-Aug-2013
1229,Revenue,CCHD,Supported Living - South,Private & Voluntary Home Care,Milestones Trust,1853.86, 23-Aug-2013
1230,Revenue,CCHD,Purchase of Non-Res Care - South,Private & Voluntary Day Care,Milestones Trust,2051.23, 23-Aug-2013
1231,Revenue,CCHD,Purchase of Non-Res Care - South,Private & Voluntary Day Care,Milestones Trust,657.01, 23-Aug-2013
1232,Revenue,CCHD,Purchase of Non-Res Care - South,Private & Voluntary Day Care,Milestones Trust,607.08, 23-Aug-2013
1233,Revenue,CCHD,Purchase of Non-Res Care - South,Private & Voluntary Day Care,Milestones Trust,1969.83, 23-Aug-2013
1234,Revenue,CCHD,Purchase of Non-Res Care - South,Private & Voluntary Day Care,Milestones Trust,1660.03, 23-Aug-2013
1235,Revenue,CCHD,Supported Living - South,Private & Voluntary Home Care,Milestones Trust,2208.63, 23-Aug-2013
1236,Revenue,CCHD,Purchase of Non-Res Care - South,Private & Voluntary Day Care,Milestones Trust,1679.01, 23-Aug-2013
1237,Revenue,CCHD,Purchase of Non-Res Care - South,Private & Voluntary Day Care,Milestones Trust,1631.63, 23-Aug-2013
1238,Revenue,CCHD,Supported Living (S28a) North,Private & Voluntary Home Care,Milestones Trust,1192.74, 28-Aug-2013
1239,Revenue,CCHD,Elderly MH Day Care North,Private & Voluntary Day Care,Milestones Trust,739.08, 23-Aug-2013
1240,Revenue,CCHD,Purchase of Non-Res Care - South,Private & Voluntary Day Care,Milestones Trust,1227.48, 28-Aug-2013
1241,Revenue,CCHD,Supported Living (S28a) South,Private & Voluntary Home Care,Milestones Trust,6349.38, 30-Aug-2013
1242,Revenue,CCHD,Supported Living - South,Private & Voluntary Home Care,Milestones Trust,1685.64, 28-Aug-2013
1243,Revenue,CCHD,Supported Living - South,Private & Voluntary Home Care,Milestones Trust,551.79, 28-Aug-2013
1244,Revenue,CCHD,Supported Living - North,Private & Voluntary Home Care,Milestones Trust,1939.05, 28-Aug-2013
1245,Revenue,CCHD,Supported Living - South,Private & Voluntary Home Care,Milestones Trust,662.46, 28-Aug-2013
1246,Revenue,CCHD,Supported Living - South,Private & Voluntary Home Care,Milestones Trust,749.99, 28-Aug-2013
1247,Revenue,CCHD,Purchase of Non-Res Care - South,Private & Voluntary Day Care,Milestones Trust,526.12, 28-Aug-2013
1248,Revenue,CCHD,Supported Living - South,Private & Voluntary Home Care,Milestones Trust,2146.19, 28-Aug-2013
1249,Revenue,CCHD,Supported Living - South,Private & Voluntary Home Care,Milestones Trust,752.56, 28-Aug-2013
1250,Revenue,CCHD,Supported Living - South,Private & Voluntary Home Care,Milestones Trust,764.06, 28-Aug-2013
1251,Revenue,CCHD,Supported Living (S28a) North,Private & Voluntary Home Care,Milestones Trust,4105.1, 30-Aug-2013
1252,Revenue,CCHD,Supported Living (S28a) South,Private & Voluntary Home Care,Milestones Trust,693.79, 30-Aug-2013
1253,Revenue,CCHD,Supported Living (S28a) North,Private & Voluntary Home Care,Milestones Trust,3512.6, 30-Aug-2013
1254,Revenue,CCHD,Supported Living (S28a) North,Private & Voluntary Home Care,Milestones Trust,4381, 30-Aug-2013
1255,Revenue,CCHD,Supported Living (S28a) North,Private & Voluntary Home Care,Milestones Trust,4381, 30-Aug-2013
1256,Revenue,CCHD,Supported Living (S28a) North,Private & Voluntary Home Care,Milestones Trust,3512.6, 30-Aug-2013
1257,Revenue,CCHD,Supported Living (S28a) South,Private & Voluntary Home Care,Milestones Trust,1420.34, 30-Aug-2013
1258,Revenue,CCHD,Supported Living (S28a) North,Private & Voluntary Home Care,Milestones Trust,9293.06, 30-Aug-2013
1259,Revenue,CCHD,Supported Living (S28a) North,Private & Voluntary Home Care,Milestones Trust,8997.52, 30-Aug-2013
1260,Revenue,CCHD,Supported Living (S28a) North,Private & Voluntary Home Care,Milestones Trust,4942.52, 30-Aug-2013
1261,Revenue,CCHD,Supported Living (S28a) South,Private & Voluntary Home Care,Milestones Trust,585.74, 30-Aug-2013
1262,Revenue,CCHD,Supported Living (S28a) South,Private & Voluntary Home Care,Milestones Trust,3909.76, 30-Aug-2013
1263,Revenue,CCHD,Bed Purchasing - S28A - Over 65- North,Residential Homes,Milestones Trust,2617.12, 06-Aug-2013
1264,Revenue,CCHD,Bed Purchasing - Elderly - South,Residential Homes,Milestones Trust,1408.28, 06-Aug-2013
1265,Revenue,CCHD,Bed Purchasing - Under 65s PWLD - South,Residential Homes,Milestones Trust,5601.56, 06-Aug-2013
1266,Revenue,CCHD,Bed purchasing - Elderly MH - North,Nursing Homes,Milestones Trust,959.4, 06-Aug-2013
1267,Revenue,CCHD,Bed purchasing - Elderly PWLD - North,Residential Homes,Milestones Trust,3355.76, 06-Aug-2013
1268,Revenue,CCHD,Bed Purchasing - Under 65s PWLD - South,Residential Homes,Milestones Trust,4796.48, 06-Aug-2013
1269,Revenue,CCHD,Bed Purchasing - Under 65s PWLD - South,Residential Homes,Milestones Trust,5362.64, 06-Aug-2013
1270,Revenue,CCHD,Bed Purchasing - Under 65s PWLD - South,Nursing Homes,Milestones Trust,2784.88, 06-Aug-2013
1271,Revenue,CCHD,Bed purchasing - Elderly MH - North,Nursing Homes,Milestones Trust,1434.2, 06-Aug-2013
1272,Revenue,CCHD,Section 117 Placements MH Younger,Nursing Homes,Milestones Trust,1615.36, 06-Aug-2013
1273,Revenue,CCHD,Bed purchasing - Elderly S117 - South,Nursing Homes,Milestones Trust,1964, 06-Aug-2013
1274,Revenue,CCHD,Bed purchasing - Elderly PWLD - South,Residential Homes,Milestones Trust,4067.52, 06-Aug-2013
1275,Revenue,CCHD,Bed purchasing -S28A  Under 65 - North,Nursing Homes,Milestones Trust,5853.56, 06-Aug-2013
1276,Revenue,CCHD,Bed purchasing -S28A  Under 65 - North,Residential Homes,Milestones Trust,5258.88, 06-Aug-2013
1277,Revenue,CCHD,Bed purchasing - Elderly PWLD - South,Residential Homes,Milestones Trust,3827.48, 06-Aug-2013
1278,Revenue,CCHD,Bed purchasing - S28A Under 65 - South,Residential Homes,Milestones Trust,5446.8, 06-Aug-2013
1279,Revenue,CCHD,Bed Purchasing - Elderly MH - South,Residential Homes,Milestones Trust,1282.64, 06-Aug-2013
1280,Revenue,CCHD,Bed Purchasing - Under 65s PWLD - South,Residential Homes,Milestones Trust,5000.92, 06-Aug-2013
1281,Revenue,CCHD,Bed Purchasing - Under 65s PWLD - South,Residential Homes,Milestones Trust,5431.76, 06-Aug-2013
1282,Revenue,CCHD,Bed purchasing - S28A Under 65 - South,Nursing Homes,Milestones Trust,7190.52, 06-Aug-2013
1283,Revenue,CCHD,MH Purchasing - Younger,Residential Homes,Milestones Trust,1020.8, 06-Aug-2013
1284,Revenue,CCHD,Bed purchasing - Elderly PWLD - South,Residential Homes,Milestones Trust,5052.56, 06-Aug-2013
1285,Revenue,CCHD,Bed purchasing - Elderly PWLD - South,Residential Homes,Milestones Trust,3823.68, 06-Aug-2013
1286,Revenue,CCHD,Bed purchasing - Elderly PWLD - North,Residential Homes,Milestones Trust,2969.12, 06-Aug-2013
1287,Revenue,CCHD,Bed purchasing -S28A  Under 65 - North,Residential Homes,Milestones Trust,5317.24, 06-Aug-2013
1288,Revenue,CCHD,Bed purchasing -S28A  Under 65 - North,Residential Homes,Milestones Trust,6955.32, 06-Aug-2013
1289,Revenue,CCHD,Bed purchasing -S28A  Under 65 - North,Nursing Homes,Milestones Trust,6272.72, 06-Aug-2013
1290,Revenue,CCHD,Bed Purchasing - Under 65s PWLD - South,Residential Homes,Milestones Trust,4452.24, 06-Aug-2013
1291,Revenue,CCHD,Bed purchasing -S28A  Under 65 - North,Residential Homes,Milestones Trust,6656.16, 06-Aug-2013
1292,Revenue,CCHD,Bed purchasing - S28A Under 65 - South,Residential Homes,Milestones Trust,4459.4, 06-Aug-2013
1293,Revenue,CCHD,Bed Purchasing - S28A - Over 65- North,Residential Homes,Milestones Trust,6510.76, 06-Aug-2013
1294,Revenue,CCHD,Bed Purchasing - LD S28A- Over 65- South,Residential Homes,Milestones Trust,4118.28, 06-Aug-2013
1295,Revenue,CCHD,Bed purchasing -S28A  Under 65 - North,Residential Homes,Milestones Trust,6955.32, 06-Aug-2013
1296,Revenue,CCHD,Bed purchasing -S28A  Under 65 - North,Residential Homes,Milestones Trust,6955.32, 06-Aug-2013
1297,Revenue,CCHD,Bed Purchasing - LD S28A- Over 65- South,Residential Homes,Milestones Trust,4041.16, 06-Aug-2013
1298,Revenue,CCHD,Bed purchasing - S28A Under 65 - South,Residential Homes,Milestones Trust,4796.48, 06-Aug-2013
1299,Revenue,CCHD,Bed purchasing - S28A Under 65 - South,Residential Homes,Milestones Trust,4691.48, 06-Aug-2013
1300,Revenue,CCHD,Bed purchasing - S28A Under 65 - South,Residential Homes,Milestones Trust,4225.4, 06-Aug-2013
1301,Revenue,CCHD,Bed Purchasing - LD S28A- Over 65- South,Residential Homes,Milestones Trust,5019.44, 06-Aug-2013
1302,Revenue,CCHD,Bed Purchasing - LD S28A- Over 65- South,Residential Homes,Milestones Trust,4960.32, 06-Aug-2013
1303,Revenue,CCHD,Bed Purchasing - LD S28A- Over 65- South,Residential Homes,Milestones Trust,5114.08, 06-Aug-2013
1304,Revenue,CCHD,Bed Purchasing - LD S28A- Over 65- South,Residential Homes,Milestones Trust,4292.36, 06-Aug-2013
1305,Revenue,CCHD,Bed Purchasing - LD S28A- Over 65- South,Residential Homes,Milestones Trust,5701.92, 06-Aug-2013
1306,Revenue,CCHD,Bed purchasing -S28A  Under 65 - North,Residential Homes,Milestones Trust,9023.08, 06-Aug-2013
1307,Revenue,CCHD,Bed purchasing -S28A  Under 65 - North,Nursing Homes,Milestones Trust,6356.08, 06-Aug-2013
1308,Revenue,CCHD,Bed Purchasing - LD S28A- Over 65- South,Residential Homes,Milestones Trust,2953.24, 06-Aug-2013
1309,Revenue,CCHD,Bed Purchasing - S28A - Over 65- North,Residential Homes,Milestones Trust,2835.72, 06-Aug-2013
1310,Revenue,CCHD,Section 117 Placements MH Younger,Residential Homes,Milestones Trust,1336, 06-Aug-2013
1311,Revenue,CCHD,Bed purchasing - Elderly MH - North,Residential Homes,Milestones Trust,850, 06-Aug-2013
1312,Revenue,CCHD,Bed purchasing - S28A Under 65 - South,Residential Homes,Milestones Trust,4796.48, 06-Aug-2013
1313,Revenue,CCHD,Bed purchasing - Elderly PWLD - North,Residential Homes,Milestones Trust,4247.2, 06-Aug-2013
1314,Revenue,CCHD,Bed purchasing - Under 65s PWLD - North,Residential Homes,Milestones Trust,16864.42, 06-Aug-2013
1315,Revenue,CCHD,Bed purchasing - Under 65s PWLD - North,Residential Homes,Milestones Trust,3014.4, 06-Aug-2013
1316,Revenue,CCHD,Bed purchasing - Elderly MH - North,Nursing Homes,Milestones Trust,1098.04, 06-Aug-2013
1317,Revenue,CCHD,Bed Purchasing - Under 65s PWLD - South,Residential Homes,Milestones Trust,4208.76, 06-Aug-2013
1318,Revenue,CCHD,Bed purchasing -S28A  Under 65 - North,Residential Homes,Milestones Trust,5592.32, 06-Aug-2013
1319,Revenue,CCHD,Bed Purchasing - S28A - Over 65- North,Residential Homes,Milestones Trust,3422.41, 06-Aug-2013
1320,Revenue,CCHD,Bed Purchasing - Elderly S117- North,Residential Homes,Milestones Trust,1732, 06-Aug-2013
1321,Revenue,CCHD,MH Purchasing - Younger,Residential Homes,Milestones Trust,1020.8, 06-Aug-2013
1322,Revenue,CCHD,Bed Purchasing - S28A - Over 65- North,Residential Homes,Milestones Trust,3540.36, 06-Aug-2013
1323,Revenue,CCHD,Bed Purchasing - LD S28A- Over 65- South,Residential Homes,Milestones Trust,3828.04, 06-Aug-2013
1324,Revenue,CCHD,Bed purchasing - S28A Under 65 - South,Residential Homes,Milestones Trust,4851.32, 06-Aug-2013
1325,Revenue,CCHD,Bed purchasing - S28A Under 65 - South,Residential Homes,Milestones Trust,5724.72, 06-Aug-2013
1326,Revenue,CCHD,Bed Purchasing - LD S28A- Over 65- South,Residential Homes,Milestones Trust,5591.04, 06-Aug-2013
1327,Revenue,CCHD,Bed Purchasing - LD S28A- Over 65- South,Residential Homes,Milestones Trust,4735.4, 06-Aug-2013
1328,Revenue,CCHD,Bed Purchasing - LD S28A- Over 65- South,Residential Homes,Milestones Trust,4461.32, 06-Aug-2013
1329,Revenue,CCHD,Bed Purchasing - LD S28A- Over 65- South,Residential Homes,Milestones Trust,4535.32, 06-Aug-2013
1330,Revenue,CCHD,Bed purchasing - S28A Under 65 - South,Residential Homes,Milestones Trust,7067.16, 06-Aug-2013
1331,Revenue,CCHD,Bed Purchasing - LD S28A- Over 65- South,Residential Homes,Milestones Trust,4241.68, 06-Aug-2013
1332,Revenue,CCHD,Bed Purchasing - S28A - Over 65- North,Residential Homes,Milestones Trust,4788.84, 06-Aug-2013
1333,Revenue,CCHD,Bed Purchasing - Elderly S117- North,Nursing Homes,Milestones Trust,1788, 06-Aug-2013
1334,Revenue,CCHD,Bed Purchasing - S28A - Over 65- North,Residential Homes,Milestones Trust,4524.16, 06-Aug-2013
1335,Revenue,CCHD,Bed Purchasing - S28A - Over 65- North,Residential Homes,Milestones Trust,4692.44, 06-Aug-2013
1336,Revenue,CCHD,Bed purchasing - S28A Under 65 - South,Residential Homes,Milestones Trust,4686.44, 06-Aug-2013
1337,Revenue,CCHD,Bed Purchasing - S28A - Over 65- North,Residential Homes,Milestones Trust,4440.04, 06-Aug-2013
1338,Revenue,CCHD,Bed purchasing - S28A Under 65 - South,Residential Homes,Milestones Trust,4625.68, 06-Aug-2013
1339,Revenue,CCHD,Bed purchasing -S28A  Under 65 - North,Residential Homes,Milestones Trust,6955.32, 06-Aug-2013
1340,Revenue,CCHD,Bed Purchasing - S28A - Over 65- North,Residential Homes,Milestones Trust,5530.88, 06-Aug-2013
1341,Revenue,CCHD,Bed purchasing -S28A  Under 65 - North,Residential Homes,Milestones Trust,2924.52, 06-Aug-2013
1342,Revenue,CCHD,Bed Purchasing - S28A - Over 65- North,Residential Homes,Milestones Trust,3090.6, 06-Aug-2013
1343,Revenue,CCHD,Bed Purchasing - S28A - Over 65- North,Residential Homes,Milestones Trust,3221.88, 06-Aug-2013
1344,Revenue,CCHD,Bed Purchasing - LD S28A- Over 65- South,Residential Homes,Milestones Trust,3043.6, 06-Aug-2013
1345,Revenue,CCHD,Bed purchasing - Under 65s PWLD - North,Residential Homes,Milestones Trust,6673.92, 06-Aug-2013
1346,Revenue,CCHD,Bed Purchasing - Elderly - South,Residential Homes,Milestones Trust,1286, 06-Aug-2013
1347,Revenue,CCHD,MH Purchasing - Younger,Nursing Homes,Milestones Trust,924, 06-Aug-2013
1348,Revenue,CCHD,MH Purchasing - Younger,Nursing Homes,Milestones Trust,18532.8, 06-Aug-2013
1349,Revenue,CCHD,MH Purchasing - Younger,Nursing Homes,Milestones Trust,1112.8, 06-Aug-2013
1350,Revenue,CCHD,Bed purchasing - Elderly PWLD - South,Residential Homes,Milestones Trust,3209.36, 06-Aug-2013
1351,Revenue,CCHD,Bed purchasing - S28A Under 65 - South,Residential Homes,Milestones Trust,5832.32, 06-Aug-2013
1352,Revenue,CCHD,Bed purchasing - S28A Under 65 - South,Residential Homes,Milestones Trust,5925.08, 06-Aug-2013
1353,Revenue,CCHD,Bed Purchasing - LD S28A- Over 65- South,Residential Homes,Milestones Trust,4292.36, 06-Aug-2013
1354,Revenue,CCHD,Bed Purchasing - Under 65s PWLD - South,Residential Homes,Milestones Trust,5832.72, 06-Aug-2013
1355,Revenue,CCHD,Bed Purchasing - LD S28A- Over 65- South,Nursing Homes,Milestones Trust,4464.72, 06-Aug-2013
1356,Revenue,CCHD,Bed Purchasing - LD S28A- Over 65- South,Residential Homes,Milestones Trust,5591.04, 06-Aug-2013
1357,Revenue,CCHD,Bed Purchasing - LD S28A- Over 65- South,Residential Homes,Milestones Trust,3559.36, 06-Aug-2013
1358,Revenue,CCHD,Bed Purchasing - LD S28A- Over 65- South,Residential Homes,Milestones Trust,4282.6, 06-Aug-2013
1359,Revenue,CCHD,Bed Purchasing - LD S28A- Over 65- South,Residential Homes,Milestones Trust,5869.12, 06-Aug-2013
1360,Revenue,CCHD,Bed Purchasing - Elderly MH - South,Residential Homes,Milestones Trust,1212.08, 06-Aug-2013
1361,Revenue,CCHD,Bed purchasing -S28A  Under 65 - North,Nursing Homes,Milestones Trust,51716.47, 06-Aug-2013
1362,Revenue,CCHD,Bed Purchasing - Under 65s PWLD - South,Residential Homes,Milestones Trust,5173.28, 06-Aug-2013
1363,Revenue,CCHD,Bed Purchasing - Elderly S117- North,Nursing Homes,Milestones Trust,1964, 06-Aug-2013
1364,Revenue,CCHD,Bed Purchasing - Elderly MH - South,Nursing Homes,Milestones Trust,1732.4, 06-Aug-2013
1365,Revenue,CCHD,Bed purchasing - Under 65s PWLD - North,Residential Homes,Milestones Trust,9386.6, 06-Aug-2013
1366,Revenue,CCHD,Section 117 Placements MH Younger,Residential Homes,Milestones Trust,1336, 06-Aug-2013
1367,Revenue,CCHD,Bed Purchasing - LD S28A- Over 65- South,Nursing Homes,Milestones Trust,3016.64, 06-Aug-2013
1368,Revenue,CCHD,Bed Purchasing - LD S28A- Over 65- South,Nursing Homes,Milestones Trust,2573.72, 06-Aug-2013
1369,Revenue,CCHD,Bed Purchasing - LD S28A- Over 65- South,Nursing Homes,Milestones Trust,3298.72, 06-Aug-2013
1370,Revenue,CCHD,Bed Purchasing - LD S28A- Over 65- South,Nursing Homes,Milestones Trust,3899.48, 06-Aug-2013
1371,Revenue,CCHD,Bed Purchasing - LD S28A- Over 65- South,Nursing Homes,Milestones Trust,2729.64, 06-Aug-2013
1372,Revenue,CCHD,Bed Purchasing - S28A - Over 65- North,Nursing Homes,Milestones Trust,3649.32, 06-Aug-2013
1373,Revenue,CCHD,Bed Purchasing - S28A - Over 65- North,Nursing Homes,Milestones Trust,3665.32, 06-Aug-2013
1374,Revenue,CCHD,Bed Purchasing - PWLD S 117 Placements,Residential Homes,Milestones Trust,1030.61, 06-Aug-2013
1375,Revenue,CCHD,Tenancy Start Up Scheme,Other Supplies & Services,Individual,550, 14-Aug-2013
1376,Revenue,CCHD,Bed purchasing - Elderly S117 - South,Residential Homes,Mostyn Lodge Residential Home,1900, 06-Aug-2013
1377,Revenue,CCHD,Bed Purchasing - Frenchay Hospital,Residential Homes,Mostyn Lodge Residential Home,654.96, 06-Aug-2013
1378,Revenue,CCHD,Social Lettings Agency,Fees - General,Individual,10, 22-Aug-2013
1379,Revenue,CCHD,Social Lettings Agency,Other Supplies & Services,Individual,565, 22-Aug-2013
1380,Revenue,CCHD,Social Lettings Agency,Fees - General,Individual,8.6, 22-Aug-2013
1381,Revenue,CCHD,Social Lettings Agency,Other Supplies & Services,Individual,582, 22-Aug-2013
1382,Revenue,CCHD,Social Lettings Agency,Fees - General,Individual,11.6, 01-Aug-2013
1383,Revenue,CCHD,Social Lettings Agency,Other Supplies & Services,Individual,655.41, 01-Aug-2013
1384,Revenue,CCHD,Social Lettings Agency,Fees - General,Individual,11.6, 30-Aug-2013
1385,Revenue,CCHD,Social Lettings Agency,Other Supplies & Services,Individual,655.41, 30-Aug-2013
1386,Revenue,CCHD,Social Lettings Agency,Other Supplies & Services,Individual,850, 12-Aug-2013
1387,Revenue,CCHD,Social Lettings Agency,Fees - General,Individual,10, 08-Aug-2013
1388,Revenue,CCHD,Social Lettings Agency,Other Supplies & Services,Individual,565, 08-Aug-2013
1389,Revenue,CCHD,Social Lettings Agency,Fees - General,Individual,11.2, 20-Aug-2013
1390,Revenue,CCHD,Social Lettings Agency,Other Supplies & Services,Individual,632.81, 20-Aug-2013
1391,Revenue,CCHD,Tenancy Start Up Scheme,Other Supplies & Services,Individual,1250, 23-Aug-2013
1392,Revenue,CCHD,Social Lettings Agency,Fees - General,Individual,9.76, 08-Aug-2013
1393,Revenue,CCHD,Social Lettings Agency,Other Supplies & Services,Individual,551.44, 08-Aug-2013
1394,Revenue,CCHD,Social Lettings Agency,Fees - General,Individual,10, 01-Aug-2013
1395,Revenue,CCHD,Social Lettings Agency,Other Supplies & Services,Individual,565, 01-Aug-2013
1396,Revenue,CCHD,Social Lettings Agency,Fees - General,Individual,10, 30-Aug-2013
1397,Revenue,CCHD,Social Lettings Agency,Other Supplies & Services,Individual,565, 30-Aug-2013
1398,Revenue,CCHD,Social Lettings Agency,Fees - General,Individual,8.7, 16-Aug-2013
1399,Revenue,CCHD,Social Lettings Agency,Other Supplies & Services,Individual,672.8, 16-Aug-2013
1400,Revenue,CCHD,Social Lettings Agency,Fees - General,Individual,11.2, 13-Aug-2013
1401,Revenue,CCHD,Social Lettings Agency,Other Supplies & Services,Individual,632.81, 13-Aug-2013
1402,Revenue,CCHD,Supported Living - South,Private & Voluntary Home Care,Mrs B Kimber,8641.92, 23-Aug-2013
1403,Revenue,CCHD,Supported Living - South,Private & Voluntary Home Care,Mrs B Kimber,10667.83, 23-Aug-2013
1404,Revenue,CCHD,Elderly MH Day Care North,Private & Voluntary Day Care,Mrs B Kimber,503.55, 23-Aug-2013
1405,Revenue,CCHD,Elderly MH Day Care South,Private & Voluntary Day Care,Mrs B Kimber,652.75, 23-Aug-2013
1406,Revenue,CCHD,Supported Living - South,Private & Voluntary Home Care,Mrs B Kimber,1446.38, 23-Aug-2013
1407,Revenue,CCHD,Purchase of Non-Res Care - South,Private & Voluntary Day Care,Mrs B Kimber,1103.04, 23-Aug-2013
1408,Revenue,CCHD,Day Care - North,Private & Voluntary Day Care,Mrs B Kimber,548.4, 28-Aug-2013
1409,Revenue,CCHD,Purchase of Non-Res Care - North,Private & Voluntary Day Care,Mrs B Kimber,837.9, 28-Aug-2013
1410,Revenue,CCHD,Supported Living - North,Private & Voluntary Home Care,Mrs B Kimber,579.8, 29-Aug-2013
1411,Revenue,CCHD,Home Care - Elderly - South,Other Small Contracts,Mrs B Kimber -  CM2000,11016, 06-Aug-2013
1412,Revenue,CCHD,Home Care - Elderly - South,Other Small Contracts,Mrs B Kimber -  CM2000,7119.9, 01-Aug-2013
1413,Revenue,CCHD,Home Care - Elderly - North,Other Small Contracts,Mrs B Kimber -  CM2000,3268.35, 01-Aug-2013
1414,Revenue,CCHD,Day Care - South,Private & Voluntary Day Care,Mrs B Kimber -  CM2000,433.35, 01-Aug-2013
1415,Revenue,CCHD,Day Care - North,Private & Voluntary Day Care,Mrs B Kimber -  CM2000,97.2, 01-Aug-2013
1416,Revenue,CCHD,Under 65s -MH  Home Care Purch,Other Small Contracts,Mrs B Kimber -  CM2000,64.8, 01-Aug-2013
1417,Revenue,CCHD,Elderly MH Day Care North,Private & Voluntary Day Care,Mrs B Kimber -  CM2000,97.2, 01-Aug-2013
1418,Revenue,CCHD,PWLD Home Care - Under 65 - KH,Private & Voluntary Home Care,Mrs B Kimber -  CM2000,93.15, 01-Aug-2013
1419,Revenue,CCHD,Home Care - Elderly - South,Other Small Contracts,Mrs B Kimber -  CM2000,7257.6, 20-Aug-2013
1420,Revenue,CCHD,Home Care - Elderly - North,Other Small Contracts,Mrs B Kimber -  CM2000,3349.35, 20-Aug-2013
1421,Revenue,CCHD,Day Care - South,Private & Voluntary Day Care,Mrs B Kimber -  CM2000,562.95, 20-Aug-2013
1422,Revenue,CCHD,Day Care - North,Private & Voluntary Day Care,Mrs B Kimber -  CM2000,32.4, 20-Aug-2013
1423,Revenue,CCHD,Under 65s -MH  Home Care Purch,Other Small Contracts,Mrs B Kimber -  CM2000,64.8, 20-Aug-2013
1424,Revenue,CCHD,Elderly MH Day Care North,Private & Voluntary Day Care,Mrs B Kimber -  CM2000,97.2, 20-Aug-2013
1425,Revenue,CCHD,PWLD Home Care - Under 65 - KH,Private & Voluntary Home Care,Mrs B Kimber -  CM2000,97.2, 20-Aug-2013
1426,Revenue,CCHD,Home Care - Elderly - South,Other Small Contracts,Mrs B Kimber -  CM2000,7225.2, 20-Aug-2013
1427,Revenue,CCHD,Home Care - Elderly - North,Other Small Contracts,Mrs B Kimber -  CM2000,3284.55, 20-Aug-2013
1428,Revenue,CCHD,Day Care - South,Private & Voluntary Day Care,Mrs B Kimber -  CM2000,518.4, 20-Aug-2013
1429,Revenue,CCHD,Day Care - North,Private & Voluntary Day Care,Mrs B Kimber -  CM2000,81, 20-Aug-2013
1430,Revenue,CCHD,Under 65s -MH  Home Care Purch,Other Small Contracts,Mrs B Kimber -  CM2000,64.8, 20-Aug-2013
1431,Revenue,CCHD,Elderly MH Day Care North,Private & Voluntary Day Care,Mrs B Kimber -  CM2000,97.2, 20-Aug-2013
1432,Revenue,CCHD,PWLD Home Care - Under 65 - KH,Private & Voluntary Home Care,Mrs B Kimber -  CM2000,97.2, 20-Aug-2013
1433,Revenue,CCHD,Home Care - Elderly - South,Other Small Contracts,Mrs B Kimber -  CM2000,6735.15, 28-Aug-2013
1434,Revenue,CCHD,Home Care - Elderly - North,Other Small Contracts,Mrs B Kimber -  CM2000,3312.9, 28-Aug-2013
1435,Revenue,CCHD,Day Care - South,Private & Voluntary Day Care,Mrs B Kimber -  CM2000,449.55, 28-Aug-2013
1436,Revenue,CCHD,Day Care - North,Private & Voluntary Day Care,Mrs B Kimber -  CM2000,32.4, 28-Aug-2013
1437,Revenue,CCHD,Under 65s -MH  Home Care Purch,Other Small Contracts,Mrs B Kimber -  CM2000,64.8, 28-Aug-2013
1438,Revenue,CCHD,Elderly MH Day Care North,Private & Voluntary Day Care,Mrs B Kimber -  CM2000,97.2, 28-Aug-2013
1439,Revenue,CCHD,PWLD Home Care - Under 65 - KH,Private & Voluntary Home Care,Mrs B Kimber -  CM2000,101.25, 28-Aug-2013
1440,Revenue,CCHD,Home Care - Elderly - South,Other Small Contracts,Mrs B Kimber -  CM2000,7010.55, 30-Aug-2013
1441,Revenue,CCHD,Home Care - Elderly - North,Other Small Contracts,Mrs B Kimber -  CM2000,3321, 30-Aug-2013
1442,Revenue,CCHD,Day Care - South,Private & Voluntary Day Care,Mrs B Kimber -  CM2000,405, 30-Aug-2013
1443,Revenue,CCHD,Day Care - North,Private & Voluntary Day Care,Mrs B Kimber -  CM2000,101.25, 30-Aug-2013
1444,Revenue,CCHD,Under 65s -MH  Home Care Purch,Other Small Contracts,Mrs B Kimber -  CM2000,64.8, 30-Aug-2013
1445,Revenue,CCHD,Elderly MH Day Care North,Private & Voluntary Day Care,Mrs B Kimber -  CM2000,97.2, 30-Aug-2013
1446,Revenue,CCHD,PWLD Home Care - Under 65 - KH,Private & Voluntary Home Care,Mrs B Kimber -  CM2000,81, 30-Aug-2013
1447,Revenue,CCHD,Social Lettings Agency,Fees - General,Individual,10, 16-Aug-2013
1448,Revenue,CCHD,Social Lettings Agency,Other Supplies & Services,Individual,565, 16-Aug-2013
1449,Revenue,CCHD,Social Lettings Agency,Fees - General,Individual,10, 23-Aug-2013
1450,Revenue,CCHD,Social Lettings Agency,Other Supplies & Services,Individual,565, 23-Aug-2013
1451,Revenue,CCHD,Social Lettings Agency,Fees - General,Individual,10, 01-Aug-2013
1452,Revenue,CCHD,Social Lettings Agency,Other Supplies & Services,Individual,565, 01-Aug-2013
1453,Revenue,CCHD,Supported Living - North,Residential Homes,Mrs I M Bowerman,1300.86, 30-Aug-2013
1454,Revenue,CCHD,Social Lettings Agency,Fees - General,Individual,10, 12-Aug-2013
1455,Revenue,CCHD,Social Lettings Agency,Other Supplies & Services,Individual,565, 12-Aug-2013
1456,Revenue,CCHD,Supported Living - North,Residential Homes,Mrs Julie Taylor,1414.98, 06-Aug-2013
1457,Revenue,CCHD,Tenancy Start Up Scheme,Other Supplies & Services,Individual,1135, 29-Aug-2013
1458,Revenue,CCHD,Social Lettings Agency,Fees - General,Individual,11.6, 16-Aug-2013
1459,Revenue,CCHD,Social Lettings Agency,Other Supplies & Services,Individual,655.41, 16-Aug-2013
1460,Revenue,CCHD,Purchase of Non-Res Care - North,Private & Voluntary Day Care,Mrs W Thompson,1484, 23-Aug-2013
1461,Revenue,CCHD,Purchase of Non-Res Care - North,Private & Voluntary Day Care,Mrs W Thompson,563.28, 23-Aug-2013
1462,Revenue,CCHD,Social Lettings Agency,Fees - General,Individual,15.2, 09-Aug-2013
1463,Revenue,CCHD,Social Lettings Agency,Other Supplies & Services,Individual,858.8, 09-Aug-2013
1464,Revenue,CCHD,Alexandra Way,Refuse Collection Charges,Muzzell Healthcare,438.2, 07-Aug-2013
1465,Revenue,CCHD,Personnel Costs,Other Supplies & Services,My Home Life,500, 19-Aug-2013
1466,Revenue,CCHD,Younger MH non-res purchasing,Private & Voluntary Day Care,NAS Services Limited,856.69, 23-Aug-2013
1467,Revenue,CCHD,Younger MH non-res purchasing,Private & Voluntary Day Care,NAS Services Limited,603.32, 23-Aug-2013
1468,Revenue,CCHD,Younger MH non-res purchasing,Private & Voluntary Day Care,NAS Services Limited,823.2, 23-Aug-2013
1469,Revenue,CCHD,Younger MH non-res purchasing,Private & Voluntary Day Care,NAS Services Limited,907.25, 23-Aug-2013
1470,Revenue,CCHD,Younger MH non-res purchasing,Private & Voluntary Day Care,NAS Services Limited,741.6, 23-Aug-2013
1471,Revenue,CCHD,Newton House,Security Systems,National Security Group,656, 05-Aug-2013
1472,Revenue,CCHD,Bed Purchasing - Under 65s PWLD - South,Residential Homes,National Star College,4547.72, 06-Aug-2013
1473,Revenue,CCHD,Bed purchasing - Phys Dis - South,Residential Homes,National Star College FDY Limited,5539.31, 30-Aug-2013
1474,Revenue,CCHD,Supported Living - South,Private & Voluntary Home Care,Natureworks Training Community Interest,773.82, 28-Aug-2013
1475,Revenue,CCHD,Training - Adult Services,Training Expenses,Nelson Training Limited,1186.16, 05-Aug-2013
1476,Revenue,CCHD,Home Care - Elderly - South,Other Small Contracts,Network Health & Social Care,1587.12, 06-Aug-2013
1477,Revenue,CCHD,Home Care - Elderly - North,Other Small Contracts,Network Health & Social Care,2750.23, 06-Aug-2013
1478,Revenue,CCHD,Day Care - North,Private & Voluntary Day Care,Network Health & Social Care,31.12, 06-Aug-2013
1479,Revenue,CCHD,Home Care - Elderly - South,Other Small Contracts,Network Health & Social Care,1769.95, 06-Aug-2013
1480,Revenue,CCHD,Home Care - Elderly - North,Other Small Contracts,Network Health & Social Care,3100.33, 06-Aug-2013
1481,Revenue,CCHD,Day Care - North,Private & Voluntary Day Care,Network Health & Social Care,23.34, 06-Aug-2013
1482,Revenue,CCHD,Home Care - Elderly - South,Other Small Contracts,Network Health & Social Care,1606.57, 28-Aug-2013
1483,Revenue,CCHD,Home Care - Elderly - North,Other Small Contracts,Network Health & Social Care,3123.67, 28-Aug-2013
1484,Revenue,CCHD,Home Care - Elderly - South,Other Small Contracts,Network Health & Social Care,1579.34, 06-Aug-2013
1485,Revenue,CCHD,Home Care - Elderly - North,Other Small Contracts,Network Health & Social Care,3076.99, 06-Aug-2013
1486,Revenue,CCHD,Home Care - Elderly - South,Other Small Contracts,Network Health & Social Care,1707.71, 28-Aug-2013
1487,Revenue,CCHD,Home Care - Elderly - North,Other Small Contracts,Network Health & Social Care,3084.77, 28-Aug-2013
1488,Revenue,CCHD,Home Care - Elderly - South,Other Small Contracts,Network Health & Social Care,1933.33, 28-Aug-2013
1489,Revenue,CCHD,Home Care - Elderly - North,Other Small Contracts,Network Health & Social Care,3371.89, 28-Aug-2013
1490,Revenue,CCHD,Home Care - Elderly - South,Other Small Contracts,Network Health & Social Care,2046.14, 28-Aug-2013
1491,Revenue,CCHD,Home Care - Elderly - North,Other Small Contracts,Network Health & Social Care,3414.2, 28-Aug-2013
1492,Revenue,CCHD,Home Care - Elderly - South,Other Small Contracts,Network Health & Social Care,1871.09, 28-Aug-2013
1493,Revenue,CCHD,Home Care - Elderly - North,Other Small Contracts,Network Health & Social Care,3528.65, 28-Aug-2013
1494,Revenue,CCHD,Social Lettings Agency,Fees - General,Individual,10, 02-Aug-2013
1495,Revenue,CCHD,Social Lettings Agency,Other Supplies & Services,Individual,565, 02-Aug-2013
1496,Revenue,CCHD,Access Team,"Holidays, Outings & Visits",Neville Williams,768, 23-Aug-2013
1497,Revenue,CCHD,Bed Purchasing - Under 65s PWLD - South,Residential Homes,Nightingale Nursing Home,3105.36, 06-Aug-2013
1498,Revenue,CCHD,Alexandra Way,Furniture & Fittings Loose,Nisbets,667.05, 30-Aug-2013
1499,Revenue,CCHD,Delayed Transfers of Care Gran,Other Supplies & Services,North Bristol NHS Trust,119600, 16-Aug-2013
1500,Revenue,CCHD,Delayed Transfers of Care Gran,Other Supplies & Services,North Bristol NHS Trust,23300, 16-Aug-2013
1501,Revenue,CCHD,Delayed Transfers of Care Gran,Other Supplies & Services,North Bristol NHS Trust,19500, 19-Aug-2013
1502,Revenue,CCHD,Delayed Transfers of Care Gran,Other Supplies & Services,North Bristol NHS Trust,14100, 19-Aug-2013
1503,Revenue,CCHD,Delayed Transfers of Care Gran,Other Supplies & Services,North Bristol NHS Trust,12500, 19-Aug-2013
1504,Revenue,CCHD,Delayed Transfers of Care Gran,Other Supplies & Services,North Bristol NHS Trust,39600, 19-Aug-2013
1505,Revenue,CCHD,Delayed Transfers of Care Gran,Other Supplies & Services,North Bristol NHS Trust,18200, 19-Aug-2013
1506,Revenue,CCHD,Delayed Transfers of Care Gran,Other Supplies & Services,North Bristol NHS Trust,30300, 19-Aug-2013
1507,Revenue,CCHD,Delayed Transfers of Care Gran,Other Supplies & Services,North Bristol NHS Trust,13800, 19-Aug-2013
1508,Revenue,CCHD,Delayed Transfers of Care Gran,Other Supplies & Services,North Bristol NHS Trust,12100, 19-Aug-2013
1509,Revenue,CCHD,Delayed Transfers of Care Gran,Other Supplies & Services,North Bristol NHS Trust,5900, 19-Aug-2013
1510,Revenue,CCHD,Training - Adult Services,Training Expenses,North Bristol NHS Trust,10750, 20-Aug-2013
1511,Revenue,CCHD,Bed Purchasing - Under 65s PWLD - South,Residential Homes,Norwood   Broadway House,4899.44, 06-Aug-2013
1512,Revenue,CCHD,Bed Purchasing - Elderly MH - South,Residential Homes,Notaro Homes Ltd  Queensmead Court,1857.32, 06-Aug-2013
1513,Revenue,CCHD,Bed Purchasing - Southmead Hospital,Residential Homes,Notaro Homes Ltd  Queensmead Court,1371.32, 06-Aug-2013
1514,Revenue,CCHD,Section 117 Placements MH Younger,Residential Homes,Notaro Homes Ltd  Queensmead Court,3028.8, 06-Aug-2013
1515,Revenue,CCHD,Bed Purchasing - Elderly - South,Residential Homes,Nova House Care Home,938.4, 06-Aug-2013
1516,Revenue,CCHD,Home Care - Elderly - South,Other Small Contracts,Nursing Solutions Limited,1626.3, 21-Aug-2013
1517,Revenue,CCHD,Home Care - Elderly - North,Other Small Contracts,Nursing Solutions Limited,288.6, 21-Aug-2013
1518,Revenue,CCHD,Home Care - Elderly - South,Other Small Contracts,Nursing Solutions Limited,1965.6, 21-Aug-2013
1519,Revenue,CCHD,Home Care - Elderly - North,Other Small Contracts,Nursing Solutions Limited,214.5, 21-Aug-2013
1520,Revenue,CCHD,Home Care - Elderly - South,Other Small Contracts,Nursing Solutions Limited,1743.3, 21-Aug-2013
1521,Revenue,CCHD,Home Care - Elderly - North,Other Small Contracts,Nursing Solutions Limited,273, 21-Aug-2013
1522,Revenue,CCHD,Home Care - Elderly - South,Other Small Contracts,Nursing Solutions Limited,1443, 21-Aug-2013
1523,Revenue,CCHD,Home Care - Elderly - North,Other Small Contracts,Nursing Solutions Limited,269.1, 21-Aug-2013
1524,Revenue,CCHD,Home Care - Elderly - South,Other Small Contracts,Nursing Solutions Limited,1610.7, 21-Aug-2013
1525,Revenue,CCHD,Home Care - Elderly - North,Other Small Contracts,Nursing Solutions Limited,276.9, 21-Aug-2013
1526,Revenue,CCHD,Home Care - Elderly - South,Other Small Contracts,Nursing Solutions Limited,1536.6, 21-Aug-2013
1527,Revenue,CCHD,Home Care - Elderly - North,Other Small Contracts,Nursing Solutions Limited,261.3, 21-Aug-2013
1528,Revenue,CCHD,Section 117 Placements MH Younger,Nursing Homes,Oaklands,6000, 06-Aug-2013
1529,Revenue,CCHD,Home Care - Elderly - South,Other Small Contracts,On the Up,992.02, 14-Aug-2013
1530,Revenue,CCHD,Home Care - Elderly - North,Other Small Contracts,On the Up,138.96, 14-Aug-2013
1531,Revenue,CCHD,Day Care - South,Private & Voluntary Day Care,On the Up,164.88, 14-Aug-2013
1532,Revenue,CCHD,Day Care - North,Private & Voluntary Day Care,On the Up,405.84, 14-Aug-2013
1533,Revenue,CCHD,Younger MH non-res purchasing,Private & Voluntary Day Care,On the Up,31.92, 14-Aug-2013
1534,Revenue,CCHD,Elderly MH Day Care North,Private & Voluntary Day Care,On the Up,61.76, 14-Aug-2013
1535,Revenue,CCHD,Home Care - Elderly - South,Other Small Contracts,On the Up,949.56, 14-Aug-2013
1536,Revenue,CCHD,Home Care - Elderly - North,Other Small Contracts,On the Up,135.1, 14-Aug-2013
1537,Revenue,CCHD,Day Care - South,Private & Voluntary Day Care,On the Up,164.18, 14-Aug-2013
1538,Revenue,CCHD,Day Care - North,Private & Voluntary Day Care,On the Up,364.8, 14-Aug-2013
1539,Revenue,CCHD,Younger MH non-res purchasing,Private & Voluntary Day Care,On the Up,30.88, 14-Aug-2013
1540,Revenue,CCHD,Elderly MH Day Care North,Private & Voluntary Day Care,On the Up,46.32, 14-Aug-2013
1541,Revenue,CCHD,Home Care - Elderly - South,Other Small Contracts,On the Up,984.3, 14-Aug-2013
1542,Revenue,CCHD,Home Care - Elderly - North,Other Small Contracts,On the Up,127.38, 14-Aug-2013
1543,Revenue,CCHD,Day Care - South,Private & Voluntary Day Care,On the Up,159.62, 14-Aug-2013
1544,Revenue,CCHD,Day Care - North,Private & Voluntary Day Care,On the Up,405.84, 14-Aug-2013
1545,Revenue,CCHD,Younger MH non-res purchasing,Private & Voluntary Day Care,On the Up,36.48, 14-Aug-2013
1546,Revenue,CCHD,Elderly MH Day Care North,Private & Voluntary Day Care,On the Up,61.76, 14-Aug-2013
1547,Revenue,CCHD,Bed purchasing -S28A  Under 65 - North,Residential Homes,Orchard End Limited,7452.12, 06-Aug-2013
1548,Revenue,CCHD,Turnberries,"Provisions (Food, etc)",Origin Cafe,634.6, 23-Aug-2013
1549,Revenue,CCHD,Bed Purchasing - Elderly S117- North,Residential Homes,Osbourne Court,1900, 06-Aug-2013
1550,Revenue,CCHD,Bed purchasing - Elderly S117 - South,Residential Homes,Osbourne Court,5136.43, 06-Aug-2013
1551,Revenue,CCHD,Bed Purchasing - Elderly S117- North,Residential Homes,Osbourne Court,1732.48, 06-Aug-2013
1552,Revenue,CCHD,Bed Purchasing - Elderly MH - South,Residential Homes,Osbourne Court,9652.5, 06-Aug-2013
1553,Revenue,CCHD,Bed Purchasing - Elderly MH - South,Residential Homes,Osbourne Court,3074.63, 06-Aug-2013
1554,Revenue,CCHD,Bed Purchasing - Elderly S117- North,Residential Homes,Osbourne Court,1900, 06-Aug-2013
1555,Revenue,CCHD,Bed Purchasing - Southmead Hospital,Residential Homes,Osbourne Court,859.4, 06-Aug-2013
1556,Revenue,CCHD,Bed Purchasing - Under 65s PWLD - South,Residential Homes,Osprey Court,7636.76, 06-Aug-2013
1557,Revenue,CCHD,Bed purchasing - S28A Under 65 - South,Residential Homes,Osprey Court,4259.36, 06-Aug-2013
1558,Revenue,CCHD,Bed purchasing - S28A Under 65 - South,Residential Homes,Osprey Court,6305.32, 06-Aug-2013
1559,Revenue,CCHD,Bed Purchasing - Southmead Hospital,Nursing Homes,Palm Court Nursing Home,1503.36, 06-Aug-2013
1560,Revenue,CCHD,Bed Purchasing - Elderly MH - South,Residential Homes,Park Farm House,1333.44, 06-Aug-2013
1561,Revenue,CCHD,Bed Purchasing - Elderly - South,Residential Homes,Park Farm House,2474.5, 06-Aug-2013
1562,Revenue,CCHD,Bed Purchasing - Elderly - South,Residential Homes,Park Farm House,1414, 06-Aug-2013
1563,Revenue,CCHD,Bed Purchasing - Elderly - South,Residential Homes,Park Farm House,1780.96, 06-Aug-2013
1564,Revenue,CCHD,Bed Purchasing - Elderly MH - South,Residential Homes,Park Farm House,1593.2, 06-Aug-2013
1565,Revenue,CCHD,Bed Purchasing - Under 65s PWLD - South,Residential Homes,Park Hall,5552, 06-Aug-2013
1566,Revenue,CCHD,Bed purchasing - Under 65s PWLD - North,Residential Homes,Park Hall,5131.28, 06-Aug-2013
1567,Revenue,CCHD,Bed Purchasing - Under 65s PWLD - South,Residential Homes,Park Hall,4940.84, 06-Aug-2013
1568,Revenue,CCHD,Bed purchasing - Elderly PWLD - South,Residential Homes,Park Hall,2520.96, 06-Aug-2013
1569,Revenue,CCHD,Bed Purchasing - Under 65s PWLD - South,Residential Homes,Park Hall,3824.16, 06-Aug-2013
1570,Revenue,CCHD,Bed purchasing - Elderly PWLD - North,Residential Homes,Park Hall,4897.8, 06-Aug-2013
1571,Revenue,CCHD,Bed purchasing - S28A Under 65 - South,Residential Homes,Park Hall,4614.16, 06-Aug-2013
1572,Revenue,CCHD,Bed Purchasing - Under 65s PWLD - South,Residential Homes,Park Hall,4917.16, 06-Aug-2013
1573,Revenue,CCHD,Bed purchasing - Under 65s PWLD - North,Residential Homes,Park Hall,4278.84, 06-Aug-2013
1574,Revenue,CCHD,Bed Purchasing - S28A - Over 65- North,Residential Homes,Park Hall,5286.8, 06-Aug-2013
1575,Revenue,CCHD,Bed Purchasing - Under 65s PWLD - South,Residential Homes,Park Hall,10610.92, 06-Aug-2013
1576,Revenue,CCHD,Bed purchasing -S28A  Under 65 - North,Residential Homes,Park Hall,5844.16, 06-Aug-2013
1577,Revenue,CCHD,Bed purchasing - S28A Under 65 - South,Residential Homes,Park Hall,5565.72, 06-Aug-2013
1578,Revenue,CCHD,Bed Purchasing - Under 65s PWLD - South,Residential Homes,Park Hall,7859.88, 06-Aug-2013
1579,Revenue,CCHD,Bed Purchasing - Elderly - North,Residential Homes,Park House Residential Home,779.84, 06-Aug-2013
1580,Revenue,CCHD,Social Lettings Agency,Fees - General,Individual,10, 23-Aug-2013
1581,Revenue,CCHD,Social Lettings Agency,Other Supplies & Services,Individual,565, 23-Aug-2013
1582,Revenue,CCHD,Bed Purchasing - Under 65s PWLD - South,Residential Homes,Penleigh House Care Home,4493.52, 06-Aug-2013
1583,Revenue,CCHD,Bed Purchasing - Under 65s PWLD - South,Residential Homes,Penleigh House Care Home,5224.4, 06-Aug-2013
1584,Revenue,CCHD,Bed purchasing - Elderly PWLD - South,Residential Homes,Penleigh House Care Home,4258.48, 06-Aug-2013
1585,Revenue,CCHD,Bed purchasing - S28A Under 65 - South,Residential Homes,Penleigh House Care Home,5417.04, 06-Aug-2013
1586,Revenue,CCHD,Bed Purchasing - Under 65s PWLD - South,Residential Homes,Penleigh House Care Home,4893.28, 06-Aug-2013
1587,Revenue,CCHD,Supporting People Programme,Grants to Voluntary Bodies,Places for People,1117.67, 01-Aug-2013
1588,Revenue,CCHD,Supporting People Programme,Grants to Voluntary Bodies,Places for People,1117.67, 30-Aug-2013
1589,Revenue,CCHD,Home Care - Elderly - South,Other Small Contracts,Premier Homecare Limited,1007.76, 01-Aug-2013
1590,Revenue,CCHD,Home Care - Elderly - North,Other Small Contracts,Premier Homecare Limited,7742.88, 01-Aug-2013
1591,Revenue,CCHD,Younger MH non-res purchasing,Private & Voluntary Day Care,Premier Homecare Limited,27.36, 01-Aug-2013
1592,Revenue,CCHD,Home care - Elderly MH - North,Other Small Contracts,Premier Homecare Limited,164.16, 01-Aug-2013
1593,Revenue,CCHD,Elderly MH Day Care North,Private & Voluntary Day Care,Premier Homecare Limited,159.6, 01-Aug-2013
1594,Revenue,CCHD,Home Care - Elderly - South,Other Small Contracts,Premier Homecare Limited,980.4, 20-Aug-2013
1595,Revenue,CCHD,Home Care - Elderly - North,Other Small Contracts,Premier Homecare Limited,7578.72, 20-Aug-2013
1596,Revenue,CCHD,Younger MH non-res purchasing,Private & Voluntary Day Care,Premier Homecare Limited,27.36, 20-Aug-2013
1597,Revenue,CCHD,Home care - Elderly MH - North,Other Small Contracts,Premier Homecare Limited,164.16, 20-Aug-2013
1598,Revenue,CCHD,Elderly MH Day Care North,Private & Voluntary Day Care,Premier Homecare Limited,123.12, 20-Aug-2013
1599,Revenue,CCHD,Home Care - Elderly - South,Other Small Contracts,Premier Homecare Limited,460.56, 20-Aug-2013
1600,Revenue,CCHD,Home Care - Elderly - North,Other Small Contracts,Premier Homecare Limited,6972.24, 20-Aug-2013
1601,Revenue,CCHD,Younger MH non-res purchasing,Private & Voluntary Day Care,Premier Homecare Limited,27.36, 20-Aug-2013
1602,Revenue,CCHD,Home care - Elderly MH - North,Other Small Contracts,Premier Homecare Limited,164.16, 20-Aug-2013
1603,Revenue,CCHD,Elderly MH Day Care North,Private & Voluntary Day Care,Premier Homecare Limited,209.76, 20-Aug-2013
1604,Revenue,CCHD,Home Care - Elderly - South,Other Small Contracts,Premier Homecare Limited,939.36, 20-Aug-2013
1605,Revenue,CCHD,Home Care - Elderly - North,Other Small Contracts,Premier Homecare Limited,6877.62, 20-Aug-2013
1606,Revenue,CCHD,Younger MH non-res purchasing,Private & Voluntary Day Care,Premier Homecare Limited,27.36, 20-Aug-2013
1607,Revenue,CCHD,Home care - Elderly MH - North,Other Small Contracts,Premier Homecare Limited,168.72, 20-Aug-2013
1608,Revenue,CCHD,Elderly MH Day Care North,Private & Voluntary Day Care,Premier Homecare Limited,209.76, 20-Aug-2013
1609,Revenue,CCHD,Home Care - Elderly - South,Other Small Contracts,Premier Homecare Limited,975.84, 28-Aug-2013
1610,Revenue,CCHD,Home Care - Elderly - North,Other Small Contracts,Premier Homecare Limited,7241.28, 28-Aug-2013
1611,Revenue,CCHD,Younger MH non-res purchasing,Private & Voluntary Day Care,Premier Homecare Limited,27.36, 28-Aug-2013
1612,Revenue,CCHD,Home care - Elderly MH - North,Other Small Contracts,Premier Homecare Limited,159.6, 28-Aug-2013
1613,Revenue,CCHD,Elderly MH Day Care North,Private & Voluntary Day Care,Premier Homecare Limited,209.76, 28-Aug-2013
1614,Revenue,CCHD,Home Care - Elderly - South,Other Small Contracts,Prestige Nursing,1103.36, 14-Aug-2013
1615,Revenue,CCHD,Home Care - Elderly - North,Other Small Contracts,Prestige Nursing,827.52, 14-Aug-2013
1616,Revenue,CCHD,Day Care - South,Private & Voluntary Day Care,Prestige Nursing,258.6, 14-Aug-2013
1617,Revenue,CCHD,Day Care - North,Private & Voluntary Day Care,Prestige Nursing,478.41, 14-Aug-2013
1618,Revenue,CCHD,Home Care - Elderly - South,Other Small Contracts,Prestige Nursing,1081.81, 14-Aug-2013
1619,Revenue,CCHD,Home Care - Elderly - North,Other Small Contracts,Prestige Nursing,974.06, 14-Aug-2013
1620,Revenue,CCHD,Day Care - South,Private & Voluntary Day Care,Prestige Nursing,120.68, 14-Aug-2013
1621,Revenue,CCHD,Day Care - North,Private & Voluntary Day Care,Prestige Nursing,379.28, 14-Aug-2013
1622,Revenue,CCHD,Home Care - Elderly - South,Other Small Contracts,Prestige Nursing,1030.09, 14-Aug-2013
1623,Revenue,CCHD,Home Care - Elderly - North,Other Small Contracts,Prestige Nursing,1146.46, 14-Aug-2013
1624,Revenue,CCHD,Day Care - South,Private & Voluntary Day Care,Prestige Nursing,249.98, 14-Aug-2013
1625,Revenue,CCHD,Day Care - North,Private & Voluntary Day Care,Prestige Nursing,534.44, 14-Aug-2013
1626,Revenue,CCHD,Home Care - Elderly - South,Other Small Contracts,Prestige Nursing,995.61, 14-Aug-2013
1627,Revenue,CCHD,Home Care - Elderly - North,Other Small Contracts,Prestige Nursing,1305.93, 14-Aug-2013
1628,Revenue,CCHD,Day Care - South,Private & Voluntary Day Care,Prestige Nursing,262.91, 14-Aug-2013
1629,Revenue,CCHD,Day Care - North,Private & Voluntary Day Care,Prestige Nursing,521.51, 14-Aug-2013
1630,Revenue,CCHD,Home Care - Elderly - North,Other Small Contracts,Prestige Nursing,252, 29-Aug-2013
1631,Revenue,CCHD,Day Care - South,Private & Voluntary Day Care,Prestige Nursing,254.4, 29-Aug-2013
1632,Revenue,CCHD,Day Care - North,Private & Voluntary Day Care,Prestige Nursing,240, 29-Aug-2013
1633,Revenue,CCHD,Elderly MH Day Care North,Private & Voluntary Day Care,Prestige Nursing,96, 29-Aug-2013
1634,Revenue,CCHD,Tenancy Start Up Scheme,Other Supplies & Services,Property Services Bristol Ltd,930, 07-Aug-2013
1635,Revenue,CCHD,Bed purchasing - Elderly MH - North,Nursing Homes,Ravenswood,1269.48, 06-Aug-2013
1636,Revenue,CCHD,Bed Purchasing - Elderly - South,Residential Homes,Ravenswood,3804.6, 06-Aug-2013
1637,Revenue,CCHD,Bed Purchasing - Elderly - North,Nursing Homes,Ravenswood,1536.52, 06-Aug-2013
1638,Revenue,CCHD,Bed Purchasing - PWLD S 117 Placements,Residential Homes,Real Life Options,7979.92, 06-Aug-2013
1639,Revenue,CCHD,Bed Purchasing - Elderly S117- North,Nursing Homes,Redholme Memory Care Limited,1962.8, 06-Aug-2013
1640,Revenue,CCHD,Supporting People Programme,Grants to Voluntary Bodies,Redland Housing Association Ltd,726.92, 01-Aug-2013
1641,Revenue,CCHD,Supporting People Programme,Grants to Voluntary Bodies,Redland Housing Association Ltd,726.92, 30-Aug-2013
1642,Revenue,CCHD,Bed Purchasing - Elderly - South,Nursing Homes,Regent House,2224.96, 06-Aug-2013
1643,Revenue,CCHD,Bed Purchasing - Elderly - South,Nursing Homes,Regent House,1649.08, 06-Aug-2013
1644,Revenue,CCHD,South Glos Users in South Glos Homes,Nursing Homes,Regent House,1756.64, 06-Aug-2013
1645,Revenue,CCHD,Bed Purchasing - Elderly - South,Nursing Homes,Regent House,1958.52, 06-Aug-2013
1646,Revenue,CCHD,Bed Purchasing - Elderly MH - South,Nursing Homes,Regent House,1982.08, 06-Aug-2013
1647,Revenue,CCHD,Bed Purchasing - Elderly - South,Nursing Homes,Regent House,1699.68, 06-Aug-2013
1648,Revenue,CCHD,Bed Purchasing - Elderly - South,Nursing Homes,Regent House,1876.36, 06-Aug-2013
1649,Revenue,CCHD,Bed Purchasing - Elderly - South,Residential Homes,Regent House,1474.1, 06-Aug-2013
1650,Revenue,CCHD,Bed Purchasing - Elderly - South,Nursing Homes,Regent House,1977.08, 06-Aug-2013
1651,Revenue,CCHD,Bed Purchasing - Elderly - South,Nursing Homes,Regent House,1808, 06-Aug-2013
1652,Revenue,CCHD,Bed Purchasing - Elderly - South,Nursing Homes,Regent House,1649.08, 06-Aug-2013
1653,Revenue,CCHD,Bed Purchasing - Elderly - South,Nursing Homes,Regent House,616.04, 06-Aug-2013
1654,Revenue,CCHD,Bed Purchasing - Elderly - South,Nursing Homes,Regent House,7831.5, 06-Aug-2013
1655,Revenue,CCHD,Bed Purchasing - Elderly - South,Nursing Homes,Regent House,2088.4, 06-Aug-2013
1656,Revenue,CCHD,Bed Purchasing - Southmead Hospital,Nursing Homes,Regent House,1388.52, 06-Aug-2013
1657,Revenue,CCHD,South Glos Users in South Glos Homes,Nursing Homes,Regent House,1301.8, 06-Aug-2013
1658,Revenue,CCHD,South Glos Users in South Glos Homes,Nursing Homes,Regent House,1207.69, 06-Aug-2013
1659,Revenue,CCHD,Bed Purchasing - Elderly - South,Nursing Homes,Regent House,1646.36, 06-Aug-2013
1660,Revenue,CCHD,Bed Purchasing - Elderly MH - South,Nursing Homes,Regent House,1192.64, 06-Aug-2013
1661,Revenue,CCHD,Bed purchasing - Elderly MH - North,Nursing Homes,Regent House,1275.76, 06-Aug-2013
1662,Revenue,CCHD,Bed Purchasing - Elderly - South,Nursing Homes,Regent House,2605.96, 06-Aug-2013
1663,Revenue,CCHD,Bed Purchasing - Southmead Hospital,Nursing Homes,Regent House,604.51, 06-Aug-2013
1664,Revenue,CCHD,South Glos Users in South Glos Homes,Nursing Homes,Regent House,1756.64, 06-Aug-2013
1665,Revenue,CCHD,Bed Purchasing - Under 65s PWLD - South,Residential Homes,Ridgeway House,3450.56, 06-Aug-2013
1666,Revenue,CCHD,Bed Purchasing - Under 65s PWLD - South,Residential Homes,Riverside House,3557.92, 06-Aug-2013
1667,Revenue,CCHD,Bed purchasing - Elderly PWLD - South,Residential Homes,Rockleaze,1408.56, 06-Aug-2013
1668,Revenue,CCHD,Bed Purchasing - LD S28A- Over 65- South,Residential Homes,Rockleaze,2054.24, 06-Aug-2013
1669,Revenue,CCHD,Bed purchasing - Elderly PWLD - South,Residential Homes,Rockleaze,2382.32, 06-Aug-2013
1670,Revenue,CCHD,Bed purchasing - Elderly PWLD - South,Residential Homes,Rockleaze,1408.56, 06-Aug-2013
1671,Revenue,CCHD,Bed Purchasing - Under 65s PWLD - South,Residential Homes,Rosewood Lodge & Brook House,4502.6, 06-Aug-2013
1672,Revenue,CCHD,Bed Purchasing - Elderly MH - South,Residential Homes,Ross Healthcare,1292.56, 06-Aug-2013
1673,Revenue,CCHD,South Glos Users in South Glos Homes,Nursing Homes,Saffron Gardens,878.32, 06-Aug-2013
1674,Revenue,CCHD,South Glos Users in South Glos Homes,Nursing Homes,Saffron Gardens,878.32, 06-Aug-2013
1675,Revenue,CCHD,Bed Purchasing - Southmead Hospital,Nursing Homes,Saffron Gardens,2002.41, 06-Aug-2013
1676,Revenue,CCHD,Bed Purchasing - Southmead Hospital,Nursing Homes,Saffron Gardens,1649.04, 06-Aug-2013
1677,Revenue,CCHD,South Glos Users in South Glos Homes,Nursing Homes,Saffron Gardens,878.32, 06-Aug-2013
1678,Revenue,CCHD,Bed Purchasing - Elderly - North,Nursing Homes,Saffron Gardens,1906.64, 06-Aug-2013
1679,Revenue,CCHD,South Glos Users in South Glos Homes,Nursing Homes,Saffron Gardens,878.32, 06-Aug-2013
1680,Revenue,CCHD,South Glos Users in South Glos Homes,Nursing Homes,Saffron Gardens,878.32, 06-Aug-2013
1681,Revenue,CCHD,Bed Purchasing - Elderly - North,Residential Homes,Saffron Gardens,592.48, 06-Aug-2013
1682,Revenue,CCHD,South Glos Users in South Glos Homes,Nursing Homes,Saffron Gardens,878.32, 06-Aug-2013
1683,Revenue,CCHD,South Glos Users in South Glos Homes,Nursing Homes,Saffron Gardens,878.32, 06-Aug-2013
1684,Revenue,CCHD,South Glos Users in South Glos Homes,Nursing Homes,Saffron Gardens,878.32, 06-Aug-2013
1685,Revenue,CCHD,South Glos Users in South Glos Homes,Nursing Homes,Saffron Gardens,1317.48, 06-Aug-2013
1686,Revenue,CCHD,South Glos Users in South Glos Homes,Nursing Homes,Saffron Gardens,683.26, 06-Aug-2013
1687,Revenue,CCHD,South Glos Users in South Glos Homes,Nursing Homes,Saffron Gardens,878.32, 06-Aug-2013
1688,Revenue,CCHD,South Glos Users in South Glos Homes,Nursing Homes,Saffron Gardens,1474.32, 06-Aug-2013
1689,Revenue,CCHD,South Glos Users in South Glos Homes,Nursing Homes,Saffron Gardens,878.32, 06-Aug-2013
1690,Revenue,CCHD,Bed Purchasing - Frenchay Hospital,Nursing Homes,Saffron Gardens,3651.28, 06-Aug-2013
1691,Revenue,CCHD,South Glos Users in South Glos Homes,Nursing Homes,Saffron Gardens,1192.01, 06-Aug-2013
1692,Revenue,CCHD,South Glos Users in South Glos Homes,Nursing Homes,Saffron Gardens,1254.74, 06-Aug-2013
1693,Revenue,CCHD,South Glos Users in South Glos Homes,Nursing Homes,Saffron Gardens,878.32, 06-Aug-2013
1694,Revenue,CCHD,South Glos Users in South Glos Homes,Nursing Homes,Saffron Gardens,1756.64, 06-Aug-2013
1695,Revenue,CCHD,South Glos Users in South Glos Homes,Nursing Homes,Saffron Gardens,1584.11, 06-Aug-2013
1696,Revenue,CCHD,Bed Purchasing - Southmead Hospital,Residential Homes,Saffron Gardens,2496.64, 06-Aug-2013
1697,Revenue,CCHD,South Glos Users in South Glos Homes,Nursing Homes,Saffron Gardens,1740.96, 06-Aug-2013
1698,Revenue,CCHD,Bed Purchasing - Southmead Hospital,Nursing Homes,Saffron Gardens,2889.52, 06-Aug-2013
1699,Revenue,CCHD,South Glos Users in South Glos Homes,Nursing Homes,Saffron Gardens,878.32, 06-Aug-2013
1700,Revenue,CCHD,Bed Purchasing - Elderly MH - South,Nursing Homes,Saffron Gardens,4089.36, 06-Aug-2013
1701,Revenue,CCHD,South Glos Users in South Glos Homes,Nursing Homes,Saffron Gardens,878.32, 06-Aug-2013
1702,Revenue,CCHD,South Glos Users in South Glos Homes,Nursing Homes,Saffron Gardens,878.32, 06-Aug-2013
1703,Revenue,CCHD,South Glos Users in South Glos Homes,Nursing Homes,Saffron Gardens,878.32, 06-Aug-2013
1704,Revenue,CCHD,Bed Purchasing - Elderly - North,Nursing Homes,Saffron Gardens,1977.44, 06-Aug-2013
1705,Revenue,CCHD,Bed Purchasing - Elderly - South,Nursing Homes,Saffron Gardens,5150.97, 06-Aug-2013
1706,Revenue,CCHD,Bed Purchasing - Elderly - South,Nursing Homes,Saffron Gardens,3746.16, 06-Aug-2013
1707,Revenue,CCHD,Bed Purchasing - Frenchay Hospital,Nursing Homes,Saffron Gardens,1246.73, 06-Aug-2013
1708,Revenue,CCHD,Bed Purchasing - Frenchay Hospital,Nursing Homes,Saffron Gardens,918.64, 06-Aug-2013
1709,Revenue,CCHD,Bed Purchasing - Elderly - South,Residential Homes,Saffron Gardens,2556.56, 06-Aug-2013
1710,Revenue,CCHD,Bed Purchasing - Elderly S117- North,Nursing Homes,Saffron Gardens,5347.25, 06-Aug-2013
1711,Revenue,CCHD,South Glos Users in South Glos Homes,Nursing Homes,Saffron Gardens,1317.48, 06-Aug-2013
1712,Revenue,CCHD,South Glos Users in South Glos Homes,Nursing Homes,Saffron Gardens,1832.38, 06-Aug-2013
1713,Revenue,CCHD,Home Care - Elderly - South,Other Small Contracts,Saga Homecare,3286.4, 28-Aug-2013
1714,Revenue,CCHD,Home Care - Elderly - North,Other Small Contracts,Saga Homecare,8026.99, 28-Aug-2013
1715,Revenue,CCHD,Day Care - South,Private & Voluntary Day Care,Saga Homecare,126.4, 28-Aug-2013
1716,Revenue,CCHD,Day Care - North,Private & Voluntary Day Care,Saga Homecare,308.1, 28-Aug-2013
1717,Revenue,CCHD,Carer`s Grant - South,Carers Breaks & Services,Saga Homecare,110.6, 28-Aug-2013
1718,Revenue,CCHD,Home care - Elderly MH - North,Other Small Contracts,Saga Homecare,217.25, 28-Aug-2013
1719,Revenue,CCHD,Elderly MH Day Care North,Private & Voluntary Day Care,Saga Homecare,130.35, 28-Aug-2013
1720,Revenue,CCHD,Home Care - LD Under 65 - South,Private & Voluntary Home Care,Saga Homecare,256.75, 28-Aug-2013
1721,Revenue,CCHD,PWLD Home Care - Under 65 - KH,Private & Voluntary Home Care,Saga Homecare,691.25, 28-Aug-2013
1722,Revenue,CCHD,Home Care - Elderly - South,Other Small Contracts,Saga Homecare,3325.9, 28-Aug-2013
1723,Revenue,CCHD,Home Care - Elderly - North,Other Small Contracts,Saga Homecare,8005.44, 28-Aug-2013
1724,Revenue,CCHD,Day Care - South,Private & Voluntary Day Care,Saga Homecare,126.4, 28-Aug-2013
1725,Revenue,CCHD,Day Care - North,Private & Voluntary Day Care,Saga Homecare,316, 28-Aug-2013
1726,Revenue,CCHD,Carer`s Grant - South,Carers Breaks & Services,Saga Homecare,110.6, 28-Aug-2013
1727,Revenue,CCHD,Home care - Elderly MH - North,Other Small Contracts,Saga Homecare,185.65, 28-Aug-2013
1728,Revenue,CCHD,Elderly MH Day Care North,Private & Voluntary Day Care,Saga Homecare,130.35, 28-Aug-2013
1729,Revenue,CCHD,Home Care - LD Under 65 - South,Private & Voluntary Home Care,Saga Homecare,252.8, 28-Aug-2013
1730,Revenue,CCHD,PWLD Home Care - Under 65 - KH,Private & Voluntary Home Care,Saga Homecare,699.15, 28-Aug-2013
1731,Revenue,CCHD,Home Care - Elderly - South,Other Small Contracts,Saga Homecare,3456.42, 28-Aug-2013
1732,Revenue,CCHD,Home Care - Elderly - North,Other Small Contracts,Saga Homecare,7559.09, 28-Aug-2013
1733,Revenue,CCHD,Day Care - South,Private & Voluntary Day Care,Saga Homecare,47.4, 28-Aug-2013
1734,Revenue,CCHD,Day Care - North,Private & Voluntary Day Care,Saga Homecare,323.9, 28-Aug-2013
1735,Revenue,CCHD,Carer`s Grant - South,Carers Breaks & Services,Saga Homecare,110.6, 28-Aug-2013
1736,Revenue,CCHD,Home care - Elderly MH - North,Other Small Contracts,Saga Homecare,181.7, 28-Aug-2013
1737,Revenue,CCHD,Elderly MH Day Care North,Private & Voluntary Day Care,Saga Homecare,138.25, 28-Aug-2013
1738,Revenue,CCHD,Home Care - LD Under 65 - South,Private & Voluntary Home Care,Saga Homecare,237, 28-Aug-2013
1739,Revenue,CCHD,PWLD Home Care - Under 65 - KH,Private & Voluntary Home Care,Saga Homecare,710.99, 28-Aug-2013
1740,Revenue,CCHD,Home Care - Elderly - South,Other Small Contracts,Saga Homecare,3152.1, 29-Aug-2013
1741,Revenue,CCHD,Home Care - Elderly - North,Other Small Contracts,Saga Homecare,7327, 29-Aug-2013
1742,Revenue,CCHD,Day Care - South,Private & Voluntary Day Care,Saga Homecare,79, 29-Aug-2013
1743,Revenue,CCHD,Day Care - North,Private & Voluntary Day Care,Saga Homecare,150.1, 29-Aug-2013
1744,Revenue,CCHD,Carer`s Grant - South,Carers Breaks & Services,Saga Homecare,110.6, 29-Aug-2013
1745,Revenue,CCHD,Home care - Elderly MH - North,Other Small Contracts,Saga Homecare,181.7, 29-Aug-2013
1746,Revenue,CCHD,Elderly MH Day Care North,Private & Voluntary Day Care,Saga Homecare,134.3, 29-Aug-2013
1747,Revenue,CCHD,Home Care - LD Under 65 - South,Private & Voluntary Home Care,Saga Homecare,260.7, 29-Aug-2013
1748,Revenue,CCHD,PWLD Home Care - Under 65 - KH,Private & Voluntary Home Care,Saga Homecare,699.15, 29-Aug-2013
1749,Revenue,CCHD,Home Care - Elderly - South,Other Small Contracts,Saga Homecare,3000.48, 29-Aug-2013
1750,Revenue,CCHD,Home Care - Elderly - North,Other Small Contracts,Saga Homecare,8211.1, 29-Aug-2013
1751,Revenue,CCHD,Day Care - South,Private & Voluntary Day Care,Saga Homecare,127.68, 29-Aug-2013
1752,Revenue,CCHD,Day Care - North,Private & Voluntary Day Care,Saga Homecare,263.34, 29-Aug-2013
1753,Revenue,CCHD,Home care - Elderly MH - North,Other Small Contracts,Saga Homecare,187.53, 29-Aug-2013
1754,Revenue,CCHD,Elderly MH Day Care North,Private & Voluntary Day Care,Saga Homecare,135.66, 29-Aug-2013
1755,Revenue,CCHD,Home Care - LD Under 65 - South,Private & Voluntary Home Care,Saga Homecare,255.36, 29-Aug-2013
1756,Revenue,CCHD,PWLD Home Care - Under 65 - KH,Private & Voluntary Home Care,Saga Homecare,490.77, 29-Aug-2013
1757,Revenue,CCHD,Home Care - Elderly - South,Other Small Contracts,Saga Homecare,3223.2, 06-Aug-2013
1758,Revenue,CCHD,Home Care - Elderly - North,Other Small Contracts,Saga Homecare,7521.38, 06-Aug-2013
1759,Revenue,CCHD,Day Care - South,Private & Voluntary Day Care,Saga Homecare,75.05, 06-Aug-2013
1760,Revenue,CCHD,Day Care - North,Private & Voluntary Day Care,Saga Homecare,316, 06-Aug-2013
1761,Revenue,CCHD,Carer`s Grant - South,Carers Breaks & Services,Saga Homecare,110.6, 06-Aug-2013
1762,Revenue,CCHD,Home care - Elderly MH - North,Other Small Contracts,Saga Homecare,142.2, 06-Aug-2013
1763,Revenue,CCHD,Elderly MH Day Care North,Private & Voluntary Day Care,Saga Homecare,130.35, 06-Aug-2013
1764,Revenue,CCHD,Home Care - LD Under 65 - South,Private & Voluntary Home Care,Saga Homecare,248.85, 06-Aug-2013
1765,Revenue,CCHD,PWLD Home Care - Under 65 - KH,Private & Voluntary Home Care,Saga Homecare,655.7, 06-Aug-2013
1766,Revenue,CCHD,Bed Purchasing - Under 65s PWLD - South,Residential Homes,Salters Hill Barn,2014.52, 06-Aug-2013
1767,Revenue,CCHD,Bed Purchasing - Southmead Hospital,Residential Homes,Sanctuary Care Limited,3438.24, 06-Aug-2013
1768,Revenue,CCHD,Bed Purchasing - Southmead Hospital,Residential Homes,Sanctuary Care Ltd,1270, 06-Aug-2013
1769,Revenue,CCHD,Learning Difficulties PSL,Rent,Individual,1400, 07-Aug-2013
1770,Revenue,CCHD,Woodleaze,"Provisions (Food, etc)",School Milk Services Limited,742.44, 30-Aug-2013
1771,Revenue,CCHD,Bed purchasing - Under 65s PWLD - North,Residential Homes,Scope   Accounts Dept,4956.52, 06-Aug-2013
1772,Revenue,CCHD,Supported Living - North,Private & Voluntary Home Care,SeeAbility,1329.72, 29-Aug-2013
1773,Revenue,CCHD,Supported Living - North,Private & Voluntary Home Care,SeeAbility,6286.11, 09-Aug-2013
1774,Revenue,CCHD,Day Care - North,Private & Voluntary Day Care,SeeAbility,1879.42, 15-Aug-2013
1775,Revenue,CCHD,Supported Living - North,Private & Voluntary Home Care,SeeAbility,1298.58, 09-Aug-2013
1776,Revenue,CCHD,Supported Living - North,Private & Voluntary Home Care,SeeAbility,7364.61, 09-Aug-2013
1777,Revenue,CCHD,Supported Living - North,Private & Voluntary Home Care,SeeAbility,6742.17, 30-Aug-2013
1778,Revenue,CCHD,Supported Living - North,Private & Voluntary Home Care,SeeAbility,1341.86, 30-Aug-2013
1779,Revenue,CCHD,Supported Living - North,Private & Voluntary Home Care,SeeAbility,7610.1, 30-Aug-2013
1780,Revenue,CCHD,Supported Living - South,Private & Voluntary Home Care,Selborne Care Ltd,2742.9, 05-Aug-2013
1781,Revenue,CCHD,Supported Living - South,Private & Voluntary Home Care,Selborne Care Ltd,643.6, 05-Aug-2013
1782,Revenue,CCHD,Purchase of Non-Res Care - North,Private & Voluntary Day Care,Selborne Care Ltd,1465.78, 05-Aug-2013
1783,Revenue,CCHD,Supported Living - South,Private & Voluntary Home Care,Selborne Care Ltd,5128.68, 05-Aug-2013
1784,Revenue,CCHD,Purchase of Non-Res Care - North,Private & Voluntary Day Care,Selborne Care Ltd,901.04, 05-Aug-2013
1785,Revenue,CCHD,Supported Living - South,Private & Voluntary Home Care,Selborne Care Ltd,1141.1, 05-Aug-2013
1786,Revenue,CCHD,Purchase of Non-Res Care - North,Private & Voluntary Day Care,Selborne Care Ltd,529.1, 05-Aug-2013
1787,Revenue,CCHD,Supported Living - South,Private & Voluntary Home Care,Selborne Care Ltd,514.88, 05-Aug-2013
1788,Revenue,CCHD,Supported Living - South,Private & Voluntary Home Care,Selborne Care Ltd,4626.04, 05-Aug-2013
1789,Revenue,CCHD,Purchase of Non-Res Care - North,Private & Voluntary Day Care,Selborne Care Ltd,781.16, 05-Aug-2013
1790,Revenue,CCHD,Supported Living - South,Private & Voluntary Home Care,Selborne Care Ltd,554.56, 05-Aug-2013
1791,Revenue,CCHD,Supported Living - South,Private & Voluntary Home Care,Selborne Care Ltd,1924.08, 05-Aug-2013
1792,Revenue,CCHD,Purchase of Non-Res Care - North,Private & Voluntary Day Care,Selborne Care Ltd,675.8, 05-Aug-2013
1793,Revenue,CCHD,Supported Living (S28a) South,Private & Voluntary Home Care,Selborne Care Ltd,3326.68, 15-Aug-2013
1794,Revenue,CCHD,Bed Purchasing - Elderly - South,Nursing Homes,Shaw Healthcare Ltd,1603.76, 06-Aug-2013
1795,Revenue,CCHD,Bed Purchasing - Elderly S117- North,Nursing Homes,Shaw Healthcare Ltd,1962.68, 06-Aug-2013
1796,Revenue,CCHD,Bed purchasing - Elderly S117 - South,Nursing Homes,Shaw Healthcare Ltd,1992.16, 06-Aug-2013
1797,Revenue,CCHD,Bed purchasing - Elderly MH - North,Nursing Homes,Shaw Healthcare Ltd,1226.88, 06-Aug-2013
1798,Revenue,CCHD,Bed Purchasing - Elderly - North,Nursing Homes,Shaw Healthcare Ltd,990.76, 06-Aug-2013
1799,Revenue,CCHD,Bed purchasing - S28A Under 65 - South,Residential Homes,Shaw Healthcare Ltd,10507.8, 06-Aug-2013
1800,Revenue,CCHD,Bed purchasing - S28A Under 65 - South,Residential Homes,Shaw Healthcare Ltd,10505.36, 06-Aug-2013
1801,Revenue,CCHD,Bed purchasing - S28A Under 65 - South,Residential Homes,Shaw Healthcare Ltd,10337, 06-Aug-2013
1802,Revenue,CCHD,Bed Purchasing - Under 65s PWLD - South,Nursing Homes,Shaw Healthcare Ltd,9754.04, 06-Aug-2013
1803,Revenue,CCHD,Bed Purchasing - Under 65s PWLD - South,Residential Homes,Shaw Healthcare Ltd,9760.6, 06-Aug-2013
1804,Revenue,CCHD,Bed purchasing - Elderly PWLD - South,Residential Homes,Shaw Healthcare Ltd,3907.68, 06-Aug-2013
1805,Revenue,CCHD,Bed purchasing - S28A Under 65 - South,Residential Homes,Shaw Healthcare Ltd,10393.88, 06-Aug-2013
1806,Revenue,CCHD,Bed purchasing - S28A Under 65 - South,Residential Homes,Shaw Healthcare Ltd,12056.36, 06-Aug-2013
1807,Revenue,CCHD,Bed Purchasing - S28A - Over 65- North,Residential Homes,Shaw Healthcare Ltd,4238.92, 06-Aug-2013
1808,Revenue,CCHD,Bed Purchasing - S28A - Over 65- North,Residential Homes,Shaw Healthcare Ltd,4246.2, 06-Aug-2013
1809,Revenue,CCHD,Bed Purchasing - LD S28A- Over 65- South,Residential Homes,Shaw Healthcare Ltd,4763.2, 06-Aug-2013
1810,Revenue,CCHD,Bed Purchasing - Under 65s PWLD - South,Nursing Homes,Shaw Healthcare Ltd,10091.08, 06-Aug-2013
1811,Revenue,CCHD,Bed Purchasing - LD S28A- Over 65- South,Residential Homes,Shaw Healthcare Ltd,4321.32, 06-Aug-2013
1812,Revenue,CCHD,Bed purchasing -S28A  Under 65 - North,Residential Homes,Shaw Healthcare Ltd,9174, 06-Aug-2013
1813,Revenue,CCHD,Bed Purchasing - S28A - Over 65- North,Residential Homes,Shaw Healthcare Ltd,8580.2, 06-Aug-2013
1814,Revenue,CCHD,Bed Purchasing - Southmead Hospital,Residential Homes,Shaw Healthcare Ltd,891.96, 06-Aug-2013
1815,Revenue,CCHD,Bed Purchasing - Elderly - North,Residential Homes,Shaw Healthcare Ltd,1262, 06-Aug-2013
1816,Revenue,CCHD,Bed Purchasing - Frenchay Hospital,Residential Homes,Shaw Healthcare Ltd,1119.32, 06-Aug-2013
1817,Revenue,CCHD,Purchase of Non-Res Care - North,Private & Voluntary Day Care,Shaw Healthcare Specialist Services Limited,520.13, 23-Aug-2013
1818,Revenue,CCHD,Supported Living - South,Private & Voluntary Home Care,Silva Care Limited,4415.44, 06-Aug-2013
1819,Revenue,CCHD,Day Care - North,Private & Voluntary Day Care,Silva Care Limited,1049.91, 28-Aug-2013
1820,Revenue,CCHD,Supported Living - South,Private & Voluntary Home Care,Silva Care Limited,4415.44, 30-Aug-2013
1821,Revenue,CCHD,Bed purchasing - Under 65s PWLD - North,Residential Homes,Small House Homes Limited,17754.92, 06-Aug-2013
1822,Revenue,CCHD,Purchase of Non-Res Care - South,Private & Voluntary Day Care,Smile Independent Living Support Limited,787.42, 23-Aug-2013
1823,Revenue,CCHD,Purchase of Non-Res Care - North,Private & Voluntary Day Care,Smile Independent Living Support Limited,836.49, 16-Aug-2013
1824,Revenue,CCHD,Purchase of Non-Res Care - North,Private & Voluntary Day Care,Smile Independent Living Support Limited,1362.41, 16-Aug-2013
1825,Revenue,CCHD,Purchase of Non-Res Care - North,Private & Voluntary Day Care,Smile Independent Living Support Limited,1350.19, 16-Aug-2013
1826,Revenue,CCHD,Purchase of Non-Res Care - North,Private & Voluntary Day Care,Smile Independent Living Support Limited,785.95, 16-Aug-2013
1827,Revenue,CCHD,Purchase of Non-Res Care - North,Private & Voluntary Day Care,Smile Independent Living Support Limited,1377.47, 16-Aug-2013
1828,Revenue,CCHD,Purchase of Non-Res Care - North,Private & Voluntary Day Care,Smile Independent Living Support Limited,1074.4, 16-Aug-2013
